TRANS.No,Service Area Categorisation,Service Division Categorisation,Responsible Unit,Unit Code,Expenses Type,Expenses Sub Type,Expense Code,Narrative,Amount,Invoice Date,Cap/rev,SupplierName
1,Central Services,SupS Customer Services and Dev,Data protection,A01016,Supplies & Services           ,Services                      ,DF03,Consultants                             ,2742.8,05/08/2014,REV,REDACTED
2,Central Services,SupS Chief Execs,Local Involvement Network,A01039,Third Party Payments          ,Private Contractors           ,EH10,Contract Payments                       ,10423.75,04/08/2014,REV,MERTON VOLUNTARY SERV COUNCIL 
3,Central Services,SupS Chief Execs,Local Involvement Network,A01039,Third Party Payments          ,Private Contractors           ,EH10,Contract Payments                       ,10423.75,01/07/2014,REV,MERTON VOLUNTARY SERV COUNCIL 
4,Central Services,SupS Chief Execs,Local Involvement Network,A01039,Third Party Payments          ,Private Contractors           ,EH10,Contract Payments                       ,3475,17/07/2014,REV,VOICEABILITY                  
5,Central Services,SupS Chief Execs,Local Involvement Network,A01039,Third Party Payments          ,Private Contractors           ,EH10,Contract Payments                       ,1004,31/07/2014,REV,VOICEABILITY                  
6,Cultural Env Reg&Plan Services,Comm Safety (Crime Reduction),Crime and Strategy Team,A01100,Third Party Payments          ,Private Contractors           ,EH02,Miscellaneous Hired Services            ,3174.04,03/06/2014,REV,GLOBAL MSC SECURITY LTD       
7,Cultural Env Reg&Plan Services,Comm Safety (Crime Reduction),Crime and Strategy Team,A01100,Third Party Payments          ,Private Contractors           ,EH02,Miscellaneous Hired Services            ,1540,01/08/2014,REV,MORDEN BAPTIST CHURCH         
8,Cultural Env Reg&Plan Services,Comm Safety (Crime Reduction),Crime and Strategy Team,A01100,Third Party Payments          ,Private Contractors           ,EH02,Miscellaneous Hired Services            ,5000,31/07/2014,REV,REDACTED
9,Cultural Env Reg&Plan Services,Comm Safety (Crime Reduction),Crime and Strategy Team,A01100,Third Party Payments          ,Private Contractors           ,EH02,Miscellaneous Hired Services            ,1851.3,01/07/2014,REV,GLOBAL MSC SECURITY LTD       
10,Cultural Env Reg&Plan Services,Comm Safety (Crime Reduction),Crime and Strategy Team,A01100,Third Party Payments          ,Private Contractors           ,EH02,Miscellaneous Hired Services            ,5560,01/07/2014,REV,GLOBAL MSC SECURITY LTD       
11,Cultural Env Reg&Plan Services,Comm Safety (Crime Reduction),Crime and Strategy Team,A01100,Third Party Payments          ,Private Contractors           ,EH02,Miscellaneous Hired Services            ,10077.5,11/06/2014,REV,GLOBAL MSC SECURITY LTD       
12,Cultural Env Reg&Plan Services,Comm Safety (Crime Reduction),Prolific & Priority Offenders,A01105,Third Party Payments          ,Private Contractors           ,EH02,Miscellaneous Hired Services            ,9950,21/07/2014,REV,GLENCOT LIMITED               
13,Central Services,SupS Chief Execs,NON-STATUTORY MARKETING & COMM,A02019,Supplies & Services           ,Services                      ,DF02,Misc Advertising/Publicity              ,600,29/06/2014,REV,NEWSQUEST (LONDON)LTD         
14,Central Services,SupS Chief Execs,NON-STATUTORY MARKETING & COMM,A02019,Supplies & Services           ,Services                      ,DF02,Misc Advertising/Publicity              ,537.5,23/07/2014,REV,JCDECAUX UNITED KINGDOM       
15,Central Services,SupS Chief Execs,NON-STATUTORY MARKETING & COMM,A02019,Supplies & Services           ,Services                      ,DF02,Misc Advertising/Publicity              ,550,25/07/2014,REV,NEWSQUEST (LONDON)LTD         
16,Central Services,SupS Chief Execs,NON-STATUTORY MARKETING & COMM,A02019,Supplies & Services           ,Services                      ,DF35,Graphic Design                          ,5450,29/07/2014,REV,THE BIG IDEA 
17,Central Services,SupS Chief Execs,NON-STATUTORY MARKETING & COMM,A02019,Supplies & Services           ,Services                      ,DF35,Graphic Design                          ,775,30/06/2014,REV,CUBIQUITY MEDIA               
18,Central Services,SupS Chief Execs,Press and Public Relations.,A02026,Supplies & Services           ,Prntng Stnry Gen Off Exp      ,DE20,Council Magazine                        ,700,08/08/2014,REV,REDACTED
19,CS -Oth Operating Inc & Expend,T/A Corporate Services,Prtng Jobs - Ext Agncy,A03041,Supplies & Services           ,Prntng Stnry Gen Off Exp      ,DE01,External Printing                       ,4599,31/07/2014,REV,TAURUS PRINT & DESIGN LTD     
20,CS -Oth Operating Inc & Expend,T/A Corporate Services,PrintUnit-HighVolPhtcopying,A03042,Supplies & Services           ,Equip Furniture/Materials     ,DA01,Equipment - R & M                       ,965,09/08/2014,REV,DATA DESIGN SERVICES LTD      
21,CS -Oth Operating Inc & Expend,T/A Corporate Services,Translation Services,A04060,Supplies & Services           ,Services                      ,DF45,Payment of Sessional Workers            ,590,31/07/2014,REV,COSMIC EUROPE LIMTED          
22,Central Services,SupS Best Value,Merton Link,A04070,Supplies & Services           ,Comms and Computing           ,DG09,Computer Purchases - Misc               ,600,18/08/2014,REV,Q-MATIC UK LTD                
23,Central Services,Grants - Voluntary Groups,VOLUNTARY SECTOR COORDINATION,A04082,Supplies & Services           ,Grants and Subscriptions      ,DJ01,Grants                                  ,3000,31/07/2014,REV,MERTON VOLUNTARY SERV COUNCIL 
24,Central Services,SupS Comm and Member Services,COMMERICIAL SERVICES,A04085,Employees                     ,Direct Employee Expenses      ,AA17,Agency Staff & Casual Paymts            ,3390,06/08/2014,REV,HAYS RECRUITING EXPERTS       
25,Central Services,SupS Comm and Member Services,COMMERICIAL SERVICES,A04085,Employees                     ,Direct Employee Expenses      ,AA17,Agency Staff & Casual Paymts            ,3390,13/08/2014,REV,HAYS RECRUITING EXPERTS       
26,Central Services,SupS Comm and Member Services,COMMERICIAL SERVICES,A04085,Employees                     ,Direct Employee Expenses      ,AA17,Agency Staff & Casual Paymts            ,15355.37,07/05/2014,REV,V4 SERVICES LIMITED           
27,Central Services,SupS Comm and Member Services,COMMERICIAL SERVICES,A04085,Employees                     ,Direct Employee Expenses      ,AA17,Agency Staff & Casual Paymts            ,3390,30/07/2014,REV,HAYS RECRUITING EXPERTS       
28,Central Services,SupS Comm and Member Services,COMMERICIAL SERVICES,A04085,Employees                     ,Direct Employee Expenses      ,AA17,Agency Staff & Casual Paymts            ,3390,25/07/2014,REV,HAYS RECRUITING EXPERTS       
29,Highways & Transport Services,On-street parking,Blue Badge Service,A04088,Supplies & Services           ,Comms and Computing           ,DG15,Network Maintenance                     ,1077.15,01/08/2014,REV,NORTHGATE INFORMATION SOLUTION
30,Central Services,Registn Birth/Death/Marriage,Reg of B. Deaths & Ms,B06143,Employees                     ,Direct Employee Expenses      ,AA04,Shared Services Salaries                ,13333.25,29/07/2014,REV,LONDON BOROUGH OF SUTTON      
31,Central Services,SupS Health & Safety,Learning and Development,B06146,Employees                     ,Indirect Employee Expenses    ,AB57,EXTERNAL TRAINING COSTS                 ,1350,31/07/2014,REV,PROFESSIONAL VOICE LTD        
32,Central Services,SupS Health & Safety,Learning and Development,B06146,Employees                     ,Indirect Employee Expenses    ,AB57,EXTERNAL TRAINING COSTS                 ,500,01/09/2014,REV,TUTORCARE LTD                 
33,Central Services,SupS Health & Safety,Learning and Development,B06146,Employees                     ,Indirect Employee Expenses    ,AB57,EXTERNAL TRAINING COSTS                 ,500,04/07/2014,REV,TUTORCARE LTD                 
34,Central Services,SupS Health & Safety,Learning and Development,B06146,Employees                     ,Indirect Employee Expenses    ,AB57,EXTERNAL TRAINING COSTS                 ,750,03/07/2014,REV,THE KING'S FUND               
35,Central Services,SupS Health & Safety,Learning and Development,B06146,Employees                     ,Indirect Employee Expenses    ,AB57,EXTERNAL TRAINING COSTS                 ,600,06/08/2014,REV,ASPECT TRAINING               
36,Central Services,SupS Health & Safety,Learning and Development,B06146,Employees                     ,Indirect Employee Expenses    ,AB57,EXTERNAL TRAINING COSTS                 ,625,15/07/2014,REV,LONDON SCHOOL OF FIRST AID    
37,Central Services,SupS Health & Safety,Learning and Development,B06146,Employees                     ,Indirect Employee Expenses    ,AB57,EXTERNAL TRAINING COSTS                 ,886,24/07/2014,REV,OPP UNLOCKING POTENTIAL       
38,Central Services,SupS Health & Safety,Learning and Development,B06146,Employees                     ,Indirect Employee Expenses    ,AB57,EXTERNAL TRAINING COSTS                 ,2500,13/08/2014,REV,ENDEAVOUR UK                  
39,Central Services,SupS Health & Safety,Learning and Development,B06146,Employees                     ,Indirect Employee Expenses    ,AB57,EXTERNAL TRAINING COSTS                 ,600,13/08/2014,REV,CAMDEN&ISLINGTON NHS FDN TRUST
40,Central Services,SupS Health & Safety,Learning and Development,B06146,Employees                     ,Indirect Employee Expenses    ,AB57,EXTERNAL TRAINING COSTS                 ,710,30/07/2014,REV,LUCION ENVIRONMENTAL LTD      
41,Central Services,SupS Health & Safety,Learning and Development,B06146,Employees                     ,Indirect Employee Expenses    ,AB57,EXTERNAL TRAINING COSTS                 ,700,10/07/2014,REV,ABLE TRAINING                 
42,Central Services,SupS Health & Safety,Learning and Development,B06146,Employees                     ,Indirect Employee Expenses    ,AB57,EXTERNAL TRAINING COSTS                 ,500,06/10/2014,REV,TUTORCARE LTD                 
43,Central Services,SupS Health & Safety,Learning and Development,B06146,Employees                     ,Indirect Employee Expenses    ,AB57,EXTERNAL TRAINING COSTS                 ,995,06/06/2014,REV,IRRV SERVICES LTD             
44,Central Services,SupS Health & Safety,Learning and Development,B06146,Employees                     ,Indirect Employee Expenses    ,AB57,EXTERNAL TRAINING COSTS                 ,1400,18/07/2014,REV,ABLE TRAINING                 
45,Central Services,SupS Health & Safety,Learning and Development,B06146,Employees                     ,Indirect Employee Expenses    ,AB57,EXTERNAL TRAINING COSTS                 ,1600,18/08/2014,REV,KEEP BRITAIN TIDY             
46,Central Services,SupS Health & Safety,Learning and Development,B06146,Employees                     ,Indirect Employee Expenses    ,AB57,EXTERNAL TRAINING COSTS                 ,500,10/02/2014,REV,TUTORCARE LTD                 
47,Central Services,SupS Health & Safety,Learning and Development,B06146,Employees                     ,Indirect Employee Expenses    ,AB57,EXTERNAL TRAINING COSTS                 ,585,11/08/2014,REV,ARBORICULTURAL ASSOCIATION    
48,Central Services,SupS Health & Safety,Learning and Development,B06146,Employees                     ,Indirect Employee Expenses    ,AB57,EXTERNAL TRAINING COSTS                 ,1480,20/08/2014,REV,HYDRO-X WATER TREATMENT LTD   
49,Central Services,SupS Health & Safety,Learning and Development,B06146,Employees                     ,Indirect Employee Expenses    ,AB57,EXTERNAL TRAINING COSTS                 ,2800,01/08/2014,REV,ABLE TRAINING                 
50,Central Services,SupS Health & Safety,Learning and Development,B06146,Employees                     ,Indirect Employee Expenses    ,AB57,EXTERNAL TRAINING COSTS                 ,610,15/07/2014,REV,I.C.C.M.                      
51,Central Services,SupS Health & Safety,Learning and Development,B06146,Employees                     ,Indirect Employee Expenses    ,AB57,EXTERNAL TRAINING COSTS                 ,3000,03/07/2014,REV,THE KING'S FUND               
52,Central Services,SupS Health & Safety,Learning and Development,B06146,Employees                     ,Indirect Employee Expenses    ,AB57,EXTERNAL TRAINING COSTS                 ,650,01/09/2014,REV,TUTORCARE LTD                 
53,Central Services,SupS Health & Safety,Learning and Development,B06146,Employees                     ,Indirect Employee Expenses    ,AB57,EXTERNAL TRAINING COSTS                 ,975,11/08/2014,REV,MEDI AID(UK) LTD              
54,Central Services,SupS Health & Safety,Learning and Development,B06146,Third Party Payments          ,Private Contractors           ,EH10,Contract Payments                       ,41240.74,15/08/2014,REV,LONDON BOROUGH OF SUTTON      
55,Central Services,SupS Health & Safety,Strategic Personnel Management,B06151,Supplies & Services           ,Prntng Stnry Gen Off Exp      ,DE30,General Office Expense                  ,13169.71,04/08/2014,REV,LONDON BOROUGH OF SUTTON      
150,,,Laptops for Other Staff                 ,CC018EB,Vehicles Plant Equipment and Machinery,,D3,Equipment                               ,-1116,18/07/2014,CAP,EVERYTHING EVERYWHERE         
151,,,Laptops for Other Staff                 ,CC018EB,Other Capital Expenditure,,E3,Miscellaneous Capital Expendit          ,1400.13,07/07/2014,CAP,SPECIALIST COMPUTER CENT. PLC 
152,,,Laptops for Other Staff                 ,CC018EB,Other Capital Expenditure,,E3,Miscellaneous Capital Expendit          ,1866.84,07/07/2014,CAP,SPECIALIST COMPUTER CENT. PLC 
153,,,B678 Commonside East                    ,CE001FA,Acquisition of Land and Existing Buildings,,A2,External Fees                           ,1000,14/04/2014,CAP,MITCHAM COMMON CONSERVATORS   
154,,,B678 Commonside East                    ,CE001FA,New Construction Conversion and Renovation,,B4,Contractor - Site works                 ,30000,08/08/2014,CAP,FM CONWAY LTD                 
155,,,Disabled Facilities Grant DCLG          ,CE004RA,Other Capital Expenditure,,E1,Grants                                  ,6455,20/08/2014,CAP,ASCENDIT LIFTS LTD            
156,,,Disabled Facilities Grant DCLG          ,CE004RA,Other Capital Expenditure,,E1,Grants                                  ,2074,05/08/2014,CAP,CBS ADAPTATION                
157,,,Disabled Facilities Grant DCLG          ,CE004RA,Other Capital Expenditure,,E1,Grants                                  ,1622.66,20/08/2014,CAP,SUTTON STAYING PUT            
158,,,Disabled Facilities Grant DCLG          ,CE004RA,Other Capital Expenditure,,E1,Grants                                  ,1951.12,11/08/2014,CAP,CBS ADAPTATION                
159,,,Colliers Wd- Regeneration Fund          ,CE006FB,New Construction Conversion and Renovation,,B6,Other Costs - Site works                ,45454.46,08/08/2014,CAP,TRANSPORT FOR LONDON          
160,,,Colliers Wd- Regeneration Fund          ,CE006FB,Other Capital Expenditure,,E4,TFL Other                               ,11000,08/07/2014,CAP,GORT SCOTT LTD                
161,,,Mitcham - Outer London Fund             ,CE006FC,New Construction Conversion and Renovation,,B3,Other Expenses D&S Structure            ,5092,09/07/2013,CAP,LONDON SUSTAINABILITY EXCHANGE
162,,,Mitcham - Outer London Fund             ,CE006FC,New Construction Conversion and Renovation,,B3,Other Expenses D&S Structure            ,6807,17/09/2013,CAP,LONDON SUSTAINABILITY EXCHANGE
163,,,Parks Investment                        ,CE013SA,New Construction Conversion and Renovation,,B4,Contractor - Site works                 ,1550,04/08/2014,CAP,TAYLOR BUILDING COMPANY LTD   
164,,,Parks Investment                        ,CE013SA,New Construction Conversion and Renovation,,B4,Contractor - Site works                 ,500,04/08/2014,CAP,TAYLOR BUILDING COMPANY LTD   
165,,,Parks Investment                        ,CE013SA,New Construction Conversion and Renovation,,B4,Contractor - Site works                 ,3600,06/08/2014,CAP,JUST METAL UK LTD             
166,,,Surface Water Drainage                  ,CE024FA,New Construction Conversion and Renovation,,B4,Contractor - Site works                 ,3682.5,06/08/2014,CAP,FM CONWAY LTD                 
167,,,TFL Projected Slippage                  ,CE026SA,New Construction Conversion and Renovation,,B4,Contractor - Site works                 ,3501.48,18/08/2014,CAP,FM CONWAY LTD                 
168,,,TFL Projected Slippage                  ,CE026SA,New Construction Conversion and Renovation,,B4,Contractor - Site works                 ,1486.96,06/08/2014,CAP,FM CONWAY LTD                 
169,,,TFL Projected Slippage                  ,CE026SA,New Construction Conversion and Renovation,,B4,Contractor - Site works                 ,15571.46,06/08/2014,CAP,FM CONWAY LTD                 
170,,,TFL Projected Slippage                  ,CE026SA,New Construction Conversion and Renovation,,B4,Contractor - Site works                 ,8031.09,30/07/2014,CAP,FM CONWAY LTD                 
171,,,TFL Projected Slippage                  ,CE026SA,New Construction Conversion and Renovation,,B4,Contractor - Site works                 ,50000,25/07/2014,CAP,FM CONWAY LTD                 
172,,,TFL Projected Slippage                  ,CE026SA,New Construction Conversion and Renovation,,B4,Contractor - Site works                 ,18271.14,30/07/2014,CAP,FM CONWAY LTD                 
173,,,Repairs to Footways                     ,CE029FA,New Construction Conversion and Renovation,,B6,Other Costs - Site works                ,642,08/08/2014,CAP,UK POWER NETWORKS (OPERATIONS)
174,,,Repairs to Footways                     ,CE029FA,New Construction Conversion and Renovation,,B6,Other Costs - Site works                ,526,08/08/2014,CAP,UK POWER NETWORKS (OPERATIONS)
175,,,Repairs to Footways                     ,CE029FA,New Construction Conversion and Renovation,,B6,Other Costs - Site works                ,526,08/08/2014,CAP,UK POWER NETWORKS (OPERATIONS)
176,,,Multi Use Games Area at Canons          ,CE055CA,New Construction Conversion and Renovation,,B4,Contractor - Site works                 ,750,06/08/2014,CAP,GREENWICH LEISURE LTD         
177,,,Multi Use Games Area at Canons          ,CE055CA,New Construction Conversion and Renovation,,B4,Contractor - Site works                 ,970,06/08/2014,CAP,GREENWICH LEISURE LTD         
178,,,St Marks Academy Flood Lights           ,CE056CA,New Construction Conversion and Renovation,,B4,Contractor - Site works                 ,7033.43,28/07/2014,CAP,ETC SPORTS SURFACES LTD       
179,,,Street Lighting Replacement Pr          ,CE068FA,New Construction Conversion and Renovation,,B6,Other Costs - Site works                ,642,06/08/2014,CAP,UK POWER NETWORKS (OPERATIONS)
180,,,Street Lighting Replacement Pr          ,CE068FA,New Construction Conversion and Renovation,,B6,Other Costs - Site works                ,642,06/08/2014,CAP,UK POWER NETWORKS (OPERATIONS)
181,,,Street Lighting Replacement Pr          ,CE068FA,New Construction Conversion and Renovation,,B6,Other Costs - Site works                ,734,08/08/2014,CAP,UK POWER NETWORKS (OPERATIONS)
182,,,Street Lighting Replacement Pr          ,CE068FA,New Construction Conversion and Renovation,,B6,Other Costs - Site works                ,734,08/08/2014,CAP,UK POWER NETWORKS (OPERATIONS)
183,,,Street Lighting Replacement Pr          ,CE068FA,New Construction Conversion and Renovation,,B6,Other Costs - Site works                ,642,06/08/2014,CAP,UK POWER NETWORKS (OPERATIONS)
184,,,Street Lighting Replacement Pr          ,CE068FA,New Construction Conversion and Renovation,,B6,Other Costs - Site works                ,642,06/08/2014,CAP,UK POWER NETWORKS (OPERATIONS)
185,,,Street Lighting Replacement Pr          ,CE068FA,New Construction Conversion and Renovation,,B6,Other Costs - Site works                ,642,12/08/2014,CAP,UK POWER NETWORKS (OPERATIONS)
186,,,Street Lighting Replacement Pr          ,CE068FA,New Construction Conversion and Renovation,,B6,Other Costs - Site works                ,642,06/08/2014,CAP,UK POWER NETWORKS (OPERATIONS)
187,,,Replacement of Fleet Vehicles           ,CE082EA,New Construction Conversion and Renovation,,B4,Contractor - Site works                 ,6628.34,17/04/2014,CAP,STONERIDGE ELECTRONICS        
188,,,Replacement of Fleet Vehicles           ,CE082EA,New Construction Conversion and Renovation,,B4,Contractor - Site works                 ,21000,30/04/2014,CAP,STONERIDGE ELECTRONICS        
189,,,Replacement of Fleet Vehicles           ,CE082EA,New Construction Conversion and Renovation,,B4,Contractor - Site works                 ,2499.37,16/04/2014,CAP,STONERIDGE ELECTRONICS        
190,,,Accesibility Programme                  ,CE104FD,New Construction Conversion and Renovation,,B4,Contractor - Site works                 ,800,08/08/2014,CAP,FM CONWAY LTD                 
191,,,Accesibility Programme                  ,CE104FD,New Construction Conversion and Renovation,,B4,Contractor - Site works                 ,730,08/08/2014,CAP,FM CONWAY LTD                 
192,,,Accesibility Programme                  ,CE104FD,New Construction Conversion and Renovation,,B4,Contractor - Site works                 ,1500,18/08/2014,CAP,FM CONWAY LTD                 
193,,,Cycle access/parking                    ,CE104FG,New Construction Conversion and Renovation,,B6,Other Costs - Site works                ,1124,08/08/2014,CAP,UK POWER NETWORKS (OPERATIONS)
194,,,Mitcham Town Centre                     ,CE104FP,New Construction Conversion and Renovation,,B6,Other Costs - Site works                ,14096.23,30/07/2014,CAP,TRANSPORT FOR LONDON          
195,,,Tamworth Paddling Pool                  ,CE110CL,New Construction Conversion and Renovation,,B4,Contractor - Site works                 ,43734.68,31/07/2014,CAP,USTIGATE LTD                  
196,,,Civic Centre Windows                    ,CF001AK,New Construction Conversion and Renovation,,B4,Contractor - Site works                 ,1270,31/07/2014,CAP,COBSEN-DAVIES ROOFING (LOND)LT
197,,,Civic Centre Windows                    ,CF001AK,Vehicles Plant Equipment and Machinery,,D5,Software                                ,735,08/04/2013,CAP,PRIORITY RISK LTD             
198,,,St Mary's expansion                     ,CS008RA,New Construction Conversion and Renovation,,B1,Consultants Fees D&S Structure          ,4152,05/08/2014,CAP,NPS PROPERTY CONSULTANTS LTD  
199,,,St Mary's expansion                     ,CS008RA,New Construction Conversion and Renovation,,B4,Contractor - Site works                 ,266047,25/07/2014,CAP,MANSELL CONSTRUCTION SERVICES 
200,,,Cranmer expansion                       ,CS010AA,New Construction Conversion and Renovation,,B4,Contractor - Site works                 ,184530,04/08/2014,CAP,WILLMOTT DIXON CONSTRUCT'N LTD
201,,,Hillcross School Expansion              ,CS020AC,New Construction Conversion and Renovation,,B1,Consultants Fees D&S Structure          ,1925,29/07/2014,CAP,STACE LLP                     
202,,,Hillcross School Expansion              ,CS020AC,New Construction Conversion and Renovation,,B1,Consultants Fees D&S Structure          ,925,31/07/2014,CAP,STACE LLP                     
203,,,Hillcross School Expansion              ,CS020AC,New Construction Conversion and Renovation,,B4,Contractor - Site works                 ,11521.03,01/08/2014,CAP,MANSELL CONSTRUCTION SERVICES 
204,,,Hillcross School Expansion              ,CS020AC,New Construction Conversion and Renovation,,B4,Contractor - Site works                 ,110265.3,03/08/2014,CAP,MANSELL CONSTRUCTION SERVICES 
205,,,Merton Abbey Temp Accomodation          ,CS022AC,New Construction Conversion and Renovation,,B1,Consultants Fees D&S Structure          ,3764.12,31/07/2014,CAP,PELLINGS LLP                  
206,,,Merton Abbey Temp Accomodation          ,CS022AC,New Construction Conversion and Renovation,,B1,Consultants Fees D&S Structure          ,625,31/07/2014,CAP,EIGHT ASSOCIATES              
207,,,Merton Abbey Temp Accomodation          ,CS022AC,New Construction Conversion and Renovation,,B4,Contractor - Site works                 ,2277.16,28/08/2014,CAP,EA ENERGY SOLUTIONS LIMITED   
208,,,Merton Abbey Temp Accomodation          ,CS022AC,New Construction Conversion and Renovation,,B4,Contractor - Site works                 ,297741.64,28/07/2014,CAP,MANSELL CONSTRUCTION SERVICES 
209,,,Merton Abbey Temp Accomodation          ,CS022AC,New Construction Conversion and Renovation,,B4,Contractor - Site works                 ,132950.05,28/07/2014,CAP,MANSELL CONSTRUCTION SERVICES 
210,,,Pelham School Expansion                 ,CS023AC,New Construction Conversion and Renovation,,B1,Consultants Fees D&S Structure          ,1975,29/07/2014,CAP,STACE LLP                     
211,,,Pelham School Expansion                 ,CS023AC,New Construction Conversion and Renovation,,B1,Consultants Fees D&S Structure          ,7573,31/07/2014,CAP,HAVERSTOCK ASSOCIATES LLP     
212,,,Pelham School Expansion                 ,CS023AC,New Construction Conversion and Renovation,,B1,Consultants Fees D&S Structure          ,4000,29/07/2014,CAP,STACE LLP                     
213,,,Pelham School Expansion                 ,CS023AC,New Construction Conversion and Renovation,,B1,Consultants Fees D&S Structure          ,1025,31/07/2014,CAP,STACE LLP                     
214,,,Pelham School Expansion                 ,CS023AC,New Construction Conversion and Renovation,,B4,Contractor - Site works                 ,169782.88,01/08/2014,CAP,MANSELL CONSTRUCTION SERVICES 
215,,,Dundonald expansion                     ,CS031AC,New Construction Conversion and Renovation,,B1,Consultants Fees D&S Structure          ,17268,31/07/2014,CAP,HAVERSTOCK ASSOCIATES LLP     
216,,,Dundonald expansion                     ,CS031AC,New Construction Conversion and Renovation,,B1,Consultants Fees D&S Structure          ,1570,31/07/2014,CAP,SYNERGY CPC LLP               
217,,,Free School Meals                       ,CS033AB,Vehicles Plant Equipment and Machinery,,D3,Equipment                               ,9601,28/07/2014,CAP,DF20 LTD                      
218,,,Free School Meals                       ,CS033AB,Vehicles Plant Equipment and Machinery,,D3,Equipment                               ,7987,28/07/2014,CAP,DF20 LTD                      
219,,,Free School Meals                       ,CS033AB,Vehicles Plant Equipment and Machinery,,D3,Equipment                               ,2300,14/08/2014,CAP,DF20 LTD                      
220,,,Free School Meals                       ,CS033AB,Vehicles Plant Equipment and Machinery,,D3,Equipment                               ,1238,28/07/2014,CAP,DF20 LTD                      
221,,,Free School Meals                       ,CS033AB,Vehicles Plant Equipment and Machinery,,D3,Equipment                               ,7608,28/07/2014,CAP,DF20 LTD                      
222,,,Free School Meals                       ,CS033AB,Vehicles Plant Equipment and Machinery,,D3,Equipment                               ,6149,14/08/2014,CAP,DF20 LTD                      
223,,,Free School Meals                       ,CS033AB,Vehicles Plant Equipment and Machinery,,D3,Equipment                               ,7311,14/08/2014,CAP,DF20 LTD                      
224,,,Free School Meals                       ,CS033AB,Vehicles Plant Equipment and Machinery,,D3,Equipment                               ,6814,28/07/2014,CAP,DF20 LTD                      
225,,,Free School Meals                       ,CS033AB,Vehicles Plant Equipment and Machinery,,D3,Equipment                               ,6648,28/07/2014,CAP,DF20 LTD                      
226,,,Free School Meals                       ,CS033AB,Vehicles Plant Equipment and Machinery,,D3,Equipment                               ,2542,28/07/2014,CAP,DF20 LTD                      
227,,,Free School Meals                       ,CS033AB,Vehicles Plant Equipment and Machinery,,D3,Equipment                               ,7703,28/07/2014,CAP,DF20 LTD                      
228,,,Poplar Permanent Expansion              ,CS034AB,New Construction Conversion and Renovation,,B1,Consultants Fees D&S Structure          ,3312.12,31/07/2014,CAP,PELLINGS LLP                  
229,,,Poplar Permanent Expansion              ,CS034AB,New Construction Conversion and Renovation,,B4,Contractor - Site works                 ,304573.65,28/07/2014,CAP,MANSELL CONSTRUCTION SERVICES 
230,,,Singlegate expansion                    ,CS049AA,New Construction Conversion and Renovation,,B4,Contractor - Site works                 ,163154,21/07/2014,CAP,MANSELL CONSTRUCTION SERVICES 
231,,,Wimbledon Park expansion                ,CS050AA,New Construction Conversion and Renovation,,B1,Consultants Fees D&S Structure          ,2295,31/07/2014,CAP,SYNERGY CPC LLP               
232,,,Wimbledon Park expansion                ,CS050AA,New Construction Conversion and Renovation,,B1,Consultants Fees D&S Structure          ,864,07/08/2014,CAP,CURL LA TOURELLE ARCHITECTS   
233,,,Wimbledon Park expansion                ,CS050AA,New Construction Conversion and Renovation,,B4,Contractor - Site works                 ,55109.9,06/08/2014,CAP,KELLY CONTRACTORS UK LTD      
234,,,Primary school autism unit              ,CS081SA,New Construction Conversion and Renovation,,B2,Site Surveys D&S Structure              ,1095,24/07/2014,CAP,BARRELL TREECARE LTD          
235,,,IT Equipment                            ,CT006EA,Vehicles Plant Equipment and Machinery,,D3,Equipment                               ,3489.57,01/07/2014,CAP,SPECIALIST COMPUTER CENT. PLC 
236,,,IT Equipment                            ,CT006EA,Vehicles Plant Equipment and Machinery,,D3,Equipment                               ,4000,08/08/2014,CAP,VERISEC LIMITED               
237,Central Services,Council tax collection,Local Taxation Services,E02100,Supplies & Services           ,Services                      ,DF09,Miscellaneous Fees                      ,1949,30/06/2014,REV,WILLOW BID LTD                
238,Central Services,Council tax collection,Local Taxation Services,E02100,Supplies & Services           ,Services                      ,DF09,Miscellaneous Fees                      ,517.07,30/01/2014,REV,PS&P                          
239,Central Services,Council tax collection,Local Taxation Services,E02100,Supplies & Services           ,Services                      ,DF09,Miscellaneous Fees                      ,936,31/07/2014,REV,EXPERIAN LTD                  
240,Central Services,Council tax collection,Local Taxation Services,E02100,Supplies & Services           ,Services                      ,DF11,Counsel's Fees                          ,3701.1,04/07/2014,REV,WELBECK LAW LLP               
241,Central Services,Council tax collection,Local Taxation Services,E02100,Supplies & Services           ,Comms and Computing           ,DG09,Computer Purchases - Misc               ,666.39,18/08/2014,REV,CIVICA UK LIMITED             
242,Central Services,Council tax collection,Local Taxation Services,E02100,Supplies & Services           ,Comms and Computing           ,DG09,Computer Purchases - Misc               ,1800,13/08/2014,REV,CIVICA UK LIMITED             
243,Central Services,Council tax collection,Local Taxation Services,E02100,Supplies & Services           ,Comms and Computing           ,DG09,Computer Purchases - Misc               ,560,03/06/2014,REV,INCOM TELECOMMUNICATIONS      
244,Central Services,Council tax collection,Local Taxation Services,E02100,Supplies & Services           ,Comms and Computing           ,DG09,Computer Purchases - Misc               ,664.2,13/08/2014,REV,CIVICA UK LIMITED             
245,Central Services,Council tax collection,Local Taxation Bailiffs,E02101,Supplies & Services           ,Services                      ,DF18,Bailiffs' fees                          ,4895.34,28/08/2014,REV,MARCO ALIMENTARI LIMITED      
246,Housing Services,HB Administration,Benefits Administration,E02120,Supplies & Services           ,Comms and Computing           ,DG09,Computer Purchases - Misc               ,500,13/08/2014,REV,CIVICA UK LIMITED             
247,Housing Services,HB Administration,Benefits Administration,E02120,Supplies & Services           ,Comms and Computing           ,DG09,Computer Purchases - Misc               ,19044,13/08/2014,REV,CIVICA UK LIMITED             
248,Housing Services,HB Administration,Local Welfare Support,E02123,Transfer Payments             ,Housing Benefits              ,FA95,Other Payments                          ,738.77,04/08/2014,REV,THE VINE PROJECT              
249,Housing Services,HB Administration,Local Welfare Support,E02123,Transfer Payments             ,Housing Benefits              ,FA95,Other Payments                          ,520.61,05/08/2014,REV,THE VINE PROJECT              
250,Housing Services,HB Administration,Local Welfare Support,E02123,Transfer Payments             ,Housing Benefits              ,FA95,Other Payments                          ,648.57,24/07/2014,REV,THE VINE PROJECT              
251,Central Services,SupS Corporate Finance,TRANSACTIONS,E02139,Supplies & Services           ,Comms and Computing           ,DG50,Other IT Expenditure                    ,4462.77,09/06/2014,REV,LONDON BOROUGH OF SUTTON      
252,Central Services,SupS Payroll,Payroll,E02140,Third Party Payments          ,Private Contractors           ,EH10,Contract Payments                       ,10099.68,31/07/2014,REV,LONDON BOROUGH OF SUTTON      
253,Central Services,SupS Payroll,Payroll,E02140,Third Party Payments          ,Private Contractors           ,EH10,Contract Payments                       ,12745.69,19/08/2014,REV,LONDON BOROUGH OF SUTTON      
254,Central Services,SupS Payroll,Trinity Project,E02141,Supplies & Services           ,Services                      ,DF03,Consultants                             ,3690,11/08/2014,REV,LONDON BOROUGH OF SUTTON      
255,Central Services,SupS Payroll,Trinity Project,E02141,Supplies & Services           ,Comms and Computing           ,DG07,Computer Software                       ,5061.37,15/07/2014,REV,LONDON BOROUGH OF SUTTON      
256,Central Services,SupS Payroll,Trinity Project,E02141,Supplies & Services           ,Comms and Computing           ,DG07,Computer Software                       ,920.7,21/07/2014,REV,LONDON BOROUGH OF SUTTON      
257,Central Services,SupS Facilities,Post Room,E02220,Supplies & Services           ,Comms and Computing           ,DG04,Postage - General                       ,562.7,31/07/2014,REV,PARKER CARS LTD               
258,Central Services,SupS Facilities,Post Room,E02220,Supplies & Services           ,Comms and Computing           ,DG04,Postage - General                       ,1014.39,04/08/2014,REV,STREETWISE COURIERS           
259,Central Services,SupS Facilities,Security Services,E02221,Employees                     ,Direct Employee Expenses      ,AA17,Agency Staff & Casual Paymts            ,2246.4,01/08/2014,REV,SIGHT & SOUND                 
260,Central Services,SupS Facilities,Security Services,E02221,Employees                     ,Direct Employee Expenses      ,AA17,Agency Staff & Casual Paymts            ,2246.4,01/08/2014,REV,SIGHT & SOUND                 
261,Central Services,SupS Facilities,Security Services,E02221,Employees                     ,Direct Employee Expenses      ,AA17,Agency Staff & Casual Paymts            ,2071.2,01/08/2014,REV,SIGHT & SOUND                 
262,Central Services,SupS Facilities,Security Services,E02221,Employees                     ,Direct Employee Expenses      ,AA17,Agency Staff & Casual Paymts            ,2187.6,01/08/2014,REV,SIGHT & SOUND                 
263,Central Services,SupS Facilities,Security Services,E02221,Employees                     ,Direct Employee Expenses      ,AA17,Agency Staff & Casual Paymts            ,2246.4,01/08/2014,REV,SIGHT & SOUND                 
264,Central Services,SupS Facilities,Civic Centre,E02222,Premises Related Expenditure  ,RepairsAlterations&MtceOfBldgs,BA29,BUILD MAINT MGT FEES                    ,601.5,31/07/2014,REV,EDE'S (U.K.) LTD              
265,Central Services,SupS Facilities,Facilities,E02231,Premises Related Expenditure  ,RepairsAlterations&MtceOfBldgs,BA02,ENERGY CONSERVATION                     ,1315.84,05/06/2014,REV,STARK SOFTWARE INTERNATIONAL  
266,Central Services,SupS Facilities,Facilities,E02231,Premises Related Expenditure  ,RepairsAlterations&MtceOfBldgs,BA02,ENERGY CONSERVATION                     ,1583.28,11/06/2014,REV,BERGEN ENERGI                 
267,Central Services,SupS Facilities,Facilities,E02231,Premises Related Expenditure  ,RepairsAlterations&MtceOfBldgs,BA90,Water Hygiene                           ,3375,13/08/2014,REV,FRONTLINE DATA LIMITED        
268,Central Services,SupS Facilities,Facilities,E02231,Premises Related Expenditure  ,RepairsAlterations&MtceOfBldgs,BA90,Water Hygiene                           ,1414,06/07/2014,REV,REDACTED
269,Central Services,SupS Facilities,Facilities,E02231,Supplies & Services           ,Equip Furniture/Materials     ,DA01,Equipment - R & M                       ,900,14/04/2014,REV,PRIORITY RISK LTD             
270,Central Services,SupS Facilities,FM External Fees,E02239,Premises Related Expenditure  ,RepairsAlterations&MtceOfBldgs,BA01,DDM - General Building                  ,1462.5,30/06/2014,REV,BUXTON ASSOCS (CONS) ENG.LTD  
271,Central Services,SupS Facilities,FM External Fees,E02239,Premises Related Expenditure  ,RepairsAlterations&MtceOfBldgs,BA01,DDM - General Building                  ,550,31/07/2014,REV,BUXTON ASSOCS (CONS) ENG.LTD  
272,Central Services,SupS Facilities,FM External Fees,E02239,Premises Related Expenditure  ,RepairsAlterations&MtceOfBldgs,BA01,DDM - General Building                  ,1660.38,24/03/2014,REV,SALTASH ENTERPRISES LTD       
273,Central Services,SupS Facilities,FM External Fees,E02239,Premises Related Expenditure  ,RepairsAlterations&MtceOfBldgs,BA01,DDM - General Building                  ,2550,15/05/2014,REV,REDACTED
274,Central Services,SupS Facilities,FM External Fees,E02239,Premises Related Expenditure  ,RepairsAlterations&MtceOfBldgs,BA29,Build Maint Mgt Fees                    ,735,21/07/2014,REV,PRIORITY RISK LTD             
275,Central Services,SupS Facilities,Corporate Services Buildings,E02240,Premises Related Expenditure  ,RepairsAlterations&MtceOfBldgs,BA01,DDM - General Building                  ,4064,30/07/2014,REV,COBSEN-DAVIES ROOFING (LOND)LT
276,Central Services,SupS Facilities,Corporate Services Buildings,E02240,Premises Related Expenditure  ,RepairsAlterations&MtceOfBldgs,BA03,DDM - Mechanical                        ,3875.62,15/08/2014,REV,EUROPA NATIONWIDE TECH.SER.LTD
277,Central Services,SupS Facilities,Corporate Services Buildings,E02240,Premises Related Expenditure  ,RepairsAlterations&MtceOfBldgs,BA03,DDM - Mechanical                        ,3875.62,15/07/2014,REV,EUROPA NATIONWIDE TECH.SER.LTD
278,Central Services,SupS Facilities,Corporate Services Buildings,E02240,Premises Related Expenditure  ,RepairsAlterations&MtceOfBldgs,BA29,Build Maint Mgt Fees                    ,2518.61,15/08/2014,REV,EUROPA NATIONWIDE TECH.SER.LTD
279,Central Services,SupS Facilities,Corporate Services Buildings,E02240,Premises Related Expenditure  ,RepairsAlterations&MtceOfBldgs,BA29,Build Maint Mgt Fees                    ,2518.61,15/07/2014,REV,EUROPA NATIONWIDE TECH.SER.LTD
280,Central Services,SupS Facilities,Corporate Services Buildings,E02240,Premises Related Expenditure  ,Energy Costs                  ,BB02,Electricity                             ,509.29,01/08/2014,REV,SCOTTISHPOWER                 
281,Central Services,SupS Facilities,Corporate Services Buildings,E02240,Premises Related Expenditure  ,Energy Costs                  ,BB02,Electricity                             ,11157.41,08/08/2014,REV,SCOTTISHPOWER                 
282,Central Services,SupS Facilities,Corporate Services Buildings,E02240,Premises Related Expenditure  ,Energy Costs                  ,BB03,Gas (incl. Butane)                      ,7687.2,05/08/2014,REV,GAZPROM MARKETING&TRADING LTD 
283,Central Services,SupS Facilities,Corporate Services Buildings,E02240,Premises Related Expenditure  ,Water Services                ,BE01,Use of Water (Metered)                  ,1164.71,27/06/2014,REV,SUTTON AND EAST SURREY WATER  
284,Central Services,SupS Facilities,Corporate Services Buildings,E02240,Premises Related Expenditure  ,Water Services                ,BE01,Use of Water (Metered)                  ,1280.95,25/07/2014,REV,SUTTON AND EAST SURREY WATER  
285,Adult Social Care,OP 65 & Over Day Care,Pollards Hill Day Centre,E02270,Premises Related Expenditure  ,Cleaning and Domestic Supplies,BH01,Cleaning Materials                      ,504,20/08/2014,REV,GREENHAM                      
286,Adult Social Care,OP 65 & Over Day Care,Pollards Hill Day Centre,E02270,Premises Related Expenditure  ,Cleaning and Domestic Supplies,BH01,Cleaning Materials                      ,504,08/08/2014,REV,GREENHAM                      
287,Adult Social Care,OP 65 & Over Day Care,Pollards Hill Day Centre,E02270,Premises Related Expenditure  ,Cleaning and Domestic Supplies,BH03,Cleaning Services                       ,1239.08,05/08/2014,REV,BIRKIN CLEANING SERVICES LTD  
288,Adult Social Care,OP 65 & Over Day Care,Pollards Hill Day Centre,E02270,Premises Related Expenditure  ,Cleaning and Domestic Supplies,BH03,Cleaning Services                       ,1421.8,05/08/2014,REV,BIRKIN CLEANING SERVICES LTD  
289,Adult Social Care,OP 65 & Over Day Care,Pollards Hill Day Centre,E02270,Premises Related Expenditure  ,Cleaning and Domestic Supplies,BH03,Cleaning Services                       ,6596.17,05/08/2014,REV,BIRKIN CLEANING SERVICES LTD  
290,Adult Social Care,OP 65 & Over Day Care,Pollards Hill Day Centre,E02270,Premises Related Expenditure  ,Cleaning and Domestic Supplies,BH03,Cleaning Services                       ,3093.61,01/08/2014,REV,BIRKIN CLEANING SERVICES LTD  
291,Adult Social Care,OP 65 & Over Day Care,Pollards Hill Day Centre,E02270,Premises Related Expenditure  ,Cleaning and Domestic Supplies,BH03,Cleaning Services                       ,1492.52,01/08/2014,REV,BIRKIN CLEANING SERVICES LTD  
292,Adult Social Care,OP 65 & Over Day Care,Pollards Hill Day Centre,E02270,Premises Related Expenditure  ,Cleaning and Domestic Supplies,BH03,Cleaning Services                       ,1222.2,05/08/2014,REV,BIRKIN CLEANING SERVICES LTD  
293,Adult Social Care,OP 65 & Over Day Care,Pollards Hill Day Centre,E02270,Premises Related Expenditure  ,Cleaning and Domestic Supplies,BH03,Cleaning Services                       ,835.04,01/08/2014,REV,BIRKIN CLEANING SERVICES LTD  
294,Adult Social Care,OP 65 & Over Day Care,Pollards Hill Day Centre,E02270,Premises Related Expenditure  ,Cleaning and Domestic Supplies,BH03,Cleaning Services                       ,1540.02,05/08/2014,REV,BIRKIN CLEANING SERVICES LTD  
295,Adult Social Care,OP 65 & Over Day Care,Pollards Hill Day Centre,E02270,Premises Related Expenditure  ,Cleaning and Domestic Supplies,BH03,Cleaning Services                       ,1673.61,05/08/2014,REV,BIRKIN CLEANING SERVICES LTD  
296,Adult Social Care,OP 65 & Over Day Care,Pollards Hill Day Centre,E02270,Third Party Payments          ,Private Contractors           ,EH02,Miscellaneous Hired Services            ,553.14,01/08/2014,REV,OCS GROUP UK LTD T/A CANNON   
297,Cultural Env Reg&Plan Services,Parks & Open Spaces,E & R Buildings,E02344,Premises Related Expenditure  ,RepairsAlterations&MtceOfBldgs,BA03,DDM - Mechanical                        ,502.88,15/08/2014,REV,EUROPA NATIONWIDE TECH.SER.LTD
298,Cultural Env Reg&Plan Services,Parks & Open Spaces,E & R Buildings,E02344,Premises Related Expenditure  ,RepairsAlterations&MtceOfBldgs,BA03,DDM - Mechanical                        ,525.06,15/07/2014,REV,EUROPA NATIONWIDE TECH.SER.LTD
299,Cultural Env Reg&Plan Services,Parks & Open Spaces,E & R Buildings,E02344,Premises Related Expenditure  ,RepairsAlterations&MtceOfBldgs,BA03,DDM - Mechanical                        ,525.06,15/08/2014,REV,EUROPA NATIONWIDE TECH.SER.LTD
300,Cultural Env Reg&Plan Services,Parks & Open Spaces,E & R Buildings,E02344,Premises Related Expenditure  ,RepairsAlterations&MtceOfBldgs,BA03,DDM - Mechanical                        ,502.88,15/07/2014,REV,EUROPA NATIONWIDE TECH.SER.LTD
301,Adult Social Care,PS u65 Day Care,C & H Buildings,E02345,Premises Related Expenditure  ,RepairsAlterations&MtceOfBldgs,BA01,DDM - General Building                  ,895,13/08/2014,REV,SYMES FENCING                 
302,Cultural Env Reg&Plan Services,Parks & Open Spaces,Leisure Buildings,E02350,Premises Related Expenditure  ,RepairsAlterations&MtceOfBldgs,BA01,DDM - General Building                  ,975,22/07/2014,REV,KC DRAINS LTD                 
303,Cultural Env Reg&Plan Services,Parks & Open Spaces,Leisure Buildings,E02350,Premises Related Expenditure  ,RepairsAlterations&MtceOfBldgs,BA03,DDM - Mechanical                        ,546.02,15/07/2014,REV,EUROPA NATIONWIDE TECH.SER.LTD
304,Cultural Env Reg&Plan Services,Parks & Open Spaces,Leisure Buildings,E02350,Premises Related Expenditure  ,RepairsAlterations&MtceOfBldgs,BA03,DDM - Mechanical                        ,546.02,15/08/2014,REV,EUROPA NATIONWIDE TECH.SER.LTD
305,Cultural Env Reg&Plan Services,Parks & Open Spaces,Leisure Buildings,E02350,Premises Related Expenditure  ,RepairsAlterations&MtceOfBldgs,BA05,DDM - Electrical                        ,532.82,01/07/2014,REV,EUROPA NATIONWIDE TECH.SER.LTD
306,Central Services,SupS DOF,Director of Corporate Services,E04060,Employees                     ,Direct Employee Expenses      ,AA17,Agency Staff & Casual Paymts            ,2275,01/07/2014,REV,REDACTED
307,Central Services,SupS DOF,Director of Corporate Services,E04060,Supplies & Services           ,Services                      ,DF11,Counsel's Fees                          ,1662.5,11/08/2014,REV,REDACTED
308,Central Services,SupS DOF,AD RESOURCES,E04061,Employees                     ,Direct Employee Expenses      ,AA17,Agency Staff & Casual Paymts            ,14250,04/08/2014,REV,REDACTED
309,Central Services,SupS DOF,AD RESOURCES,E04061,Employees                     ,Direct Employee Expenses      ,AA17,Agency Staff & Casual Paymts            ,15750,04/08/2014,REV,REDACTED
310,Central Services,SupS DOF,AD RESOURCES,E04061,Supplies & Services           ,Services                      ,DF03,CONSULTANTS                             ,8510,05/08/2014,REV,PUBLIC SECTOR CONSULTANTS     
311,Central Services,SupS DOF,AD RESOURCES,E04061,Supplies & Services           ,Grants and Subscriptions      ,DJ04,SUBSCRIPTIONS                           ,2110,07/08/2014,REV,CIPFA                         
312,Central Services,SupS DOF,AD RESOURCES,E04061,Supplies & Services           ,Grants and Subscriptions      ,DJ04,SUBSCRIPTIONS                           ,750,26/02/2014,REV,CIPFA                         
313,Central Services,SupS Audit and Fraud,Internal Audit&Service Review,E05101,Supplies & Services           ,Services                      ,DF58,Audit fee                               ,1140,30/05/2014,REV,GRANT THORNTON UK LLP         
314,Central Services,SupS Audit and Fraud,Internal Audit&Service Review,E05101,Supplies & Services           ,Services                      ,DF58,Audit fee                               ,2535,05/07/2014,REV,LONDON BOROUGH OF SUTTON      
315,Central Services,SupS Strategic Finance,Treasury & Insurance,E06222,Employees                     ,Direct Employee Expenses      ,AA17,Agency Staff & Casual Paymts            ,4700,23/07/2014,REV,RANDSTAD FIN & PROF LTD.      
316,Central Services,SupS Strategic Finance,Treasury & Insurance,E06222,Employees                     ,Direct Employee Expenses      ,AA17,Agency Staff & Casual Paymts            ,7050,12/08/2014,REV,RANDSTAD FIN & PROF LTD.      
317,Central Services,GENERATED ACCOUNT,Parking Cash Collect'n Contrct,E06225,Third Party Payments          ,Private Contractors           ,EH02,Miscellaneous Hired Services            ,1040,31/07/2014,REV,BANKING AUTOMATION LTD        
318,Central Services,GENERATED ACCOUNT,Parking Cash Collect'n Contrct,E06225,Third Party Payments          ,Private Contractors           ,EH02,Miscellaneous Hired Services            ,1167.71,31/07/2014,REV,BANKING AUTOMATION LTD        
319,Central Services,GENERATED ACCOUNT,Parking Cash Collect'n Contrct,E06225,Third Party Payments          ,Private Contractors           ,EH02,Miscellaneous Hired Services            ,10937.3,31/07/2014,REV,BANKING AUTOMATION LTD        
320,Central Services,SupS DOF,Service Accountancy,E06227,Employees                     ,Direct Employee Expenses      ,AA17,Agency Staff & Casual Paymts            ,4600,23/07/2014,REV,RANDSTAD FIN & PROF LTD.      
321,Central Services,SupS DOF,Service Accountancy,E06227,Employees                     ,Direct Employee Expenses      ,AA17,Agency Staff & Casual Paymts            ,6210,15/08/2014,REV,RANDSTAD FIN & PROF LTD.      
322,Central Services,SupS Legal,AD CORPORATE GOVERNANCE,E10279,Supplies & Services           ,Expenses                      ,DH02,Conferences                             ,770,21/07/2014,REV,GOVNET COMMUNICATIONS         
323,Central Services,Registration of electors,Electoral Registration,E10285,Employees                     ,Direct Employee Expenses      ,AA17,Agency Staff & Casual Paymts            ,8518.18,14/05/2014,REV,REDACTED
324,Central Services,SupS Legal,Shared Legal Service,E10288,Employees                     ,Indirect Employee Expenses    ,AB57,External Training Costs                 ,1250,18/08/2014,REV,THE LAW SOCIETY               
325,Central Services,SupS Legal,Shared Legal Service,E10288,Supplies & Services           ,Equip Furniture/Materials     ,DA80,Books                                   ,1887,17/07/2014,REV,THOMSON REUTERS               
326,Central Services,SupS Legal,Shared Legal Service,E10288,Supplies & Services           ,Comms and Computing           ,DG04,Postage - General                       ,2553.6,31/07/2014,REV,DX NETWORK SERVICES LTD       
327,Central Services,SupS Legal,Richmond Legal,E10289,Supplies & Services           ,Services                      ,DF11,Counsel's Fees                          ,1500,28/07/2014,REV,REDACTED
328,Central Services,SupS Legal,Richmond Legal,E10289,Supplies & Services           ,Services                      ,DF11,Counsel's Fees                          ,4500,21/07/2014,REV,REDACTED
329,Central Services,SupS Legal,Richmond Legal,E10289,Supplies & Services           ,Services                      ,DF11,Counsel's Fees                          ,1200,31/07/2014,REV,REDACTED
330,Central Services,SupS Legal,Richmond Legal,E10289,Supplies & Services           ,Services                      ,DF95,Services from Provider                  ,1500,07/07/2014,REV,ARC PARTNERS                  
331,Central Services,SupS Legal,4 Borough Legal Service                 ,E10290,Supplies & Services           ,Services                      ,DF03,Consultants                             ,3129.73,12/08/2014,REV,LEXIS NEXIS                   
332,Central Services,SupS Legal,4 Borough Legal Service                 ,E10290,Supplies & Services           ,Services                      ,DF03,Consultants                             ,1752.15,25/07/2014,REV,BROWNJACOBSON                 
333,Central Services,SupS Legal,K&S Shared Legal                        ,E10291,Supplies & Services           ,Equip Furniture/Materials     ,DA80,Books                                   ,1887,17/07/2014,REV,THOMSON REUTERS               
334,Central Services,SupS Legal,K&S Shared Legal                        ,E10291,Supplies & Services           ,Comms and Computing           ,DG04,Postage - General                       ,2553.61,31/07/2014,REV,DX NETWORK SERVICES LTD       
335,Central Services,SupS Legal,Kingston Legal                          ,E10292,Supplies & Services           ,Services                      ,DF11,Counsel's Fees                          ,-628.5,21/01/2014,REV,REDACTED
336,Central Services,SupS Legal,Kingston Legal                          ,E10292,Supplies & Services           ,Services                      ,DF11,Counsel's Fees                          ,830,01/07/2014,REV,REDACTED
337,Central Services,SupS Legal,Kingston Legal                          ,E10292,Supplies & Services           ,Services                      ,DF11,Counsel's Fees                          ,1900,26/06/2014,REV,REDACTED
338,Central Services,SupS Legal,Kingston Legal                          ,E10292,Supplies & Services           ,Services                      ,DF11,Counsel's Fees                          ,1000,24/07/2014,REV,REDACTED
339,Central Services,SupS Legal,Kingston Legal                          ,E10292,Supplies & Services           ,Services                      ,DF11,Counsel's Fees                          ,750,05/06/2014,REV,REDACTED
340,Central Services,SupS Legal,Sutton Legal                            ,E10293,Supplies & Services           ,Services                      ,DF11,Counsel's Fees                          ,500,23/07/2014,REV,REDACTED
341,Central Services,SupS Legal,Sutton Legal                            ,E10293,Supplies & Services           ,Services                      ,DF11,Counsel's Fees                          ,1130,18/07/2014,REV,REDACTED
342,Central Services,SupS Legal,Sutton Legal                            ,E10293,Supplies & Services           ,Services                      ,DF11,Counsel's Fees                          ,1800,18/07/2014,REV,REDACTED
343,Central Services,SupS Legal,Sutton Legal                            ,E10293,Supplies & Services           ,Services                      ,DF11,Counsel's Fees                          ,1425,09/07/2014,REV,REDACTED
344,Central Services,SupS Legal,Sutton Legal                            ,E10293,Supplies & Services           ,Services                      ,DF11,Counsel's Fees                          ,750,12/08/2014,REV,REDACTED
345,Central Services,SupS Legal,Sutton Legal                            ,E10293,Supplies & Services           ,Services                      ,DF11,Counsel's Fees                          ,1432,23/06/2014,REV,REDACTED
346,Central Services,SupS Legal,Sutton Legal                            ,E10293,Supplies & Services           ,Services                      ,DF11,Counsel's Fees                          ,2398.75,16/07/2014,REV,REDACTED
347,Central Services,SupS Legal,Sutton Legal                            ,E10293,Supplies & Services           ,Services                      ,DF11,Counsel's Fees                          ,1240,08/07/2014,REV,REDACTED
348,Central Services,SupS Legal,Sutton Legal                            ,E10293,Supplies & Services           ,Services                      ,DF11,Counsel's Fees                          ,570,09/07/2014,REV,REDACTED
349,Central Services,SupS Legal,Sutton Legal                            ,E10293,Supplies & Services           ,Services                      ,DF11,Counsel's Fees                          ,2700,06/08/2014,REV,REDACTED
350,Central Services,SupS Legal,Sutton Legal                            ,E10293,Supplies & Services           ,Services                      ,DF11,Counsel's Fees                          ,3277.5,08/07/2014,REV,REDACTED
351,Central Services,SupS Legal,Sutton Legal                            ,E10293,Supplies & Services           ,Services                      ,DF11,Counsel's Fees                          ,745,10/07/2014,REV,REDACTED
352,Central Services,SupS Legal,Sutton Legal                            ,E10293,Supplies & Services           ,Services                      ,DF11,Counsel's Fees                          ,1085,26/06/2014,REV,REDACTED
353,Central Services,SupS Legal,Sutton Legal                            ,E10293,Supplies & Services           ,Services                      ,DF11,Counsel's Fees                          ,1000,08/08/2014,REV,REDACTED
354,Central Services,SupS Legal,Sutton Legal                            ,E10293,Supplies & Services           ,Services                      ,DF11,Counsel's Fees                          ,607.5,22/07/2014,REV,REDACTED
355,Central Services,SupS Legal,Sutton Legal                            ,E10293,Supplies & Services           ,Services                      ,DF11,Counsel's Fees                          ,520,19/08/2014,REV,REDACTED
356,Central Services,SupS Legal,Sutton Legal                            ,E10293,Supplies & Services           ,Services                      ,DF11,Counsel's Fees                          ,1030,15/07/2014,REV,REDACTED
357,Central Services,SupS Legal,Sutton Legal                            ,E10293,Supplies & Services           ,Services                      ,DF14,Doctors and Other Fees                  ,1188,31/07/2014,REV,REDACTED
358,Central Services,SupS Legal,Sutton Legal                            ,E10293,Supplies & Services           ,Services                      ,DF14,Doctors and Other Fees                  ,4896.49,31/05/2014,REV,REDACTED
359,Central Services,SupS Legal,Sutton Legal                            ,E10293,Supplies & Services           ,Services                      ,DF14,Doctors and Other Fees                  ,2844.25,10/09/2013,REV,CF SOCIAL WORK                
360,Central Services,SupS Legal,Sutton Legal                            ,E10293,Supplies & Services           ,Services                      ,DF14,Doctors and Other Fees                  ,2016,16/06/2014,REV,MPA LTD                       
361,Central Services,SupS Legal,Sutton Legal                            ,E10293,Supplies & Services           ,Services                      ,DF14,Doctors and Other Fees                  ,1348.2,13/01/2014,REV,CARCANI RATHWELL LTD          
362,Central Services,SupS Legal,Sutton Legal                            ,E10293,Supplies & Services           ,Services                      ,DF95,Services from Provider                  ,14000,30/06/2014,REV,DAC BEACHCROFT                
363,Central Services,SupS Legal,Sutton Legal                            ,E10293,Supplies & Services           ,Services                      ,DF95,Services from Provider                  ,2822.02,31/07/2014,REV,LOCAL GOVERNMENT ASSOCIATION  
364,Central Services,SupS Legal,Sutton Legal                            ,E10293,Supplies & Services           ,Services                      ,DF95,Services from Provider                  ,960,23/10/2013,REV,REDACTED
365,Central Services,SupS Legal,Sutton Housing Partnership(SHP          ,E10294,Supplies & Services           ,Services                      ,DF11,Counsel's Fees                          ,1143.75,15/05/2014,REV,REDACTED
366,Central Services,SupS Legal,Achieving for Children (AFC),E10295,Supplies & Services           ,Services                      ,DF11,Counsel's Fees                          ,6027.08,07/01/2014,REV,REDACTED
367,Central Services,SupS Legal,Achieving for Children (AFC),E10295,Supplies & Services           ,Services                      ,DF11,Counsel's Fees                          ,1350,17/07/2014,REV,REDACTED
368,Central Services,SupS Legal,Achieving for Children (AFC),E10295,Supplies & Services           ,Services                      ,DF11,Counsel's Fees                          ,660,26/06/2014,REV,REDACTED
369,Central Services,SupS Legal,Achieving for Children (AFC),E10295,Supplies & Services           ,Services                      ,DF11,Counsel's Fees                          ,745,08/07/2014,REV,REDACTED
370,Central Services,SupS Legal,Achieving for Children (AFC),E10295,Supplies & Services           ,Services                      ,DF11,Counsel's Fees                          ,4000,21/07/2014,REV,REDACTED
371,Central Services,SupS Legal,Achieving for Children (AFC),E10295,Supplies & Services           ,Services                      ,DF11,Counsel's Fees                          ,1740,01/08/2014,REV,REDACTED
372,Central Services,SupS Legal,Achieving for Children (AFC),E10295,Supplies & Services           ,Services                      ,DF11,Counsel's Fees                          ,4410,07/07/2014,REV,REDACTED
373,Central Services,SupS Legal,Achieving for Children (AFC),E10295,Supplies & Services           ,Services                      ,DF11,Counsel's Fees                          ,510,23/07/2014,REV,REDACTED
374,Central Services,SupS Legal,Achieving for Children (AFC),E10295,Supplies & Services           ,Services                      ,DF14,Doctors and Other Fees                  ,645.5,13/08/2014,REV,GARY TAYLOR ASSOCIATES LTD    
375,Central Services,SupS Legal,Achieving for Children (AFC),E10295,Supplies & Services           ,Services                      ,DF14,Doctors and Other Fees                  ,504,04/04/2014,REV,REDACTED
376,Central Services,SupS Legal,Achieving for Children (AFC),E10295,Supplies & Services           ,Services                      ,DF14,Doctors and Other Fees                  ,1289,26/06/2014,REV,SECECETRA EXPERT SERVICES     
377,Central Services,SupS Legal,Achieving for Children (AFC),E10295,Supplies & Services           ,Services                      ,DF95,Services from Provider                  ,2667.26,04/08/2014,REV,T M COSTINGS LTD              
378,Central Services,SupS Legal,Achieving for Children (AFC),E10295,Supplies & Services           ,Services                      ,DF95,Services from Provider                  ,3074.37,24/06/2014,REV,SYMBOL FAMILY SUPPORT SERVICES
379,Central Services,SupS Legal,Achieving for Children (AFC),E10295,Supplies & Services           ,Services                      ,DF95,Services from Provider                  ,7760,24/05/2014,REV,APPLECROFT CONSULTANTS LTD    
380,Central Services,SupS IT,Social Care Info System (SCI)           ,E14357,Employees                     ,Direct Employee Expenses      ,AA17,Agency Staff & Casual Paymts            ,3091,06/08/2014,REV,HAYS RECRUITING EXPERTS       
381,Central Services,SupS IT,Social Care Info System (SCI)           ,E14357,Employees                     ,Direct Employee Expenses      ,AA17,Agency Staff & Casual Paymts            ,3107.5,23/07/2014,REV,HAYS RECRUITING EXPERTS       
382,Central Services,SupS IT,AD I&T,E14363,Employees                     ,Direct Employee Expenses      ,AA17,Agency Staff & Casual Paymts            ,10115,26/08/2014,REV,GATENBYSANDERSON LIMITED      
383,Central Services,SupS IT,AD I&T,E14363,Employees                     ,Direct Employee Expenses      ,AA17,Agency Staff & Casual Paymts            ,13387.5,24/07/2014,REV,GATENBY SANDERSON             
384,Central Services,SupS IT,Systems & Projects,E14366,Employees                     ,Direct Employee Expenses      ,AA17,Agency Staff & Casual Paymts            ,3268.54,23/07/2014,REV,REDACTED
385,Central Services,SupS IT,Systems & Projects,E14366,Employees                     ,Direct Employee Expenses      ,AA17,Agency Staff & Casual Paymts            ,1375,08/08/2014,REV,REDACTED
386,Central Services,SupS IT,Systems & Projects,E14366,Employees                     ,Direct Employee Expenses      ,AA17,Agency Staff & Casual Paymts            ,1100,01/08/2014,REV,REDACTED
387,Central Services,SupS IT,Systems & Projects,E14366,Employees                     ,Direct Employee Expenses      ,AA17,Agency Staff & Casual Paymts            ,1375,18/07/2014,REV,REDACTED
388,Central Services,SupS IT,Systems & Projects,E14366,Supplies & Services           ,Comms and Computing           ,DG02,Software Licences                       ,5283.09,14/08/2014,REV,SITE IMPROVE LTD              
389,Central Services,SupS IT,Systems & Projects,E14366,Supplies & Services           ,Comms and Computing           ,DG02,Software Licences                       ,19000,30/07/2014,REV,FIRMSTEP                      
390,Central Services,SupS IT,Systems & Projects,E14366,Supplies & Services           ,Comms and Computing           ,DG15,Network Maintenance                     ,8500,08/08/2014,REV,CIVICA UK LIMITED             
391,Central Services,SupS IT,Systems & Projects,E14366,Supplies & Services           ,Comms and Computing           ,DG15,Network Maintenance                     ,8500,08/08/2014,REV,CIVICA UK LIMITED             
392,Central Services,SupS IT,Systems & Projects,E14366,Supplies & Services           ,Comms and Computing           ,DG63,Software Licences - Data                ,1343.76,16/06/2014,REV,CACI LIMITED                  
393,Central Services,SupS IT,Systems & Projects,E14366,Supplies & Services           ,Comms and Computing           ,DG63,Software Licences - Data                ,2192.87,16/06/2014,REV,CACI LIMITED                  
394,Central Services,SupS IT,Systems & Projects,E14366,Supplies & Services           ,Comms and Computing           ,DG63,Software Licences - Data                ,548.21,16/06/2014,REV,CACI LIMITED                  
395,Central Services,SupS IT,Systems & Projects,E14366,Supplies & Services           ,Comms and Computing           ,DG63,Software Licences - Data                ,700.94,16/06/2014,REV,CACI LIMITED                  
396,Central Services,SupS IT,Systems & Projects,E14366,Supplies & Services           ,Comms and Computing           ,DG63,Software Licences - Data                ,937.95,16/06/2014,REV,CACI LIMITED                  
397,Central Services,SupS IT,Systems & Projects,E14366,Supplies & Services           ,Comms and Computing           ,DG63,Software Licences - Data                ,937.95,16/06/2014,REV,CACI LIMITED                  
398,Central Services,SupS IT,Systems & Projects,E14366,Supplies & Services           ,Comms and Computing           ,DG63,Software Licences - Data                ,3692.76,16/06/2014,REV,CACI LIMITED                  
399,Central Services,SupS IT,Systems & Projects,E14366,Supplies & Services           ,Comms and Computing           ,DG63,Software Licences - Data                ,1168.24,16/06/2014,REV,CACI LIMITED                  
400,Central Services,SupS IT,Systems & Projects,E14366,Supplies & Services           ,Comms and Computing           ,DG63,Software Licences - Data                ,533.4,16/06/2014,REV,CACI LIMITED                  
401,Central Services,SupS IT,Systems & Projects,E14366,Supplies & Services           ,Comms and Computing           ,DG63,Software Licences - Data                ,831.52,16/06/2014,REV,CACI LIMITED                  
402,Central Services,SupS IT,Systems & Projects,E14366,Supplies & Services           ,Comms and Computing           ,DG63,Software Licences - Data                ,937.95,16/06/2014,REV,CACI LIMITED                  
403,Central Services,SupS IT,Systems & Projects,E14366,Supplies & Services           ,Comms and Computing           ,DG63,Software Licences - Data                ,1128.34,16/06/2014,REV,CACI LIMITED                  
404,Central Services,SupS IT,Systems & Projects,E14366,Supplies & Services           ,Comms and Computing           ,DG63,Software Licences - Data                ,1538.65,16/06/2014,REV,CACI LIMITED                  
405,Central Services,SupS IT,Systems & Projects,E14366,Supplies & Services           ,Comms and Computing           ,DG63,Software Licences - Data                ,10256.98,16/06/2014,REV,CACI LIMITED                  
406,Central Services,SupS IT,Operations & Telecomms,E14367,Employees                     ,Direct Employee Expenses      ,AA17,Agency Staff & Casual Paymts            ,3360,31/07/2014,REV,REDACTED
407,Central Services,SupS IT,Operations & Telecomms,E14367,Supplies & Services           ,Comms and Computing           ,DG15,Network Maintenance                     ,899,06/08/2014,REV,AJP SOLUTIONS                 
408,Central Services,SupS IT,Operations & Telecomms,E14367,Supplies & Services           ,Comms and Computing           ,DG15,Network Maintenance                     ,600,06/08/2014,REV,AJP SOLUTIONS                 
409,Central Services,SupS IT,Operations & Telecomms,E14367,Supplies & Services           ,Comms and Computing           ,DG15,Network Maintenance                     ,3000,06/08/2014,REV,AJP SOLUTIONS                 
410,Central Services,SupS IT,Operations & Telecomms,E14367,Supplies & Services           ,Comms and Computing           ,DG54,Corporate Telephones                    ,2992.67,02/08/2014,REV,COLT TELECOMMUNICATIONS       
411,Central Services,SupS IT,Operations & Telecomms,E14367,Supplies & Services           ,Comms and Computing           ,DG54,Corporate Telephones                    ,1094.22,29/07/2014,REV,O2 (UK) LIMITED               
412,Central Services,SupS IT,Operations & Telecomms,E14367,Supplies & Services           ,Comms and Computing           ,DG54,Corporate Telephones                    ,5960.55,04/08/2014,REV,T MOBILE (UK)                 
413,Central Services,SupS IT,Distributed Services,E14368,Supplies & Services           ,Comms and Computing           ,DG63,Software Licences - Data                ,2720,01/08/2014,REV,STATSEEKER                    
414,Central Services,SupS IT,Distributed Services,E14368,Supplies & Services           ,Comms and Computing           ,DG63,Software Licences - Data                ,17246.43,20/08/2014,REV,AXIAL SYSTEMS                 
415,Central Services,SupS IT,Corp Saving-IT Consolidation,E14370,Premises Related Expenditure  ,RepairsAlterations&MtceOfBldgs,BA01,DDM - General Building                  ,4250,25/07/2014,REV,LIFESTYLE WINDOW SYSTEMS      
416,Central Services,SupS IT,Corp Saving-IT Consolidation,E14370,Premises Related Expenditure  ,RepairsAlterations&MtceOfBldgs,BA01,DDM - General Building                  ,2918,22/08/2014,REV,LIFESTYLE WINDOW SYSTEMS      
417,Central Services,SupS IT,No longer used,E14371,Employees                     ,Direct Employee Expenses      ,AA17,Agency Staff & Casual Paymts            ,2060,23/06/2014,REV,REDACTED
418,Central Services,SupS IT,No longer used,E14371,Employees                     ,Direct Employee Expenses      ,AA17,Agency Staff & Casual Paymts            ,1648,30/06/2014,REV,REDACTED
419,Central Services,SupS IT,Business Systems - Deptl Supt,E14377,Supplies & Services           ,Comms and Computing           ,DG57,Licences Microsoft Select               ,3135,24/07/2014,REV,SOFTCAT LTD                   
420,Central Services,SupS IT,Business Systems - Deptl Supt,E14377,Supplies & Services           ,Comms and Computing           ,DG57,Licences Microsoft Select               ,3333,24/07/2014,REV,SOFTCAT LTD                   
421,Cultural Env Reg&Plan Services,Housing Standards,Shared Regulatory Service Proj          ,G00091,Supplies & Services           ,Services                      ,DF03,Consultants                             ,7000,05/08/2014,REV,GATENBYSANDERSON LIMITED      
422,Cultural Env Reg&Plan Services,Housing Standards,Shared Regulatory Service Proj          ,G00091,Supplies & Services           ,Services                      ,DF03,Consultants                             ,7000,20/08/2014,REV,GATENBYSANDERSON LIMITED      
423,Cultural Env Reg&Plan Services,Mgt & Support (Env),Senior Mgt. - E.S.C.,G00100,Supplies & Services           ,Services                      ,DF03,Consultants                             ,6300,14/08/2014,REV,STEER DAVIES GLEAS            
424,Cultural Env Reg&Plan Services,BC Regs & Other not split,HoS - PP&D                              ,G00111,Supplies & Services           ,Services                      ,DF11,Counsel's Fees                          ,1278.75,02/07/2014,REV,REDACTED
425,Highways & Transport Services,Hwys/Rds (struct) not split,C'way & F'way Mtce,G00121,Supplies & Services           ,Comms and Computing           ,DG07,Computer Software                       ,1695,08/08/2014,REV,TRL LIMITED                   
426,Highways & Transport Services,Hwys/Rds (struct) not split,C'way & F'way Mtce,G00121,Supplies & Services           ,Grants and Subscriptions      ,DJ04,Subscriptions                           ,1303,06/08/2014,REV,LONDON BRIDGES ENG. GROUP     
427,Highways & Transport Services,Repair prin/oth rds not split,Walk Sheets,G00127,Third Party Payments          ,Private Contractors           ,EH56,Carriageway/Fway Maint                  ,1204.69,06/08/2014,REV,FM CONWAY LTD                 
428,Highways & Transport Services,Repair prin/oth rds not split,Walk Sheets,G00127,Third Party Payments          ,Private Contractors           ,EH56,Carriageway/Fway Maint                  ,8919.84,06/08/2014,REV,FM CONWAY LTD                 
429,Highways & Transport Services,Repair prin/oth rds not split,Walk Sheets,G00127,Third Party Payments          ,Private Contractors           ,EH56,Carriageway/Fway Maint                  ,552.95,08/08/2014,REV,FM CONWAY LTD                 
430,Highways & Transport Services,Repair prin/oth rds not split,Walk Sheets,G00127,Third Party Payments          ,Private Contractors           ,EH56,Carriageway/Fway Maint                  ,600.68,08/08/2014,REV,FM CONWAY LTD                 
431,Highways & Transport Services,Repair prin/oth rds not split,Walk Sheets,G00127,Third Party Payments          ,Private Contractors           ,EH56,Carriageway/Fway Maint                  ,1504.04,18/08/2014,REV,FM CONWAY LTD                 
432,Highways & Transport Services,Saf mtc prin/oth rds not split,Traffic Signs.,G00160,Third Party Payments          ,Private Contractors           ,EH02,Miscellaneous Hired Services            ,1294.72,06/08/2014,REV,FM CONWAY LTD                 
433,Highways & Transport Services,,TRAF & HWYS CAPITAL PROJECTS,G00210,Third Party Payments          ,Private Contractors           ,EH01,Miscellaneous Contrct Services          ,642,08/08/2014,REV,UK POWER NETWORKS (OPERATIONS)
434,Highways & Transport Services,,TRAF & HWYS CAPITAL PROJECTS,G00210,Third Party Payments          ,Private Contractors           ,EH01,Miscellaneous Contrct Services          ,526,06/08/2014,REV,UK POWER NETWORKS (OPERATIONS)
435,Highways & Transport Services,Street Lighting.,Street Lighting .,G00260,Premises Related Expenditure  ,Energy Costs                  ,BB02,Electricity                             ,49044.75,04/08/2014,REV,SCOTTISHPOWER                 
436,Highways & Transport Services,Street Lighting.,Street Lighting .,G00260,Third Party Payments          ,Private Contractors           ,EH01,Miscellaneous Agency Services           ,1124,06/08/2014,REV,UK POWER NETWORKS (OPERATIONS)
437,Highways & Transport Services,Street Lighting.,Street Lighting .,G00260,Third Party Payments          ,Private Contractors           ,EH01,Miscellaneous Agency Services           ,642.52,18/08/2014,REV,MAY GURNEY LTD T/A CARTLEDGE  
438,Highways & Transport Services,Street Lighting.,Street Lighting .,G00260,Third Party Payments          ,Private Contractors           ,EH01,Miscellaneous Agency Services           ,526,06/08/2014,REV,UK POWER NETWORKS (OPERATIONS)
439,Highways & Transport Services,Street Lighting.,Street Lighting .,G00260,Third Party Payments          ,Private Contractors           ,EH01,Miscellaneous Agency Services           ,642,06/08/2014,REV,UK POWER NETWORKS (OPERATIONS)
440,Highways & Transport Services,Street Lighting.,Street Lighting .,G00260,Third Party Payments          ,Private Contractors           ,EH01,Miscellaneous Agency Services           ,642,12/08/2014,REV,UK POWER NETWORKS (OPERATIONS)
441,Highways & Transport Services,Street Lighting.,Street Lighting .,G00260,Third Party Payments          ,Private Contractors           ,EH01,Miscellaneous Agency Services           ,642,06/08/2014,REV,UK POWER NETWORKS (OPERATIONS)
442,Highways & Transport Services,Street Lighting.,Street Lighting .,G00260,Third Party Payments          ,Private Contractors           ,EH01,Miscellaneous Agency Services           ,2375.02,18/08/2014,REV,MAY GURNEY LTD T/A CARTLEDGE  
443,Highways & Transport Services,Street Lighting.,Street Lighting .,G00260,Third Party Payments          ,Private Contractors           ,EH01,Miscellaneous Agency Services           ,734,08/08/2014,REV,UK POWER NETWORKS (OPERATIONS)
444,Highways & Transport Services,Off-street parking,Coombe Lane,G00292,Premises Related Expenditure  ,Energy Costs                  ,BB02,Electricity                             ,731.41,24/06/2014,REV,SCOTTISHPOWER                 
445,Highways & Transport Services,Off-street parking,"St. Mks Rd, Multi Sty",G00308,Premises Related Expenditure  ,Rents                         ,BC01,Miscellaneous Rents                     ,4629.44,18/07/2014,REV,FISHER PROPERTY CONSULTANTS   
446,Highways & Transport Services,Safe routes inc schl x patrol,DFT Child Pedestrian,G00324,Supplies & Services           ,Services                      ,DF03,Consultants                             ,2454.79,27/08/2014,REV,REDACTED
447,Highways & Transport Services,Parking Enforcement not split,Operational Running Costs,G00331,Supplies & Services           ,Equip Furniture/Materials     ,DA01,Equipment - R & M                       ,734,28/03/2014,REV,SALTASH ENTERPRISES LTD       
448,Highways & Transport Services,Parking Enforcement not split,Operational Running Costs,G00331,Supplies & Services           ,Equip Furniture/Materials     ,DA09,Equip-Purchases                         ,5943.84,15/07/2014,REV,MAY GURNEY LTD T/A CARTLEDGE  
449,Highways & Transport Services,Parking Enforcement not split,Operational Running Costs,G00331,Supplies & Services           ,Prntng Stnry Gen Off Exp      ,DE01,External Printing                       ,2690.8,25/07/2014,REV,NAGELS UK LTD                 
450,Highways & Transport Services,Parking Enforcement not split,Operational Running Costs,G00331,Supplies & Services           ,Comms and Computing           ,DG61,Computer Servs Special                  ,900,24/07/2014,REV,IMPERIAL CIVIL ENFORC.SOLUT.  
451,Highways & Transport Services,Hwys/Rds (struct) not split,Footpath Crossings.,G00390,Third Party Payments          ,Private Contractors           ,EH56,Carriageway/Fway Maint                  ,2550.1,18/08/2014,REV,FM CONWAY LTD                 
452,Highways & Transport Services,Hwys/Rds (struct) not split,Footpath Crossings.,G00390,Third Party Payments          ,Private Contractors           ,EH56,Carriageway/Fway Maint                  ,1732.35,06/08/2014,REV,FM CONWAY LTD                 
453,Highways & Transport Services,Hwys/Rds (struct) not split,Footpath Crossings.,G00390,Third Party Payments          ,Private Contractors           ,EH56,Carriageway/Fway Maint                  ,4380.94,06/08/2014,REV,FM CONWAY LTD                 
454,Cultural Env Reg&Plan Services,Street Clean - Not highways,Street Cleansing (Inc. Gully),G00492,Supplies & Services           ,Equip Furniture/Materials     ,DA01,Equipment - R & M                       ,880.3,31/07/2014,REV,N A BROWN LTD                 
455,Cultural Env Reg&Plan Services,Street Clean - Not highways,Street Cleansing (Inc. Gully),G00492,Supplies & Services           ,Equip Furniture/Materials     ,DA01,Equipment - R & M                       ,990,27/06/2014,REV,R.J.H.WELDING                 
456,Cultural Env Reg&Plan Services,Street Clean - Not highways,Street Cleansing (Inc. Gully),G00492,Supplies & Services           ,Equip Furniture/Materials     ,DA01,Equipment - R & M                       ,654.85,30/07/2014,REV,GLASDON UK LTD                
457,Cultural Env Reg&Plan Services,Street Clean - Not highways,Street Cleansing (Inc. Gully),G00492,Supplies & Services           ,Equip Furniture/Materials     ,DA08,Tools-Purchase                          ,1425.7,22/08/2014,REV,BELL BRUSH                    
458,Cultural Env Reg&Plan Services,Street Clean - Not highways,Street Cleansing (Inc. Gully),G00492,Supplies & Services           ,Equip Furniture/Materials     ,DA08,Tools-Purchase                          ,727.04,01/08/2014,REV,BELL BRUSH                    
459,Cultural Env Reg&Plan Services,Street Clean - Not highways,Street Cleansing (Inc. Gully),G00492,Supplies & Services           ,Equip Furniture/Materials     ,DA32,Wheeled Bins                            ,896.4,08/08/2014,REV,SPIDER UK LTD                 
460,Cultural Env Reg&Plan Services,Street Clean - Not highways,Street Cleansing (Inc. Gully),G00492,Supplies & Services           ,Clothing Unfrms Laundry       ,DC02,Clothing & Uniforms                     ,1691.15,12/08/2014,REV,SAFETY MANAGEMENT             
461,Cultural Env Reg&Plan Services,Street Clean - Not highways,Street Cleansing (Inc. Gully),G00492,Supplies & Services           ,Clothing Unfrms Laundry       ,DC02,Clothing & Uniforms                     ,570,13/08/2014,REV,SAFETY MANAGEMENT             
462,Cultural Env Reg&Plan Services,Street Clean - Not highways,Street Cleansing (Inc. Gully),G00492,Third Party Payments          ,Private Contractors           ,EH10,Contract Payments                       ,8883.33,30/07/2014,REV,WRAP                          
463,Cultural Env Reg&Plan Services,Street Clean - Not highways,Street Cleansing (Inc. Gully),G00492,Third Party Payments          ,Private Contractors           ,EH56,ABANDONED VEHICLES                      ,22500,05/08/2014,REV,BLACKBURN IT SERV. T/A BBITS  
464,Cultural Env Reg&Plan Services,Street Clean - Not highways,Street Cleansing (Inc. Gully),G00492,Third Party Payments          ,Private Contractors           ,EH56,ABANDONED VEHICLES                      ,3500,05/08/2014,REV,BLACKBURN IT SERV. T/A BBITS  
465,Cultural Env Reg&Plan Services,Street Clean - Not highways,Graffiti,G00495,Supplies & Services           ,Clothing Unfrms Laundry       ,DC02,Clothing & Uniforms                     ,650,23/07/2014,REV,SAFETY MANAGEMENT             
466,Cultural Env Reg&Plan Services,Waste Disposal (not separated),Waste Disposal .,G00550,Third Party Payments          ,Private Contractors           ,EH04,C1 Viridor SLWP Landfill Contract       ,294724.01,30/06/2014,REV,KINGSTON CORPORATION          
467,Cultural Env Reg&Plan Services,Waste Disposal (not separated),Waste Disposal .,G00550,Third Party Payments          ,Private Contractors           ,EH10,SLWP C1 HAULAGE DRY RECYCLABLES         ,4727.44,30/06/2014,REV,KINGSTON CORPORATION          
468,Cultural Env Reg&Plan Services,Waste Disposal (not separated),Waste Disposal .,G00550,Third Party Payments          ,Private Contractors           ,EH11,SLWP PROCUREMENT COSTS                  ,10794.54,30/06/2014,REV,KINGSTON CORPORATION          
469,Cultural Env Reg&Plan Services,Waste Disposal (not separated),Waste Disposal .,G00550,Third Party Payments          ,Private Contractors           ,EH66,Clinical Waste Disposal                 ,1107.11,31/07/2014,REV,S.GRUNDON (WASTE) LTD.        
470,Cultural Env Reg&Plan Services,Waste Disposal (not separated),Waste Disposal .,G00550,Third Party Payments          ,Private Contractors           ,EH91,Disposal of Asbestos                    ,3360.91,21/07/2014,REV,CITY OF LONDON CORPORATION    
471,Cultural Env Reg&Plan Services,Waste Disposal (not separated),Waste Disposal .,G00550,Third Party Payments          ,Private Contractors           ,EH96,GULLY DISPOSAL                          ,599.59,31/07/2014,REV,CORY ENVIRONMENTAL LIMITED    
472,Cultural Env Reg&Plan Services,Civic Amenity Sites,Garth Road Site,G00580,Third Party Payments          ,Private Contractors           ,EH63,TRANSPORT FEE - LANDFILL                ,2452.8,30/06/2014,REV,KINGSTON CORPORATION          
473,Cultural Env Reg&Plan Services,Civic Amenity Sites,Garth Road Site,G00580,Third Party Payments          ,Private Contractors           ,EH63,TRANSPORT FEE - LANDFILL                ,505.14,30/06/2014,REV,KINGSTON CORPORATION          
474,Cultural Env Reg&Plan Services,Civic Amenity Sites,Garth Road Site,G00580,Third Party Payments          ,Private Contractors           ,EH63,TRANSPORT FEE - LANDFILL                ,4292.06,30/06/2014,REV,KINGSTON CORPORATION          
475,Cultural Env Reg&Plan Services,Public Health,Dog Control.,G00620,Third Party Payments          ,Private Contractors           ,EH02,Miscellaneous Hired Services            ,4692,06/08/2014,REV,NOAH'S ARK ENVIRONMENTAL SERV.
476,Cultural Env Reg&Plan Services,Recycling (Collection),Recycling Activities,G00640,Third Party Payments          ,Private Contractors           ,EH03,C3 DRY RECYCLING GATE FEE               ,3692.78,30/06/2014,REV,KINGSTON CORPORATION          
477,Cultural Env Reg&Plan Services,Recycling (Collection),Recycling Activities,G00640,Third Party Payments          ,Private Contractors           ,EH03,C3 DRY RECYCLING GATE FEE               ,45762.65,30/06/2014,REV,KINGSTON CORPORATION          
478,Cultural Env Reg&Plan Services,Recycling (Collection),Recycling Activities,G00640,Third Party Payments          ,Private Contractors           ,EH03,C3 DRY RECYCLING GATE FEE               ,7854.18,30/06/2014,REV,KINGSTON CORPORATION          
479,Cultural Env Reg&Plan Services,Recycling (Collection),Recycling Activities,G00640,Third Party Payments          ,Private Contractors           ,EH03,C3 DRY RECYCLING GATE FEE               ,16239.16,30/06/2014,REV,KINGSTON CORPORATION          
480,Cultural Env Reg&Plan Services,Recycling (Collection),Recycling Activities,G00640,Third Party Payments          ,Private Contractors           ,EH03,C3 DRY RECYCLING GATE FEE               ,1973,30/06/2014,REV,KINGSTON CORPORATION          
481,Cultural Env Reg&Plan Services,Recycling (Collection),Recycling Activities,G00640,Third Party Payments          ,Private Contractors           ,EH10,SLWP C1 EFW HAULAGE                     ,12269.39,30/06/2014,REV,KINGSTON CORPORATION          
482,Cultural Env Reg&Plan Services,Recycling (Collection),Recycling Activities,G00640,Third Party Payments          ,Private Contractors           ,EH18,C3 FOOD WASTE GATE FEE                  ,5000.24,30/06/2014,REV,KINGSTON CORPORATION          
483,Cultural Env Reg&Plan Services,Recycling (Collection),Recycling Activities,G00640,Third Party Payments          ,Private Contractors           ,EH18,C3 FOOD WASTE GATE FEE                  ,5987.1,30/06/2014,REV,KINGSTON CORPORATION          
484,Cultural Env Reg&Plan Services,Recycling (Collection),Recycling Activities,G00640,Third Party Payments          ,Private Contractors           ,EH18,C3 FOOD WASTE GATE FEE                  ,-4046.88,11/07/2014,REV,KINGSTON CORPORATION          
485,Cultural Env Reg&Plan Services,Recycling (Collection),Recycling Activities,G00640,Third Party Payments          ,Private Contractors           ,EH18,C3 FOOD WASTE GATE FEE                  ,-4341.04,11/07/2014,REV,KINGSTON CORPORATION          
486,Cultural Env Reg&Plan Services,Recycling (Collection),Recycling Activities,G00640,Third Party Payments          ,Private Contractors           ,EH18,C3 FOOD WASTE GATE FEE                  ,-4153.44,11/07/2014,REV,KINGSTON CORPORATION          
487,Cultural Env Reg&Plan Services,Recycling (Collection),Recycling Activities,G00640,Third Party Payments          ,Private Contractors           ,EH18,C3 FOOD WASTE GATE FEE                  ,2743,30/06/2014,REV,KINGSTON CORPORATION          
488,Cultural Env Reg&Plan Services,Recycling (Collection),Recycling Activities,G00640,Third Party Payments          ,Private Contractors           ,EH19,C1 EFW ACCEPTANCE & BULK                ,869.6,30/06/2014,REV,KINGSTON CORPORATION          
489,Cultural Env Reg&Plan Services,Recycling (Collection),Recycling Activities,G00640,Third Party Payments          ,Private Contractors           ,EH63,EFW C3 GATE FEES                        ,1836.1,30/06/2014,REV,KINGSTON CORPORATION          
490,Cultural Env Reg&Plan Services,Recycling (Collection),Recycling Activities,G00640,Third Party Payments          ,Private Contractors           ,EH63,EFW C3 GATE FEES                        ,5355.38,30/06/2014,REV,KINGSTON CORPORATION          
491,Cultural Env Reg&Plan Services,Recycling (Collection),Recycling Activities,G00640,Third Party Payments          ,Private Contractors           ,EH63,EFW C3 GATE FEES                        ,8089,30/06/2014,REV,KINGSTON CORPORATION          
492,Cultural Env Reg&Plan Services,Recycling (Collection),Recycling Activities,G00640,Third Party Payments          ,Private Contractors           ,EH90,ADDITIONAL EFW UNDER SUFFOLK SCHEME     ,12709.5,30/06/2014,REV,KINGSTON CORPORATION          
493,Cultural Env Reg&Plan Services,Recycling (Collection),Recycling Activities,G00640,Third Party Payments          ,Private Contractors           ,EH90,ADDITIONAL EFW UNDER SUFFOLK SCHEME     ,61104.88,30/06/2014,REV,KINGSTON CORPORATION          
494,Cultural Env Reg&Plan Services,Recycling (Collection),Recycling Activities,G00640,Third Party Payments          ,Private Contractors           ,EH90,ADDITIONAL EFW UNDER SUFFOLK SCHEME     ,89688.06,30/06/2014,REV,KINGSTON CORPORATION          
495,Cultural Env Reg&Plan Services,Recycling (Collection),Recycling Activities,G00640,Third Party Payments          ,Private Contractors           ,EH94,C1 DRY RECYCLING ACCEPTANCE & BULK      ,31092.54,30/06/2014,REV,KINGSTON CORPORATION          
496,Cultural Env Reg&Plan Services,Recycling (Collection),Recycling Collection,G00645,Supplies & Services           ,Equip Furniture/Materials     ,DA32,Wheeled Bins                            ,8022.86,06/08/2014,REV,STRAIGHT PLC                  
497,Cultural Env Reg&Plan Services,Recycling (Collection),Garden Waste Service,G00647,Supplies & Services           ,Equip Furniture/Materials     ,DA32,Wheeled Bins (GARDEN BINS)              ,10695,30/06/2014,REV,SSI SCHAEFER LTD              
498,Cultural Env Reg&Plan Services,Recycling (Collection),Food Waste Service,G00648,Premises Related Expenditure  ,Cleaning and Domestic Supplies,BH03,Cleaning Services                       ,2976.25,31/07/2014,REV,KLEENCARE SERVICE LTD         
499,Cultural Env Reg&Plan Services,Recycling (Collection),Food Waste Service,G00648,Supplies & Services           ,Equip Furniture/Materials     ,DA31,Waste Sacks & Bags                      ,60490.56,13/08/2014,REV,CROMWELL POLYTHENE            
500,Cultural Env Reg&Plan Services,Recycling (Collection),Food Waste Service,G00648,Supplies & Services           ,Equip Furniture/Materials     ,DA31,Waste Sacks & Bags                      ,1924,13/08/2014,REV,CROMWELL POLYTHENE            
501,Cultural Env Reg&Plan Services,Recycling (Collection),WCSS Recycl Encourgmnt&Incentv          ,G00650,Supplies & Services           ,Prntng Stnry Gen Off Exp      ,DE22,Marketing                               ,2506,20/07/2014,REV,SUSTAINABLE MERTON            
502,Cultural Env Reg&Plan Services,Recycling (Collection),WCSS Recycl Encourgmnt&Incentv          ,G00650,Supplies & Services           ,Services                      ,DF32,Customer Survey                         ,31390,14/07/2014,REV,ENVENTURE                     
503,Cultural Env Reg&Plan Services,Recycling (Collection),WCSS Recycl Encourgmnt&Incentv          ,G00650,Supplies & Services           ,Services                      ,DF32,Customer Survey                         ,1185.2,06/08/2014,REV,ENVENTURE                     
504,Cultural Env Reg&Plan Services,Household Waste Collection,Refuse Collection (Operations),G00661,Transport Related Expenditure ,Direct Transport Costs        ,CA52,Reps Vehicles Ins Claims                ,1500,15/05/2014,REV,S.E.T.S SERVICES              
505,Cultural Env Reg&Plan Services,Household Waste Collection,Refuse Collection (Operations),G00661,Transport Related Expenditure ,Direct Transport Costs        ,CA52,Reps Vehicles Ins Claims                ,750,19/06/2014,REV,S.E.T.S SERVICES              
506,Cultural Env Reg&Plan Services,Household Waste Collection,Refuse Collection (Operations),G00661,Transport Related Expenditure ,Direct Transport Costs        ,CA52,Reps Vehicles Ins Claims                ,1500,03/04/2014,REV,S.E.T.S SERVICES              
507,Cultural Env Reg&Plan Services,Household Waste Collection,Refuse Collection (Operations),G00661,Transport Related Expenditure ,Direct Transport Costs        ,CA52,Reps Vehicles Ins Claims                ,750,19/06/2014,REV,S.E.T.S SERVICES              
508,Cultural Env Reg&Plan Services,Household Waste Collection,Refuse Collection (Operations),G00661,Supplies & Services           ,Clothing Unfrms Laundry       ,DC02,Clothing & Uniforms                     ,702.58,23/07/2014,REV,SAFETY MANAGEMENT             
509,Cultural Env Reg&Plan Services,Trade Waste Collection,Commercial Waste,G00663,Supplies & Services           ,Equip Furniture/Materials     ,DA31,Waste Sacks & Bags                      ,3509.4,01/08/2014,REV,CROMWELL POLYTHENE            
510,Cultural Env Reg&Plan Services,Trade Waste Collection,Commercial Waste,G00663,Supplies & Services           ,Equip Furniture/Materials     ,DA31,Waste Sacks & Bags                      ,870.33,01/08/2014,REV,CROMWELL POLYTHENE            
511,Cultural Env Reg&Plan Services,Trade Waste Collection,Commercial Waste,G00663,Supplies & Services           ,Equip Furniture/Materials     ,DA32,Wheeled Bins                            ,880,05/08/2014,REV,UK CONTAINER MAINTENANCE LTD  
512,Cultural Env Reg&Plan Services,Street Clean - Not highways,Waste Enforcement,G00680,Employees                     ,Direct Employee Expenses      ,AA17,Agency Staff & Casual Paymts            ,6239.94,09/07/2014,REV,REDACTED
513,Cultural Env Reg&Plan Services,Street Clean - Not highways,Waste Enforcement,G00680,Supplies & Services           ,Services                      ,DF30,Activities Programme                    ,700,07/07/2014,REV,DANGEROUS THEATRE COMPANY     
514,Cultural Env Reg&Plan Services,Street Clean - Not highways,Waste Enforcement,G00680,Third Party Payments          ,Private Contractors           ,EH02,Miscellaneous Hired Services            ,22635,30/06/2014,REV,KINGDOM SECURITY              
515,Cultural Env Reg&Plan Services,Inspect/Enforce (Consumer P),Trading Standards,G00690,Employees                     ,Direct Employee Expenses      ,AA17,Agency Staff & Casual Paymts            ,550,18/07/2014,REV,REDACTED
516,Cultural Env Reg&Plan Services,Inspect/Enforce (Consumer P),Trading Standards,G00690,Employees                     ,Direct Employee Expenses      ,AA17,Agency Staff & Casual Paymts            ,775,07/07/2014,REV,REDACTED
517,Cultural Env Reg&Plan Services,Inspect/Enforce (Consumer P),Trading Standards,G00690,Employees                     ,Direct Employee Expenses      ,AA17,Agency Staff & Casual Paymts            ,745,07/07/2014,REV,REDACTED
518,Cultural Env Reg&Plan Services,Inspect/Enforce (Consumer P),Trading Standards,G00690,Employees                     ,Direct Employee Expenses      ,AA17,Agency Staff & Casual Paymts            ,720,07/07/2014,REV,REDACTED
519,Cultural Env Reg&Plan Services,Inspect/Enforce (Consumer P),Trading Standards,G00690,Employees                     ,Direct Employee Expenses      ,AA17,Agency Staff & Casual Paymts            ,790,24/07/2014,REV,REDACTED
520,Cultural Env Reg&Plan Services,Mortuaries,Mortuary,G00700,Third Party Payments          ,Other Local Authorities       ,EB01,Payments to OLAs                        ,6434,25/07/2014,REV,ST GEORGES HEALTHCARE TRUST   
521,Cultural Env Reg&Plan Services,Mortuaries,Mortuary,G00700,Third Party Payments          ,Other Local Authorities       ,EB01,Payments to OLAs                        ,15685,25/07/2014,REV,ST GEORGES HEALTHCARE TRUST   
522,Cultural Env Reg&Plan Services,Pest Control,Pest Control,G00724,Supplies & Services           ,Equip Furniture/Materials     ,DA04,Materials                               ,710.98,13/08/2014,REV,KILLGERM CHEMICALS LIMITED    
523,Cultural Env Reg&Plan Services,Pest Control,Pest Control,G00724,Supplies & Services           ,Equip Furniture/Materials     ,DA04,Materials                               ,1644.06,13/08/2014,REV,KILLGERM CHEMICALS LIMITED    
524,Central Services,Grants - Voluntary Groups,Vestry Hall,G19290,Employees                     ,Direct Employee Expenses      ,AA17,Agency Staff & Casual Paymts            ,5148.13,10/08/2014,REV,REDACTED
525,Central Services,Grants - Voluntary Groups,Vestry Hall,G19290,Premises Related Expenditure  ,Energy Costs                  ,BB02,Electricity                             ,574.31,01/08/2014,REV,SCOTTISHPOWER                 
526,Central Services,Grants - Voluntary Groups,Vestry Hall,G19290,Premises Related Expenditure  ,Energy Costs                  ,BB02,Electricity                             ,564,02/07/2014,REV,SCOTTISHPOWER                 
527,Central Services,Grants - Voluntary Groups,Vestry Hall,G19290,Premises Related Expenditure  ,Energy Costs                  ,BB02,Electricity                             ,643.51,02/06/2014,REV,SCOTTISHPOWER                 
528,Central Services,Grants - Voluntary Groups,Vestry Hall,G19290,Premises Related Expenditure  ,Cleaning and Domestic Supplies,BH03,Cleaning Services                       ,1383.56,01/08/2014,REV,BIRKIN CLEANING SERVICES LTD  
529,Central Services,Grants - Voluntary Groups,Vestry Hall,G19290,Supplies & Services           ,Equip Furniture/Materials     ,DA09,Equip-Purchases                         ,1830,19/08/2014,REV,SUNA SUPPLIES LTD.            
530,Central Services,Grants - Voluntary Groups,Vestry Hall,G19290,Supplies & Services           ,Prntng Stnry Gen Off Exp      ,DE22,Marketing                               ,2437.5,18/08/2014,REV,REDACTED
531,Highways & Transport Services,Safe routes inc schl x patrol,School & Road Safety TFL                ,H01083,Supplies & Services           ,Equip Furniture/Materials     ,DA09,Equip-Purchases                         ,8486,27/06/2014,REV,LOCK IT SAFE LTD              
532,Cultural Env Reg&Plan Services,BC Regs & Other not split,Building Control,H01100,Supplies & Services           ,Services                      ,DF57,Consulting Engineers Fees               ,550,20/05/2014,REV,A.J.OAKES AND PARTNERS        
533,Cultural Env Reg&Plan Services,BC Regs & Other not split,Building Control,H01100,Supplies & Services           ,Services                      ,DF57,Consulting Engineers Fees               ,2282.01,07/03/2014,REV,LABC                          
534,Cultural Env Reg&Plan Services,DC Advice Apps & Reg not split,Development Control,H01130,Supplies & Services           ,Services                      ,DF02,Misc Advertising/Publicity              ,633.36,11/07/2014,REV,NEWSQUEST (LONDON)LTD         
535,Cultural Env Reg&Plan Services,DC Advice Apps & Reg not split,Development Control,H01130,Supplies & Services           ,Services                      ,DF02,Misc Advertising/Publicity              ,565.5,25/07/2014,REV,NEWSQUEST (LONDON)LTD         
536,Cultural Env Reg&Plan Services,DC Advice Apps & Reg not split,Development Control,H01130,Supplies & Services           ,Services                      ,DF02,Misc Advertising/Publicity              ,966.25,04/08/2014,REV,FM CONWAY LTD                 
537,Cultural Env Reg&Plan Services,DC Advice Apps & Reg not split,Development Control,H01130,Supplies & Services           ,Comms and Computing           ,DG09,Computer Purchases - Misc               ,1230,07/08/2014,REV,TOTAL COMPUTER NETWORKS       
538,Cultural Env Reg&Plan Services,DC Advice Apps & Reg not split,Development Control,H01130,Customer and client receipts  ,Fees                          ,RB56,Application Fees X                      ,1540,01/08/2014,REV,#REF!
539,Cultural Env Reg&Plan Services,Planning Policy not split,Spatial Policy,H01173,Supplies & Services           ,Services                      ,DF96,LBM Legal Services                      ,1500,08/07/2014,REV,REDACTED
540,Cultural Env Reg&Plan Services,Planning Policy not split,REGENERATION & INVESTMENT,H01174,Supplies & Services           ,Services                      ,DF03,Consultants                             ,1850,31/07/2014,REV,STUDIO WEAVE LTD              
541,Cultural Env Reg&Plan Services,Planning Policy not split,HPDG - Physical Regeneration,H01178,Supplies & Services           ,Services                      ,DF03,Consultants                             ,9000,05/08/2014,REV,WHITE LABEL CONSULTANTS       
542,Cultural Env Reg&Plan Services,Planning Policy not split,HPDG - Physical Regeneration,H01178,Supplies & Services           ,Services                      ,DF03,Consultants                             ,3750,13/08/2014,REV,DESIGN COUNCIL                
543,Cultural Env Reg&Plan Services,Planning Policy not split,HPDG - Physical Regeneration,H01178,Supplies & Services           ,Services                      ,DF03,Consultants                             ,1840,31/07/2014,REV,DESIGN COUNCIL                
544,Cultural Env Reg&Plan Services,Economic Dev (Not separated),REG &  PARTNERSHIPS STAFFING,H01200,Supplies & Services           ,Grants and Subscriptions      ,DJ01,Grants                                  ,8500,21/08/2014,REV,MERTON CHAMBER OF COMMERCE    
545,CS -Oth Operating Inc & Expend,Extraordinary Items & PY Adj.,MILES RD GENERATOR,H01203,Premises Related Expenditure  ,RepairsAlterations&MtceOfBldgs,BA06,Repairs & Maintenance General           ,7802,15/07/2014,REV,JD DESIGN                     
546,Cultural Env Reg&Plan Services,Economic Dev (Not separated),(LABGI)-BUSINESS SUPPORT,H01210,Supplies & Services           ,Grants and Subscriptions      ,DJ01,Grants                                  ,5500,15/08/2014,REV,KHANAGE LTD                   
547,Cultural Env Reg&Plan Services,Market Undertakings,MBIF (Admin),H01220,Supplies & Services           ,Services                      ,DF03,Consultants                             ,9629,09/07/2013,REV,LONDON SUSTAINABILITY EXCHANGE
548,Cultural Env Reg&Plan Services,Market Undertakings,MBIF (Admin),H01220,Supplies & Services           ,Services                      ,DF03,Consultants                             ,15558.2,17/09/2013,REV,LONDON SUSTAINABILITY EXCHANGE
549,Cultural Env Reg&Plan Services,Economic Dev (Not separated),GO GREEN PLUS (S106),H01225,Supplies & Services           ,Grants and Subscriptions      ,DJ54,Contributions                           ,2040.15,29/07/2014,REV,MERTON CHAMBER OF COMMERCE    
550,CS -Oth Operating Inc & Expend,T/A Vehicle Maintenance etc,Transport-Contract Hire,J01374,Transport Related Expenditure ,Direct Transport Costs        ,CA01,Petrol Derv & Oil                       ,37583.53,25/07/2014,REV,HARVEST ENERGY LIMITED        
551,CS -Oth Operating Inc & Expend,T/A Vehicle Maintenance etc,Transport-Contract Hire,J01374,Transport Related Expenditure ,Direct Transport Costs        ,CA52,Reps Vehicles Ins Claims                ,500,23/07/2014,REV,FLEETSPEED COACHWORKS LTD.    
552,CS -Oth Operating Inc & Expend,T/A Vehicle Maintenance etc,Transport-Contract Hire,J01374,Transport Related Expenditure ,Contract Hire and Op Leasing  ,CC53,Plant Hire for MRCS                     ,610,29/07/2014,REV,PFB HIRE LTD                  
553,CS -Oth Operating Inc & Expend,T/A Vehicle Maintenance etc,Transport-Contract Hire,J01374,Transport Related Expenditure ,Contract Hire and Op Leasing  ,CC53,Plant Hire for MRCS                     ,725,17/08/2014,REV,DRM MUNICIPAL SERVICES LIMITED
554,CS -Oth Operating Inc & Expend,T/A Vehicle Maintenance etc,Transport-Contract Hire,J01374,Transport Related Expenditure ,Contract Hire and Op Leasing  ,CC53,Plant Hire for MRCS                     ,610,24/06/2014,REV,PFB HIRE LTD                  
555,CS -Oth Operating Inc & Expend,T/A Vehicle Maintenance etc,Transport-Contract Hire,J01374,Transport Related Expenditure ,Contract Hire and Op Leasing  ,CC53,Plant Hire for MRCS                     ,759,31/07/2014,REV,REDACTED
556,CS -Oth Operating Inc & Expend,T/A Vehicle Maintenance etc,Transport-Contract Hire,J01374,Transport Related Expenditure ,Contract Hire and Op Leasing  ,CC53,Plant Hire for MRCS                     ,610,15/07/2014,REV,PFB HIRE LTD                  
557,CS -Oth Operating Inc & Expend,T/A Vehicle Maintenance etc,Transport-Contract Hire,J01374,Transport Related Expenditure ,Contract Hire and Op Leasing  ,CC53,Plant Hire for MRCS                     ,610,05/08/2014,REV,PFB HIRE LTD                  
558,CS -Oth Operating Inc & Expend,T/A Vehicle Maintenance etc,Transport-Contract Hire,J01374,Transport Related Expenditure ,Contract Hire and Op Leasing  ,CC53,Plant Hire for MRCS                     ,925,17/08/2014,REV,DRM MUNICIPAL SERVICES LIMITED
559,CS -Oth Operating Inc & Expend,T/A Vehicle Maintenance etc,Transport-Contract Hire,J01374,Transport Related Expenditure ,Contract Hire and Op Leasing  ,CC53,Plant Hire for MRCS                     ,925,08/08/2014,REV,DRM MUNICIPAL SERVICES LIMITED
560,CS -Oth Operating Inc & Expend,T/A Vehicle Maintenance etc,Transport-Contract Hire,J01374,Transport Related Expenditure ,Contract Hire and Op Leasing  ,CC53,Plant Hire for MRCS                     ,925,25/07/2014,REV,DRM MUNICIPAL SERVICES LIMITED
561,CS -Oth Operating Inc & Expend,T/A Vehicle Maintenance etc,Transport-Contract Hire,J01374,Transport Related Expenditure ,Contract Hire and Op Leasing  ,CC53,Plant Hire for MRCS                     ,610,08/07/2014,REV,PFB HIRE LTD                  
562,CS -Oth Operating Inc & Expend,T/A Vehicle Maintenance etc,Transport-Contract Hire,J01374,Transport Related Expenditure ,Contract Hire and Op Leasing  ,CC53,Plant Hire for MRCS                     ,610,22/07/2014,REV,PFB HIRE LTD                  
563,CS -Oth Operating Inc & Expend,T/A Vehicle Maintenance etc,Transport-Contract Hire,J01374,Transport Related Expenditure ,Contract Hire and Op Leasing  ,CC53,Plant Hire for MRCS                     ,610,01/07/2014,REV,PFB HIRE LTD                  
564,CS -Oth Operating Inc & Expend,T/A Vehicle Maintenance etc,Transport-Contract Hire,J01374,Transport Related Expenditure ,Contract Hire and Op Leasing  ,CC53,Plant Hire for MRCS                     ,2682.91,21/07/2014,REV,M6 VEHICLE HIRE               
565,CS -Oth Operating Inc & Expend,T/A Vehicle Maintenance etc,Transport-Contract Hire,J01374,Transport Related Expenditure ,Contract Hire and Op Leasing  ,CC53,Plant Hire for MRCS                     ,610,12/08/2014,REV,PFB HIRE LTD                  
566,CS -Oth Operating Inc & Expend,T/A Vehicle Maintenance etc,Transport-Contract Hire,J01374,Transport Related Expenditure ,Contract Hire and Op Leasing  ,CC53,Plant Hire for MRCS                     ,610,17/06/2014,REV,PFB HIRE LTD                  
567,CS -Oth Operating Inc & Expend,T/A Vehicle Maintenance etc,Transport-Contract Hire,J01374,Transport Related Expenditure ,Contract Hire and Op Leasing  ,CC53,Plant Hire for MRCS                     ,925,02/08/2014,REV,DRM MUNICIPAL SERVICES LIMITED
568,CS -Oth Operating Inc & Expend,T/A Vehicle Maintenance etc,Transport-Contract Hire,J01374,Transport Related Expenditure ,Contract Hire and Op Leasing  ,CC56,Plant Hire for Leisure                  ,1755,31/07/2014,REV,REDACTED
569,CS -Oth Operating Inc & Expend,T/A Vehicle Maintenance etc,Transport-Contract Hire,J01374,Transport Related Expenditure ,Contract Hire and Op Leasing  ,CC57,Pland Hire for Housing                  ,940,31/07/2014,REV,REDACTED
570,CS -Oth Operating Inc & Expend,T/A Vehicle Maintenance etc,Transport-Contract Hire,J01374,Transport Related Expenditure ,Contract Hire and Op Leasing  ,CC59,HIRING TRANSPORT OPERATIONS             ,1518,31/07/2014,REV,BURNT TREE VEHICLE RENTAL     
571,CS -Oth Operating Inc & Expend,T/A Vehicle Maintenance etc,Transport-Contract Hire,J01374,Transport Related Expenditure ,Contract Hire and Op Leasing  ,CC59,HIRING TRANSPORT OPERATIONS             ,2238.32,31/07/2014,REV,REDACTED
572,CS -Oth Operating Inc & Expend,T/A Vehicle Maintenance etc,Transport-Contract Hire,J01374,Transport Related Expenditure ,Contract Hire and Op Leasing  ,CC59,HIRING TRANSPORT OPERATIONS             ,1518,31/07/2014,REV,BURNT TREE VEHICLE RENTAL     
573,CS -Oth Operating Inc & Expend,T/A Vehicle Maintenance etc,Transport-Contract Hire,J01374,Transport Related Expenditure ,Contract Hire and Op Leasing  ,CC59,HIRING TRANSPORT OPERATIONS             ,1518,31/07/2014,REV,BURNT TREE VEHICLE RENTAL     
574,CS -Oth Operating Inc & Expend,T/A Vehicle Maintenance etc,Transport-Contract Hire,J01374,Transport Related Expenditure ,Contract Hire and Op Leasing  ,CC64,HIRING TRANSPORT SEN CABS               ,1598,31/07/2014,REV,CAPITAL CARS                  
575,CS -Oth Operating Inc & Expend,T/A Vehicle Maintenance etc,Transport-Contract Hire,J01374,Transport Related Expenditure ,Contract Hire and Op Leasing  ,CC64,HIRING TRANSPORT SEN CABS               ,1392,31/07/2014,REV,BARCLAYS ASSET & SALES FINANCE
576,CS -Oth Operating Inc & Expend,T/A Vehicle Maintenance etc,Transport-Contract Hire,J01374,Transport Related Expenditure ,Contract Hire and Op Leasing  ,CC64,HIRING TRANSPORT SEN CABS               ,1106,31/07/2014,REV,SHERWOOD TRANSPORT GROUP      
577,CS -Oth Operating Inc & Expend,T/A Vehicle Maintenance etc,Transport-Contract Hire,J01374,Transport Related Expenditure ,Contract Hire and Op Leasing  ,CC64,HIRING TRANSPORT SEN CABS               ,525,31/07/2014,REV,SHERWOOD TRANSPORT GROUP      
578,CS -Oth Operating Inc & Expend,T/A Vehicle Maintenance etc,Transport-Contract Hire,J01374,Transport Related Expenditure ,Contract Hire and Op Leasing  ,CC64,HIRING TRANSPORT SEN CABS               ,1950,31/07/2014,REV,BARCLAYS ASSET & SALES FINANCE
579,CS -Oth Operating Inc & Expend,T/A Vehicle Maintenance etc,Transport-Contract Hire,J01374,Transport Related Expenditure ,Contract Hire and Op Leasing  ,CC64,HIRING TRANSPORT SEN CABS               ,1596,31/07/2014,REV,BARCLAYS ASSET & SALES FINANCE
580,CS -Oth Operating Inc & Expend,T/A Vehicle Maintenance etc,Transport-Contract Hire,J01374,Transport Related Expenditure ,Contract Hire and Op Leasing  ,CC64,HIRING TRANSPORT SEN CABS               ,750,31/07/2014,REV,NVCAR HIRE LTD                
581,CS -Oth Operating Inc & Expend,T/A Vehicle Maintenance etc,Transport-Contract Hire,J01374,Transport Related Expenditure ,Contract Hire and Op Leasing  ,CC64,HIRING TRANSPORT SEN CABS               ,546,31/07/2014,REV,CHEAM STATION CARS            
582,CS -Oth Operating Inc & Expend,T/A Vehicle Maintenance etc,Transport-Contract Hire,J01374,Transport Related Expenditure ,Contract Hire and Op Leasing  ,CC64,HIRING TRANSPORT SEN CABS               ,2584,31/07/2014,REV,BARCLAYS ASSET & SALES FINANCE
583,CS -Oth Operating Inc & Expend,T/A Vehicle Maintenance etc,Transport-Contract Hire,J01374,Transport Related Expenditure ,Contract Hire and Op Leasing  ,CC64,HIRING TRANSPORT SEN CABS               ,2775,25/07/2014,REV,WALLINGTON CARS & COURIERS LTD
584,CS -Oth Operating Inc & Expend,T/A Vehicle Maintenance etc,Transport-Contract Hire,J01374,Transport Related Expenditure ,Contract Hire and Op Leasing  ,CC64,HIRING TRANSPORT SEN CABS               ,1184,31/07/2014,REV,CAPITAL CARS                  
585,CS -Oth Operating Inc & Expend,T/A Vehicle Maintenance etc,Transport-Contract Hire,J01374,Transport Related Expenditure ,Contract Hire and Op Leasing  ,CC64,HIRING TRANSPORT SEN CABS               ,1798,31/07/2014,REV,BARCLAYS ASSET & SALES FINANCE
586,CS -Oth Operating Inc & Expend,T/A Vehicle Maintenance etc,Transport-Contract Hire,J01374,Transport Related Expenditure ,Contract Hire and Op Leasing  ,CC64,HIRING TRANSPORT SEN CABS               ,2273,31/07/2014,REV,NVCAR HIRE LTD                
587,CS -Oth Operating Inc & Expend,T/A Vehicle Maintenance etc,Transport-Contract Hire,J01374,Transport Related Expenditure ,Contract Hire and Op Leasing  ,CC64,HIRING TRANSPORT SEN CABS               ,688,31/07/2014,REV,CAPITAL CARS                  
588,CS -Oth Operating Inc & Expend,T/A Vehicle Maintenance etc,Transport-Contract Hire,J01374,Transport Related Expenditure ,Contract Hire and Op Leasing  ,CC64,HIRING TRANSPORT SEN CABS               ,888,24/07/2014,REV,SILVERBURN FINANCE (UK) LTD   
589,CS -Oth Operating Inc & Expend,T/A Vehicle Maintenance etc,Transport-Contract Hire,J01374,Transport Related Expenditure ,Contract Hire and Op Leasing  ,CC64,HIRING TRANSPORT SEN CABS               ,770,31/07/2014,REV,CAPITAL CARS                  
590,CS -Oth Operating Inc & Expend,T/A Vehicle Maintenance etc,Transport-Contract Hire,J01374,Transport Related Expenditure ,Contract Hire and Op Leasing  ,CC64,HIRING TRANSPORT SEN CABS               ,2001,25/07/2014,REV,WALLINGTON CARS & COURIERS LTD
591,CS -Oth Operating Inc & Expend,T/A Vehicle Maintenance etc,Transport-Contract Hire,J01374,Transport Related Expenditure ,Contract Hire and Op Leasing  ,CC64,HIRING TRANSPORT SEN CABS               ,1147,31/07/2014,REV,CAPITAL CARS                  
592,CS -Oth Operating Inc & Expend,T/A Vehicle Maintenance etc,Transport-Contract Hire,J01374,Transport Related Expenditure ,Contract Hire and Op Leasing  ,CC64,HIRING TRANSPORT SEN CABS               ,800,31/07/2014,REV,SHERWOOD TRANSPORT GROUP      
593,CS -Oth Operating Inc & Expend,T/A Vehicle Maintenance etc,Transport-Contract Hire,J01374,Transport Related Expenditure ,Contract Hire and Op Leasing  ,CC64,HIRING TRANSPORT SEN CABS               ,1260,31/07/2014,REV,BARCLAYS ASSET & SALES FINANCE
594,CS -Oth Operating Inc & Expend,T/A Vehicle Maintenance etc,Transport-Contract Hire,J01374,Transport Related Expenditure ,Contract Hire and Op Leasing  ,CC64,HIRING TRANSPORT SEN CABS               ,1612,31/07/2014,REV,BARCLAYS ASSET & SALES FINANCE
595,CS -Oth Operating Inc & Expend,T/A Vehicle Maintenance etc,Transport-Contract Hire,J01374,Transport Related Expenditure ,Contract Hire and Op Leasing  ,CC64,HIRING TRANSPORT SEN CABS               ,819,31/07/2014,REV,NVCAR HIRE LTD                
596,CS -Oth Operating Inc & Expend,T/A Vehicle Maintenance etc,Transport-Contract Hire,J01374,Transport Related Expenditure ,Contract Hire and Op Leasing  ,CC64,HIRING TRANSPORT SEN CABS               ,2890,31/07/2014,REV,BARCLAYS ASSET & SALES FINANCE
597,CS -Oth Operating Inc & Expend,T/A Vehicle Maintenance etc,Transport-Contract Hire,J01374,Transport Related Expenditure ,Contract Hire and Op Leasing  ,CC64,HIRING TRANSPORT SEN CABS               ,1638,31/07/2014,REV,CAPITAL CARS                  
598,CS -Oth Operating Inc & Expend,T/A Vehicle Maintenance etc,Transport-Contract Hire,J01374,Transport Related Expenditure ,Contract Hire and Op Leasing  ,CC64,HIRING TRANSPORT SEN CABS               ,715,31/07/2014,REV,SHERWOOD TRANSPORT GROUP      
599,CS -Oth Operating Inc & Expend,T/A Vehicle Maintenance etc,Transport-Contract Hire,J01374,Transport Related Expenditure ,Contract Hire and Op Leasing  ,CC64,HIRING TRANSPORT SEN CABS               ,1300,31/07/2014,REV,A STAR TRANSPORT LIMITED      
600,CS -Oth Operating Inc & Expend,T/A Vehicle Maintenance etc,Transport-Contract Hire,J01374,Transport Related Expenditure ,Contract Hire and Op Leasing  ,CC64,HIRING TRANSPORT SEN CABS               ,608,30/07/2014,REV,CAPITAL CARS                  
601,CS -Oth Operating Inc & Expend,T/A Vehicle Maintenance etc,Transport-Contract Hire,J01374,Transport Related Expenditure ,Contract Hire and Op Leasing  ,CC64,HIRING TRANSPORT SEN CABS               ,2475,31/07/2014,REV,SHERWOOD TRANSPORT GROUP      
602,CS -Oth Operating Inc & Expend,T/A Vehicle Maintenance etc,Transport-Contract Hire,J01374,Transport Related Expenditure ,Contract Hire and Op Leasing  ,CC64,HIRING TRANSPORT SEN CABS               ,523.33,08/08/2014,REV,GALPINS SERVICE               
603,CS -Oth Operating Inc & Expend,T/A Vehicle Maintenance etc,Transport-Contract Hire,J01374,Transport Related Expenditure ,Contract Hire and Op Leasing  ,CC64,HIRING TRANSPORT SEN CABS               ,640,31/07/2014,REV,NVCAR HIRE LTD                
604,CS -Oth Operating Inc & Expend,T/A Vehicle Maintenance etc,Transport-Contract Hire,J01374,Transport Related Expenditure ,Contract Hire and Op Leasing  ,CC64,HIRING TRANSPORT SEN CABS               ,833,31/07/2014,REV,BRUNSWICK CARS LTD            
605,CS -Oth Operating Inc & Expend,T/A Vehicle Maintenance etc,Transport-Contract Hire,J01374,Transport Related Expenditure ,Contract Hire and Op Leasing  ,CC64,HIRING TRANSPORT SEN CABS               ,1216,31/07/2014,REV,CAPITAL CARS                  
606,CS -Oth Operating Inc & Expend,T/A Vehicle Maintenance etc,Transport-Contract Hire,J01374,Transport Related Expenditure ,Contract Hire and Op Leasing  ,CC64,HIRING TRANSPORT SEN CABS               ,1620,31/07/2014,REV,NVCAR HIRE LTD                
607,CS -Oth Operating Inc & Expend,T/A Vehicle Maintenance etc,Transport-Contract Hire,J01374,Transport Related Expenditure ,Contract Hire and Op Leasing  ,CC64,HIRING TRANSPORT SEN CABS               ,800,31/07/2014,REV,CHEAM STATION CARS            
608,CS -Oth Operating Inc & Expend,T/A Vehicle Maintenance etc,Transport-Contract Hire,J01374,Transport Related Expenditure ,Contract Hire and Op Leasing  ,CC64,HIRING TRANSPORT SEN CABS               ,660,31/07/2014,REV,CAPITAL CARS                  
609,CS -Oth Operating Inc & Expend,T/A Vehicle Maintenance etc,Transport-Contract Hire,J01374,Transport Related Expenditure ,Contract Hire and Op Leasing  ,CC64,HIRING TRANSPORT SEN CABS               ,1088,31/07/2014,REV,GALPINS SERVICE               
610,CS -Oth Operating Inc & Expend,T/A Vehicle Maintenance etc,Transport-Contract Hire,J01374,Transport Related Expenditure ,Contract Hire and Op Leasing  ,CC64,HIRING TRANSPORT SEN CABS               ,2120,31/07/2014,REV,NVCAR HIRE LTD                
611,CS -Oth Operating Inc & Expend,T/A Vehicle Maintenance etc,Transport-Contract Hire,J01374,Transport Related Expenditure ,Contract Hire and Op Leasing  ,CC64,HIRING TRANSPORT SEN CABS               ,1524.5,31/07/2014,REV,SHERWOOD TRANSPORT GROUP      
612,CS -Oth Operating Inc & Expend,T/A Vehicle Maintenance etc,Transport-Contract Hire,J01374,Transport Related Expenditure ,Contract Hire and Op Leasing  ,CC64,HIRING TRANSPORT SEN CABS               ,1440,31/07/2014,REV,SHERWOOD TRANSPORT GROUP      
613,CS -Oth Operating Inc & Expend,T/A Vehicle Maintenance etc,Transport-Contract Hire,J01374,Transport Related Expenditure ,Contract Hire and Op Leasing  ,CC64,HIRING TRANSPORT SEN CABS               ,1060,30/07/2014,REV,CAPITAL CARS                  
614,CS -Oth Operating Inc & Expend,T/A Vehicle Maintenance etc,Transport-Contract Hire,J01374,Transport Related Expenditure ,Contract Hire and Op Leasing  ,CC64,HIRING TRANSPORT SEN CABS               ,990,31/07/2014,REV,SHERWOOD TRANSPORT GROUP      
615,CS -Oth Operating Inc & Expend,T/A Vehicle Maintenance etc,Transport-Contract Hire,J01374,Transport Related Expenditure ,Contract Hire and Op Leasing  ,CC64,HIRING TRANSPORT SEN CABS               ,1960,31/07/2014,REV,BARCLAYS ASSET & SALES FINANCE
616,CS -Oth Operating Inc & Expend,T/A Vehicle Maintenance etc,Transport-Contract Hire,J01374,Transport Related Expenditure ,Contract Hire and Op Leasing  ,CC64,HIRING TRANSPORT SEN CABS               ,797,31/07/2014,REV,GALPINS SERVICE               
617,CS -Oth Operating Inc & Expend,T/A Vehicle Maintenance etc,Transport-Contract Hire,J01374,Transport Related Expenditure ,Contract Hire and Op Leasing  ,CC64,HIRING TRANSPORT SEN CABS               ,637,31/07/2014,REV,SHERWOOD TRANSPORT GROUP      
618,CS -Oth Operating Inc & Expend,T/A Vehicle Maintenance etc,Transport-Contract Hire,J01374,Transport Related Expenditure ,Contract Hire and Op Leasing  ,CC64,HIRING TRANSPORT SEN CABS               ,1260,31/07/2014,REV,CAPITAL CARS                  
619,CS -Oth Operating Inc & Expend,T/A Vehicle Maintenance etc,Transport-Contract Hire,J01374,Transport Related Expenditure ,Contract Hire and Op Leasing  ,CC64,HIRING TRANSPORT SEN CABS               ,2100,31/07/2014,REV,BARCLAYS ASSET & SALES FINANCE
620,CS -Oth Operating Inc & Expend,T/A Vehicle Maintenance etc,Transport-Contract Hire,J01374,Transport Related Expenditure ,Contract Hire and Op Leasing  ,CC64,HIRING TRANSPORT SEN CABS               ,890,31/07/2014,REV,NVCAR HIRE LTD                
621,CS -Oth Operating Inc & Expend,T/A Vehicle Maintenance etc,Transport-Contract Hire,J01374,Transport Related Expenditure ,Contract Hire and Op Leasing  ,CC64,HIRING TRANSPORT SEN CABS               ,1305,31/07/2014,REV,NVCAR HIRE LTD                
622,CS -Oth Operating Inc & Expend,T/A Vehicle Maintenance etc,Transport-Contract Hire,J01374,Transport Related Expenditure ,Contract Hire and Op Leasing  ,CC64,HIRING TRANSPORT SEN CABS               ,1904,31/07/2014,REV,SHERWOOD TRANSPORT GROUP      
623,CS -Oth Operating Inc & Expend,T/A Vehicle Maintenance etc,Transport-Contract Hire,J01374,Transport Related Expenditure ,Contract Hire and Op Leasing  ,CC64,HIRING TRANSPORT SEN CABS               ,756,24/07/2014,REV,SILVERBURN FINANCE (UK) LTD   
624,CS -Oth Operating Inc & Expend,T/A Vehicle Maintenance etc,Transport-Contract Hire,J01374,Transport Related Expenditure ,Contract Hire and Op Leasing  ,CC64,HIRING TRANSPORT SEN CABS               ,2805,31/07/2014,REV,SHERWOOD TRANSPORT GROUP      
625,CS -Oth Operating Inc & Expend,T/A Vehicle Maintenance etc,Transport-Contract Hire,J01374,Transport Related Expenditure ,Contract Hire and Op Leasing  ,CC64,HIRING TRANSPORT SEN CABS               ,1216,31/07/2014,REV,CAPITAL CARS                  
626,CS -Oth Operating Inc & Expend,T/A Vehicle Maintenance etc,Transport-Contract Hire,J01374,Transport Related Expenditure ,Contract Hire and Op Leasing  ,CC64,HIRING TRANSPORT SEN CABS               ,647.5,31/07/2014,REV,GALPINS SERVICE               
627,CS -Oth Operating Inc & Expend,T/A Vehicle Maintenance etc,Transport-Contract Hire,J01374,Transport Related Expenditure ,Contract Hire and Op Leasing  ,CC64,HIRING TRANSPORT SEN CABS               ,901,31/07/2014,REV,SHERWOOD TRANSPORT GROUP      
628,CS -Oth Operating Inc & Expend,T/A Vehicle Maintenance etc,Transport-Contract Hire,J01374,Transport Related Expenditure ,Contract Hire and Op Leasing  ,CC64,HIRING TRANSPORT SEN CABS               ,742.5,31/07/2014,REV,SHERWOOD TRANSPORT GROUP      
629,CS -Oth Operating Inc & Expend,T/A Vehicle Maintenance etc,Transport-Contract Hire,J01374,Transport Related Expenditure ,Contract Hire and Op Leasing  ,CC64,HIRING TRANSPORT SEN CABS               ,2460,31/07/2014,REV,BARCLAYS ASSET & SALES FINANCE
630,CS -Oth Operating Inc & Expend,T/A Vehicle Maintenance etc,Transport-Contract Hire,J01374,Transport Related Expenditure ,Contract Hire and Op Leasing  ,CC64,HIRING TRANSPORT SEN CABS               ,1160,31/07/2014,REV,SHERWOOD TRANSPORT GROUP      
631,CS -Oth Operating Inc & Expend,T/A Vehicle Maintenance etc,Transport-Contract Hire,J01374,Transport Related Expenditure ,Contract Hire and Op Leasing  ,CC64,HIRING TRANSPORT SEN CABS               ,720,31/07/2014,REV,CAPITAL CARS                  
632,CS -Oth Operating Inc & Expend,T/A Vehicle Maintenance etc,Transport-Contract Hire,J01374,Transport Related Expenditure ,Contract Hire and Op Leasing  ,CC64,HIRING TRANSPORT SEN CABS               ,2703,31/07/2014,REV,SHERWOOD TRANSPORT GROUP      
633,CS -Oth Operating Inc & Expend,T/A Vehicle Maintenance etc,Transport-Contract Hire,J01374,Transport Related Expenditure ,Contract Hire and Op Leasing  ,CC64,HIRING TRANSPORT SEN CABS               ,525,31/07/2014,REV,CAPITAL CARS                  
634,CS -Oth Operating Inc & Expend,T/A Vehicle Maintenance etc,Transport-Contract Hire,J01374,Transport Related Expenditure ,Contract Hire and Op Leasing  ,CC64,HIRING TRANSPORT SEN CABS               ,840,18/08/2014,REV,PREMIER CARS                  
635,CS -Oth Operating Inc & Expend,T/A Vehicle Maintenance etc,Transport-Contract Hire,J01374,Transport Related Expenditure ,Contract Hire and Op Leasing  ,CC64,HIRING TRANSPORT SEN CABS               ,2152,31/07/2014,REV,CAPITAL CARS                  
636,CS -Oth Operating Inc & Expend,T/A Vehicle Maintenance etc,Transport-Contract Hire,J01374,Transport Related Expenditure ,Contract Hire and Op Leasing  ,CC64,HIRING TRANSPORT SEN CABS               ,2711.04,24/07/2014,REV,SILVERBURN FINANCE (UK) LTD   
637,CS -Oth Operating Inc & Expend,T/A Vehicle Maintenance etc,Transport-Contract Hire,J01374,Transport Related Expenditure ,Contract Hire and Op Leasing  ,CC64,HIRING TRANSPORT SEN CABS               ,1742.5,31/07/2014,REV,SHERWOOD TRANSPORT GROUP      
638,CS -Oth Operating Inc & Expend,T/A Vehicle Maintenance etc,Transport-Contract Hire,J01374,Transport Related Expenditure ,Contract Hire and Op Leasing  ,CC64,HIRING TRANSPORT SEN CABS               ,1190.4,24/07/2014,REV,SILVERBURN FINANCE (UK) LTD   
639,CS -Oth Operating Inc & Expend,T/A Vehicle Maintenance etc,Transport-Contract Hire,J01374,Transport Related Expenditure ,Contract Hire and Op Leasing  ,CC64,HIRING TRANSPORT SEN CABS               ,2016,31/07/2014,REV,CAPITAL CARS                  
640,CS -Oth Operating Inc & Expend,T/A Vehicle Maintenance etc,Transport-Contract Hire,J01374,Transport Related Expenditure ,Contract Hire and Op Leasing  ,CC64,HIRING TRANSPORT SEN CABS               ,592,31/07/2014,REV,BARCLAYS ASSET & SALES FINANCE
641,CS -Oth Operating Inc & Expend,T/A Vehicle Maintenance etc,Transport-Contract Hire,J01374,Transport Related Expenditure ,Contract Hire and Op Leasing  ,CC64,HIRING TRANSPORT SEN CABS               ,1548.8,31/07/2014,REV,SHERWOOD TRANSPORT GROUP      
642,CS -Oth Operating Inc & Expend,T/A Vehicle Maintenance etc,Transport-Contract Hire,J01374,Transport Related Expenditure ,Contract Hire and Op Leasing  ,CC64,HIRING TRANSPORT SEN CABS               ,1410,31/07/2014,REV,CAPITAL CARS                  
643,CS -Oth Operating Inc & Expend,T/A Vehicle Maintenance etc,Transport-Contract Hire,J01374,Transport Related Expenditure ,Contract Hire and Op Leasing  ,CC64,HIRING TRANSPORT SEN CABS               ,664.55,24/07/2014,REV,SILVERBURN FINANCE (UK) LTD   
644,CS -Oth Operating Inc & Expend,T/A Vehicle Maintenance etc,Transport-Contract Hire,J01374,Transport Related Expenditure ,Contract Hire and Op Leasing  ,CC64,HIRING TRANSPORT SEN CABS               ,2703,31/07/2014,REV,SHERWOOD TRANSPORT GROUP      
645,CS -Oth Operating Inc & Expend,T/A Vehicle Maintenance etc,Transport-Contract Hire,J01374,Transport Related Expenditure ,Contract Hire and Op Leasing  ,CC64,HIRING TRANSPORT SEN CABS               ,972,31/07/2014,REV,NVCAR HIRE LTD                
646,CS -Oth Operating Inc & Expend,T/A Vehicle Maintenance etc,Transport-Contract Hire,J01374,Transport Related Expenditure ,Contract Hire and Op Leasing  ,CC64,HIRING TRANSPORT SEN CABS               ,1764,31/07/2014,REV,CAPITAL CARS                  
647,CS -Oth Operating Inc & Expend,T/A Vehicle Maintenance etc,Transport-Contract Hire,J01374,Transport Related Expenditure ,Contract Hire and Op Leasing  ,CC64,HIRING TRANSPORT SEN CABS               ,3500,31/07/2014,REV,SHERWOOD TRANSPORT GROUP      
648,CS -Oth Operating Inc & Expend,T/A Vehicle Maintenance etc,Transport-Contract Hire,J01374,Transport Related Expenditure ,Contract Hire and Op Leasing  ,CC64,HIRING TRANSPORT SEN CABS               ,1056,31/07/2014,REV,NVCAR HIRE LTD                
649,CS -Oth Operating Inc & Expend,T/A Vehicle Maintenance etc,Transport-Contract Hire,J01374,Transport Related Expenditure ,Contract Hire and Op Leasing  ,CC64,HIRING TRANSPORT SEN CABS               ,1386,31/07/2014,REV,SHERWOOD TRANSPORT GROUP      
650,CS -Oth Operating Inc & Expend,T/A Vehicle Maintenance etc,Transport-Contract Hire,J01374,Transport Related Expenditure ,Contract Hire and Op Leasing  ,CC64,HIRING TRANSPORT SEN CABS               ,2864,24/07/2014,REV,SILVERBURN FINANCE (UK) LTD   
651,CS -Oth Operating Inc & Expend,T/A Vehicle Maintenance etc,Transport-Contract Hire,J01374,Transport Related Expenditure ,Contract Hire and Op Leasing  ,CC64,HIRING TRANSPORT SEN CABS               ,532,24/07/2014,REV,SILVERBURN FINANCE (UK) LTD   
652,CS -Oth Operating Inc & Expend,T/A Vehicle Maintenance etc,Transport-Contract Hire,J01374,Transport Related Expenditure ,Contract Hire and Op Leasing  ,CC64,HIRING TRANSPORT SEN CABS               ,1260,31/07/2014,REV,CHEAM STATION CARS            
653,CS -Oth Operating Inc & Expend,T/A Vehicle Maintenance etc,Transport-Contract Hire,J01374,Transport Related Expenditure ,Contract Hire and Op Leasing  ,CC64,HIRING TRANSPORT SEN CABS               ,616,31/07/2014,REV,NVCAR HIRE LTD                
654,CS -Oth Operating Inc & Expend,T/A Vehicle Maintenance etc,Transport-Contract Hire,J01374,Transport Related Expenditure ,Contract Hire and Op Leasing  ,CC64,HIRING TRANSPORT SEN CABS               ,1590.6,24/07/2014,REV,SILVERBURN FINANCE (UK) LTD   
655,CS -Oth Operating Inc & Expend,T/A Vehicle Maintenance etc,Transport-Contract Hire,J01374,Transport Related Expenditure ,Contract Hire and Op Leasing  ,CC64,HIRING TRANSPORT SEN CABS               ,1190,31/07/2014,REV,SHERWOOD TRANSPORT GROUP      
656,CS -Oth Operating Inc & Expend,T/A Vehicle Maintenance etc,Transport-Contract Hire,J01374,Transport Related Expenditure ,Contract Hire and Op Leasing  ,CC64,HIRING TRANSPORT SEN CABS               ,1122,24/07/2014,REV,SILVERBURN FINANCE (UK) LTD   
657,CS -Oth Operating Inc & Expend,T/A Vehicle Maintenance etc,Transport-Contract Hire,J01374,Transport Related Expenditure ,Contract Hire and Op Leasing  ,CC64,HIRING TRANSPORT SEN CABS               ,1344,24/07/2014,REV,SILVERBURN FINANCE (UK) LTD   
658,CS -Oth Operating Inc & Expend,T/A Vehicle Maintenance etc,Transport-Contract Hire,J01374,Transport Related Expenditure ,Contract Hire and Op Leasing  ,CC64,HIRING TRANSPORT SEN CABS               ,858,31/07/2014,REV,NVCAR HIRE LTD                
659,CS -Oth Operating Inc & Expend,T/A Vehicle Maintenance etc,Transport-Contract Hire,J01374,Transport Related Expenditure ,Contract Hire and Op Leasing  ,CC64,HIRING TRANSPORT SEN CABS               ,1092,31/07/2014,REV,CAPITAL CARS                  
660,CS -Oth Operating Inc & Expend,T/A Vehicle Maintenance etc,Transport-Contract Hire,J01374,Transport Related Expenditure ,Contract Hire and Op Leasing  ,CC64,HIRING TRANSPORT SEN CABS               ,600,08/08/2014,REV,GALPINS SERVICE               
661,CS -Oth Operating Inc & Expend,T/A Vehicle Maintenance etc,Transport-Contract Hire,J01374,Transport Related Expenditure ,Contract Hire and Op Leasing  ,CC64,HIRING TRANSPORT SEN CABS               ,1440,31/07/2014,REV,A STAR TRANSPORT LIMITED      
662,CS -Oth Operating Inc & Expend,T/A Vehicle Maintenance etc,Transport-Contract Hire,J01374,Transport Related Expenditure ,Contract Hire and Op Leasing  ,CC64,HIRING TRANSPORT SEN CABS               ,1008,31/07/2014,REV,NVCAR HIRE LTD                
663,CS -Oth Operating Inc & Expend,T/A Vehicle Maintenance etc,Transport-Contract Hire,J01374,Transport Related Expenditure ,Contract Hire and Op Leasing  ,CC64,HIRING TRANSPORT SEN CABS               ,3220,31/07/2014,REV,CAPITAL CARS                  
664,CS -Oth Operating Inc & Expend,T/A Vehicle Maintenance etc,Transport-Contract Hire,J01374,Transport Related Expenditure ,Contract Hire and Op Leasing  ,CC64,HIRING TRANSPORT SEN CABS               ,2250,31/07/2014,REV,BARCLAYS ASSET & SALES FINANCE
665,CS -Oth Operating Inc & Expend,T/A Vehicle Maintenance etc,Transport-Contract Hire,J01374,Transport Related Expenditure ,Contract Hire and Op Leasing  ,CC66,HIRING TRANSPORT H&SS CAB CHILDREN      ,780,31/07/2014,REV,CAPITAL CARS                  
666,CS -Oth Operating Inc & Expend,T/A Vehicle Maintenance etc,Transport-Contract Hire,J01374,Transport Related Expenditure ,Contract Hire and Op Leasing  ,CC66,HIRING TRANSPORT H&SS CAB CHILDREN      ,1168,31/07/2014,REV,CAPITAL CARS                  
667,CS -Oth Operating Inc & Expend,T/A Vehicle Maintenance etc,Transport-Contract Hire,J01374,Transport Related Expenditure ,Contract Hire and Op Leasing  ,CC66,HIRING TRANSPORT H&SS CAB CHILDREN      ,592,31/07/2014,REV,BARCLAYS ASSET & SALES FINANCE
668,CS -Oth Operating Inc & Expend,T/A Vehicle Maintenance etc,Transport-Contract Hire,J01374,Transport Related Expenditure ,Contract Hire and Op Leasing  ,CC67,HIRING TRANSPORT H&SS CAB ADULTS        ,740,31/07/2014,REV,CAPITAL CARS                  
669,CS -Oth Operating Inc & Expend,T/A Vehicle Maintenance etc,Transport-Contract Hire,J01374,Transport Related Expenditure ,Contract Hire and Op Leasing  ,CC67,HIRING TRANSPORT H&SS CAB ADULTS        ,760,31/07/2014,REV,NVCAR HIRE LTD                
670,CS -Oth Operating Inc & Expend,T/A Vehicle Maintenance etc,Transport-Contract Hire,J01374,Transport Related Expenditure ,Contract Hire and Op Leasing  ,CC67,HIRING TRANSPORT H&SS CAB ADULTS        ,680,31/07/2014,REV,BARCLAYS ASSET & SALES FINANCE
671,CS -Oth Operating Inc & Expend,T/A Vehicle Maintenance etc,Transport-Contract Hire,J01374,Transport Related Expenditure ,Contract Hire and Op Leasing  ,CC67,HIRING TRANSPORT H&SS CAB ADULTS        ,658,31/07/2014,REV,CAPITAL CARS                  
672,CS -Oth Operating Inc & Expend,T/A Vehicle Maintenance etc,Transport-Contract Hire,J01374,Transport Related Expenditure ,Contract Hire and Op Leasing  ,CC67,HIRING TRANSPORT H&SS CAB ADULTS        ,624,31/07/2014,REV,BARCLAYS ASSET & SALES FINANCE
673,CS -Oth Operating Inc & Expend,T/A Vehicle Maintenance etc,Transport-Contract Hire,J01374,Transport Related Expenditure ,Contract Hire and Op Leasing  ,CC67,HIRING TRANSPORT H&SS CAB ADULTS        ,1263.43,31/07/2014,REV,BARCLAYS ASSET & SALES FINANCE
674,CS -Oth Operating Inc & Expend,T/A Vehicle Maintenance etc,Transport-Contract Hire,J01374,Transport Related Expenditure ,Contract Hire and Op Leasing  ,CC67,HIRING TRANSPORT H&SS CAB ADULTS        ,748,31/07/2014,REV,BARCLAYS ASSET & SALES FINANCE
675,CS -Oth Operating Inc & Expend,T/A Vehicle Maintenance etc,Transport-Contract Hire,J01374,Transport Related Expenditure ,Contract Hire and Op Leasing  ,CC67,HIRING TRANSPORT H&SS CAB ADULTS        ,1092,31/07/2014,REV,NVCAR HIRE LTD                
676,CS -Oth Operating Inc & Expend,T/A Vehicle Maintenance etc,Transport-Contract Hire,J01374,Transport Related Expenditure ,Contract Hire and Op Leasing  ,CC67,HIRING TRANSPORT H&SS CAB ADULTS        ,748,24/07/2014,REV,SILVERBURN FINANCE (UK) LTD   
677,CS -Oth Operating Inc & Expend,T/A Vehicle Maintenance etc,Transport-Contract Hire,J01374,Transport Related Expenditure ,Contract Hire and Op Leasing  ,CC67,HIRING TRANSPORT H&SS CAB ADULTS        ,1320,31/07/2014,REV,NVCAR HIRE LTD                
678,CS -Oth Operating Inc & Expend,T/A Vehicle Maintenance etc,Transport-Contract Hire,J01374,Transport Related Expenditure ,Contract Hire and Op Leasing  ,CC67,HIRING TRANSPORT H&SS CAB ADULTS        ,1220,24/06/2014,REV,CALVERTON FACTORS LTD         
679,CS -Oth Operating Inc & Expend,T/A Vehicle Maintenance etc,Transport-Contract Hire,J01374,Transport Related Expenditure ,Contract Hire and Op Leasing  ,CC67,HIRING TRANSPORT H&SS CAB ADULTS        ,858,31/07/2014,REV,NVCAR HIRE LTD                
680,CS -Oth Operating Inc & Expend,T/A Vehicle Maintenance etc,Transport-Contract Hire,J01374,Transport Related Expenditure ,Contract Hire and Op Leasing  ,CC67,HIRING TRANSPORT H&SS CAB ADULTS        ,540,31/07/2014,REV,CAPITAL CARS                  
681,CS -Oth Operating Inc & Expend,T/A Vehicle Maintenance etc,Transport-Contract Hire,J01374,Transport Related Expenditure ,Contract Hire and Op Leasing  ,CC67,HIRING TRANSPORT H&SS CAB ADULTS        ,880,08/08/2014,REV,AERIAL CAR SERVICES LTD       
682,CS -Oth Operating Inc & Expend,T/A Vehicle Maintenance etc,Transport-Contract Hire,J01374,Transport Related Expenditure ,Contract Hire and Op Leasing  ,CC67,HIRING TRANSPORT H&SS CAB ADULTS        ,1216,31/07/2014,REV,A STAR TRANSPORT LIMITED      
683,CS -Oth Operating Inc & Expend,T/A Vehicle Maintenance etc,Transport-Contract Hire,J01374,Transport Related Expenditure ,Contract Hire and Op Leasing  ,CC67,HIRING TRANSPORT H&SS CAB ADULTS        ,798,31/05/2014,REV,CAPITAL CARS                  
684,CS -Oth Operating Inc & Expend,T/A Vehicle Maintenance etc,Transport-Contract Hire,J01374,Transport Related Expenditure ,Contract Hire and Op Leasing  ,CC67,HIRING TRANSPORT H&SS CAB ADULTS        ,1136,20/07/2014,REV,CALVERTON FACTORS LTD         
685,CS -Oth Operating Inc & Expend,T/A Vehicle Maintenance etc,Transport-Contract Hire,J01374,Transport Related Expenditure ,Contract Hire and Op Leasing  ,CC67,HIRING TRANSPORT H&SS CAB ADULTS        ,1062,31/07/2014,REV,CAPITAL CARS                  
686,CS -Oth Operating Inc & Expend,T/A Vehicle Maintenance etc,Transport-Contract Hire,J01374,Transport Related Expenditure ,Contract Hire and Op Leasing  ,CC67,HIRING TRANSPORT H&SS CAB ADULTS        ,875,31/07/2014,REV,SHERWOOD TRANSPORT GROUP      
687,CS -Oth Operating Inc & Expend,T/A Vehicle Maintenance etc,Transport-Contract Hire,J01374,Transport Related Expenditure ,Contract Hire and Op Leasing  ,CC68,HIRING TRANSPORT SEN COLLEGES CABS      ,680,31/07/2014,REV,BARCLAYS ASSET & SALES FINANCE
688,CS -Oth Operating Inc & Expend,T/A Vehicle Maintenance etc,Transport-Contract Hire,J01374,Supplies & Services           ,Comms and Computing           ,DG03,Computer Consumables                    ,8346.15,18/07/2014,REV,TRACE SYSTEMS (EUROPE)LTD     
689,CS -Oth Operating Inc & Expend,T/A Vehicle Maintenance etc,Transport-Workshop,J01376,Transport Related Expenditure ,Contract Hire and Op Leasing  ,CC60,Vehicle Hire for LB Sutton              ,2020,20/07/2014,REV,CALVERTON FACTORS LTD         
690,CS -Oth Operating Inc & Expend,T/A Vehicle Maintenance etc,Transport-Workshop,J01376,Transport Related Expenditure ,Contract Hire and Op Leasing  ,CC60,Vehicle Hire for LB Sutton              ,5704,31/07/2014,REV,BARCLAYS ASSET & SALES FINANCE
691,CS -Oth Operating Inc & Expend,T/A Vehicle Maintenance etc,Transport-Workshop,J01376,Transport Related Expenditure ,Contract Hire and Op Leasing  ,CC60,Vehicle Hire for LB Sutton              ,2240,31/07/2014,REV,BRUNSWICK CARS LTD            
692,CS -Oth Operating Inc & Expend,T/A Vehicle Maintenance etc,Transport-Workshop,J01376,Transport Related Expenditure ,Contract Hire and Op Leasing  ,CC60,Vehicle Hire for LB Sutton              ,960,20/07/2014,REV,CALVERTON FACTORS LTD         
693,CS -Oth Operating Inc & Expend,T/A Vehicle Maintenance etc,Transport-Workshop,J01376,Transport Related Expenditure ,Contract Hire and Op Leasing  ,CC60,Vehicle Hire for LB Sutton              ,3648,31/07/2014,REV,CAPITAL CARS                  
694,CS -Oth Operating Inc & Expend,T/A Vehicle Maintenance etc,Transport-Workshop,J01376,Transport Related Expenditure ,Contract Hire and Op Leasing  ,CC60,Vehicle Hire for LB Sutton              ,1860,31/07/2014,REV,BARCLAYS ASSET & SALES FINANCE
695,CS -Oth Operating Inc & Expend,T/A Vehicle Maintenance etc,Transport-Workshop,J01376,Transport Related Expenditure ,Contract Hire and Op Leasing  ,CC60,Vehicle Hire for LB Sutton              ,1751,31/07/2014,REV,BRUNSWICK CARS LTD            
696,CS -Oth Operating Inc & Expend,T/A Vehicle Maintenance etc,Transport-Workshop,J01376,Transport Related Expenditure ,Contract Hire and Op Leasing  ,CC65,Vehicle Hire for Education              ,2296,31/07/2014,REV,BARCLAYS ASSET & SALES FINANCE
697,CS -Oth Operating Inc & Expend,T/A Vehicle Maintenance etc,Transport-Workshop,J01376,Transport Related Expenditure ,Contract Hire and Op Leasing  ,CC65,Vehicle Hire for Education              ,1496,31/07/2014,REV,BARCLAYS ASSET & SALES FINANCE
698,CS -Oth Operating Inc & Expend,T/A Vehicle Maintenance etc,Vehicle Workshops,J01378,Employees                     ,Direct Employee Expenses      ,AA17,Agency Staff & Casual Paymts            ,693,30/07/2014,REV,REDACTED
699,CS -Oth Operating Inc & Expend,T/A Vehicle Maintenance etc,Vehicle Workshops,J01378,Employees                     ,Direct Employee Expenses      ,AA17,Agency Staff & Casual Paymts            ,544.5,13/08/2014,REV,REDACTED
700,CS -Oth Operating Inc & Expend,T/A Vehicle Maintenance etc,Vehicle Workshops,J01378,Employees                     ,Direct Employee Expenses      ,AA17,Agency Staff & Casual Paymts            ,693,06/08/2014,REV,REDACTED
701,CS -Oth Operating Inc & Expend,T/A Vehicle Maintenance etc,Vehicle Workshops,J01378,Employees                     ,Direct Employee Expenses      ,AA17,Agency Staff & Casual Paymts            ,660,23/07/2014,REV,REDACTED
702,CS -Oth Operating Inc & Expend,T/A Vehicle Maintenance etc,Vehicle Workshops,J01378,Transport Related Expenditure ,Direct Transport Costs        ,CA02,Tyres                                   ,1255,30/07/2014,REV,MORDEN TYRE SERVICES LTD      
703,CS -Oth Operating Inc & Expend,T/A Vehicle Maintenance etc,Vehicle Workshops,J01378,Transport Related Expenditure ,Direct Transport Costs        ,CA02,Tyres                                   ,1270,15/08/2014,REV,MORDEN TYRE SERVICES LTD      
704,CS -Oth Operating Inc & Expend,T/A Vehicle Maintenance etc,Vehicle Workshops,J01378,Transport Related Expenditure ,Direct Transport Costs        ,CA55,Specialist Maint. (Off Site)            ,660.06,11/07/2014,REV,KINGSLEY COMM COMPONENTS LTD  
705,CS -Oth Operating Inc & Expend,T/A Vehicle Maintenance etc,Vehicle Workshops,J01378,Transport Related Expenditure ,Direct Transport Costs        ,CA55,Specialist Maint. (Off Site)            ,1908.3,31/07/2014,REV,JOHNSTON SWEEPERS LIMITED     
706,CS -Oth Operating Inc & Expend,T/A Vehicle Maintenance etc,Vehicle Workshops,J01378,Transport Related Expenditure ,Direct Transport Costs        ,CA55,Specialist Maint. (Off Site)            ,630.06,25/07/2014,REV,KINGSLEY COMM COMPONENTS LTD  
707,CS -Oth Operating Inc & Expend,T/A Vehicle Maintenance etc,Vehicle Workshops,J01378,Transport Related Expenditure ,Direct Transport Costs        ,CA55,Specialist Maint. (Off Site)            ,660.06,11/07/2014,REV,KINGSLEY COMM COMPONENTS LTD  
708,CS -Oth Operating Inc & Expend,T/A Vehicle Maintenance etc,Vehicle Workshops,J01378,Transport Related Expenditure ,Direct Transport Costs        ,CA55,Specialist Maint. (Off Site)            ,998.07,25/07/2014,REV,REDACTED
709,CS -Oth Operating Inc & Expend,T/A Vehicle Maintenance etc,Vehicle Workshops,J01378,Transport Related Expenditure ,Direct Transport Costs        ,CA55,Specialist Maint. (Off Site)            ,825.73,22/07/2014,REV,P D VEHICLE SERVICES          
710,CS -Oth Operating Inc & Expend,T/A Vehicle Maintenance etc,Vehicle Workshops,J01378,Transport Related Expenditure ,Direct Transport Costs        ,CA55,Specialist Maint. (Off Site)            ,630.06,25/07/2014,REV,KINGSLEY COMM COMPONENTS LTD  
711,CS -Oth Operating Inc & Expend,T/A Vehicle Maintenance etc,Vehicle Workshops,J01378,Transport Related Expenditure ,Direct Transport Costs        ,CA55,Specialist Maint. (Off Site)            ,1739.12,23/07/2014,REV,REDACTED
712,CS -Oth Operating Inc & Expend,T/A Vehicle Maintenance etc,Vehicle Workshops,J01378,Transport Related Expenditure ,Direct Transport Costs        ,CA56,Specialist Maint. (On Site)             ,1409.77,15/08/2014,REV,GEESINK NORBA                 
713,CS -Oth Operating Inc & Expend,T/A Vehicle Maintenance etc,Vehicle Workshops,J01378,Transport Related Expenditure ,Direct Transport Costs        ,CA56,Specialist Maint. (On Site)             ,601.7,13/08/2014,REV,REDACTED
714,CS -Oth Operating Inc & Expend,T/A Vehicle Maintenance etc,Vehicle Workshops,J01378,Transport Related Expenditure ,Direct Transport Costs        ,CA56,Specialist Maint. (On Site)             ,538.75,18/08/2014,REV,R.J.H.WELDING                 
715,CS -Oth Operating Inc & Expend,T/A Vehicle Maintenance etc,Vehicle Workshops,J01378,Transport Related Expenditure ,Direct Transport Costs        ,CA56,Specialist Maint. (On Site)             ,508.2,07/08/2014,REV,REDACTED
716,CS -Oth Operating Inc & Expend,T/A Vehicle Maintenance etc,Vehicle Workshops,J01378,Transport Related Expenditure ,Direct Transport Costs        ,CA56,Specialist Maint. (On Site)             ,862.5,18/08/2014,REV,R.J.H.WELDING                 
717,CS -Oth Operating Inc & Expend,T/A Vehicle Maintenance etc,Vehicle Workshops,J01378,Transport Related Expenditure ,Direct Transport Costs        ,CA56,Specialist Maint. (On Site)             ,628.45,22/07/2014,REV,REDACTED
718,CS -Oth Operating Inc & Expend,T/A Vehicle Maintenance etc,Vehicle Workshops,J01378,Transport Related Expenditure ,Direct Transport Costs        ,CA56,Specialist Maint. (On Site)             ,1498.43,07/08/2014,REV,GEESINK NORBA                 
719,CS -Oth Operating Inc & Expend,T/A Vehicle Maintenance etc,Vehicle Workshops,J01378,Transport Related Expenditure ,Direct Transport Costs        ,CA72,Vehicle Parts                           ,890.51,05/08/2014,REV,NTM GB LIMITED                
720,CS -Oth Operating Inc & Expend,T/A Vehicle Maintenance etc,Vehicle Workshops,J01378,Transport Related Expenditure ,Direct Transport Costs        ,CA72,Vehicle Parts                           ,1233,21/07/2014,REV,FARID MUNICIPAL VEHICLES LTD  
721,CS -Oth Operating Inc & Expend,T/A Vehicle Maintenance etc,Vehicle Workshops,J01378,Transport Related Expenditure ,Direct Transport Costs        ,CA72,Vehicle Parts                           ,996.14,12/08/2014,REV,NTM GB LIMITED                
722,CS -Oth Operating Inc & Expend,T/A Vehicle Maintenance etc,Vehicle Workshops,J01378,Transport Related Expenditure ,Direct Transport Costs        ,CA72,Vehicle Parts                           ,578.76,18/08/2014,REV,COMMERCIAL & PLANT LTD        
723,CS -Oth Operating Inc & Expend,T/A Vehicle Maintenance etc,Vehicle Workshops,J01378,Transport Related Expenditure ,Direct Transport Costs        ,CA72,Vehicle Parts                           ,680.73,24/07/2014,REV,HTC CROYDON                   
724,CS -Oth Operating Inc & Expend,T/A Vehicle Maintenance etc,Vehicle Workshops,J01378,Transport Related Expenditure ,Direct Transport Costs        ,CA72,Vehicle Parts                           ,1211.05,15/08/2014,REV,GEESINK NORBA                 
725,CS -Oth Operating Inc & Expend,T/A Vehicle Maintenance etc,Vehicle Workshops,J01378,Supplies & Services           ,Equip Furniture/Materials     ,DA01,Equipment - R & M                       ,1832.25,20/08/2014,REV,LIFTMASTER COMMERCIAL EQUIP   
726,CS -Oth Operating Inc & Expend,T/A Vehicle Maintenance etc,Vehicle Workshops,J01378,Supplies & Services           ,Clothing Unfrms Laundry       ,DC01,Laundry                                 ,658.7,26/07/2014,REV,SUNLIGHT SERVICE GROUP LTD    
727,Cultural Env Reg&Plan Services,Mgt & Support (Env),Estates Mgt,J01420,Supplies & Services           ,Services                      ,DF03,CONSULTANTS                             ,650,25/06/2014,REV,SOUTH EAST LEASEHOLD          
728,Cultural Env Reg&Plan Services,Mgt & Support (Env),Estates Mgt,J01420,Supplies & Services           ,Services                      ,DF03,CONSULTANTS                             ,900,25/06/2014,REV,SOUTH EAST LEASEHOLD          
729,Cultural Env Reg&Plan Services,Mgt & Support (Env),Estates Mgt,J01420,Supplies & Services           ,Services                      ,DF11,Counsel's fees                          ,1800,06/05/2014,REV,REDACTED
730,Cultural Env Reg&Plan Services,Mgt & Support (Env),Estates Mgt,J01420,Supplies & Services           ,Grants and Subscriptions      ,DJ04,SUBSCRIPTION                            ,1395,04/08/2014,REV,CIPFA BUSINESS LTD            
731,CS -Oth Operating Inc & Expend,Extraordinary Items & PY Adj.,Other Misc Props Budget,J01526,Premises Related Expenditure  ,Energy Costs                  ,BB03,GAS (INCL. BUTANE)                      ,870.97,08/07/2014,REV,SOUTHERN ELECTRIC             
732,CS -Oth Operating Inc & Expend,Extraordinary Items & PY Adj.,Other Misc Props Budget,J01526,Third Party Payments          ,Private Contractors           ,EH02,MISCELLANEOUS HIRED SERVICES            ,965,12/08/2014,REV,VERDANT ECOLOGY.CO.UK         
733,CS -Oth Operating Inc & Expend,Extraordinary Items & PY Adj.,Housing Shops,J01533,Premises Related Expenditure  ,RepairsAlterations&MtceOfBldgs,BA03,DDM - MECHANICAL                        ,647.44,31/07/2014,REV,EUROPA NATIONWIDE TECH.SER.LTD
734,CS -Oth Operating Inc & Expend,Extraordinary Items & PY Adj.,Housing Shops,J01533,Premises Related Expenditure  ,RepairsAlterations&MtceOfBldgs,BA29,BUILD MAINT MGT FEES                    ,3024,31/07/2014,REV,FORMARK SCAFFOLDING LTD       
735,CS -Oth Operating Inc & Expend,Extraordinary Items & PY Adj.,Durnsford Rd Budget,J01580,Premises Related Expenditure  ,RepairsAlterations&MtceOfBldgs,BA01,DDM - GENERAL BUILDING                  ,600,31/03/2014,REV,SALTASH ENTERPRISES LTD       
736,CS -Oth Operating Inc & Expend,Extraordinary Items & PY Adj.,Pollards Hill Comm Cntre,J08074,Premises Related Expenditure  ,RepairsAlterations&MtceOfBldgs,BA03,DDM - Mechanical                        ,602.28,15/08/2014,REV,EUROPA NATIONWIDE TECH.SER.LTD
737,CS -Oth Operating Inc & Expend,Extraordinary Items & PY Adj.,Pollards Hill Comm Cntre,J08074,Premises Related Expenditure  ,RepairsAlterations&MtceOfBldgs,BA03,DDM - Mechanical                        ,602.28,15/07/2014,REV,EUROPA NATIONWIDE TECH.SER.LTD
738,Childrens & Education Services,Statutory & Regulatory Duties,Senior Mngt & Support Services,K01005,Supplies & Services           ,Services                      ,DF11,Counsel's Fees                          ,690,23/07/2014,REV,REDACTED
739,Childrens & Education Services,Statutory & Regulatory Duties,Senior Mngt & Support Services,K01005,Supplies & Services           ,Services                      ,DF11,Counsel's Fees                          ,2010,07/08/2014,REV,REDACTED
740,Childrens & Education Services,Statutory & Regulatory Duties,Senior Mngt & Support Services,K01005,Supplies & Services           ,Services                      ,DF11,Counsel's Fees                          ,735,28/07/2014,REV,REDACTED
741,Childrens & Education Services,Statutory & Regulatory Duties,Senior Mngt & Support Services,K01005,Supplies & Services           ,Services                      ,DF11,Counsel's Fees                          ,2240,26/06/2014,REV,REDACTED
742,Childrens & Education Services,Statutory & Regulatory Duties,Senior Mngt & Support Services,K01005,Supplies & Services           ,Services                      ,DF11,Counsel's Fees                          ,520,21/07/2014,REV,REDACTED
743,Childrens & Education Services,Statutory & Regulatory Duties,Senior Mngt & Support Services,K01005,Supplies & Services           ,Services                      ,DF11,Counsel's Fees                          ,605,26/06/2014,REV,REDACTED
744,Childrens & Education Services,Statutory & Regulatory Duties,Senior Mngt & Support Services,K01005,Supplies & Services           ,Services                      ,DF11,Counsel's Fees                          ,2395,26/06/2014,REV,REDACTED
745,Childrens & Education Services,Statutory & Regulatory Duties,Senior Mngt & Support Services,K01005,Supplies & Services           ,Services                      ,DF11,Counsel's Fees                          ,505,05/06/2014,REV,REDACTED
746,Childrens & Education Services,Statutory & Regulatory Duties,Senior Mngt & Support Services,K01005,Supplies & Services           ,Services                      ,DF11,Counsel's Fees                          ,590,20/05/2014,REV,REDACTED
747,Childrens & Education Services,Statutory & Regulatory Duties,Senior Mngt & Support Services,K01005,Supplies & Services           ,Services                      ,DF11,Counsel's Fees                          ,510,31/07/2014,REV,REDACTED
748,Childrens & Education Services,Statutory & Regulatory Duties,Senior Mngt & Support Services,K01005,Supplies & Services           ,Services                      ,DF11,Counsel's Fees                          ,1090,19/06/2014,REV,REDACTED
749,Childrens & Education Services,Statutory & Regulatory Duties,Senior Mngt & Support Services,K01005,Supplies & Services           ,Services                      ,DF11,Counsel's Fees                          ,665,28/07/2014,REV,REDACTED
750,Childrens & Education Services,Statutory & Regulatory Duties,Senior Mngt & Support Services,K01005,Supplies & Services           ,Services                      ,DF11,Counsel's Fees                          ,500,12/05/2014,REV,REDACTED
751,Childrens & Education Services,Statutory & Regulatory Duties,Senior Mngt & Support Services,K01005,Supplies & Services           ,Services                      ,DF11,Counsel's Fees                          ,980,26/06/2014,REV,REDACTED
752,Childrens & Education Services,Statutory & Regulatory Duties,Senior Mngt & Support Services,K01005,Supplies & Services           ,Services                      ,DF11,Counsel's Fees                          ,1070,26/06/2014,REV,REDACTED
753,Childrens & Education Services,Statutory & Regulatory Duties,Senior Mngt & Support Services,K01005,Supplies & Services           ,Services                      ,DF14,Doctors and Other Fees                  ,675,17/02/2014,REV,REDACTED
754,Childrens & Education Services,Statutory & Regulatory Duties,Senior Mngt & Support Services,K01005,Supplies & Services           ,Services                      ,DF95,Services from Provider                  ,1396.9,07/08/2014,REV,RUSSELL -  COOKE LLP          
755,Childrens & Education Services,Statutory & Regulatory Duties,Central Administration,K01008,Supplies & Services           ,Catering                      ,DB50,REFRESHMENTS                            ,800,23/07/2014,REV,GOSTO FINO PORTUGAL PATISSERIE
756,Childrens & Education Services,Statutory & Regulatory Duties,Schools IT Support,K02008,Supplies & Services           ,Comms and Computing           ,DG50,Other IT Expenditure                    ,600,10/05/2014,REV,ATOMWIDE LTD                  
757,Childrens & Education Services,Statutory & Regulatory Duties,Schools IT Support,K02008,Supplies & Services           ,Comms and Computing           ,DG50,Other IT Expenditure                    ,900,10/05/2014,REV,ATOMWIDE LTD                  
758,Childrens & Education Services,Statutory & Regulatory Duties,Teenage Pregnancy                       ,K03007,Supplies & Services           ,Services                      ,DF03,Consultants                             ,1820,06/08/2014,REV,WARD MANAGEMENT CONSULTING LTD
759,Childrens & Education Services,Statutory & Regulatory Duties,Research and Statistics,K03016,Supplies & Services           ,Services                      ,DF09,Miscellaneous Fees                      ,2110,06/08/2014,REV,CIPFA BUSINESS LTD            
760,Childrens & Education Services,Statutory & Regulatory Duties,Head of Special Educatn Needs,K04017,Supplies & Services           ,Services                      ,DF03,Consultants                             ,1500,14/08/2014,REV,OTFE CONSULTANCY LTD          
761,Childrens & Education Services,Statutory & Regulatory Duties,Head of Special Educatn Needs,K04017,Supplies & Services           ,Services                      ,DF03,Consultants                             ,1500,05/08/2014,REV,OTFE CONSULTANCY LTD          
762,Childrens & Education Services,Statutory & Regulatory Duties,Head of Special Educatn Needs,K04017,Supplies & Services           ,Services                      ,DF03,Consultants                             ,1500,05/08/2014,REV,OTFE CONSULTANCY LTD          
763,Childrens & Education Services,Education Psychology Service,Education Psychology.,K04018,Employees                     ,Direct Employee Expenses      ,AA17,Agency Staff & Casual Paymts            ,937.5,18/07/2014,REV,REDACTED
764,Childrens & Education Services,Education Psychology Service,Education Psychology.,K04018,Employees                     ,Direct Employee Expenses      ,AA17,Agency Staff & Casual Paymts            ,937.5,24/07/2014,REV,REDACTED
765,Childrens & Education Services,Education Psychology Service,Education Psychology.,K04018,Employees                     ,Direct Employee Expenses      ,AA17,Agency Staff & Casual Paymts            ,32000,28/04/2014,REV,REDACTED
766,Childrens & Education Services,Education Psychology Service,Education Psychology.,K04018,Employees                     ,Direct Employee Expenses      ,AA17,Agency Staff & Casual Paymts            ,562.5,24/07/2014,REV,REDACTED
767,Childrens & Education Services,Support for SEN Pupils,Statementing-Transport,K04023,Transport Related Expenditure ,Public Transport              ,CD50,Home Sch/Coll Trans(Trav Exps)          ,1120,24/07/2014,REV,REDACTED
768,Childrens & Education Services,Support for SEN Pupils,Statementing-Transport,K04023,Transport Related Expenditure ,Public Transport              ,CD50,Home Sch/Coll Trans(Trav Exps)          ,20755,05/06/2014,REV,SURREY COUNTY COUNCIL         
769,Childrens & Education Services,Support for SEN Pupils,Statementing-Transport,K04023,Transport Related Expenditure ,Public Transport              ,CD50,Home Sch/Coll Trans(Trav Exps)          ,631.9,08/08/2014,REV,THE LONDON BOROUGH OF BROMLEY 
770,Childrens & Education Services,Behavioural Support,Statement Support Team,K04034,Employees                     ,Direct Employee Expenses      ,AA17,Agency Staff & Casual Paymts            ,4505,05/07/2014,REV,PERMANENT FUTURES             
771,Childrens & Education Services,Behavioural Support,Statement Support Team,K04034,Employees                     ,Direct Employee Expenses      ,AA17,Agency Staff & Casual Paymts            ,5065,05/07/2014,REV,PERMANENT FUTURES             
772,Childrens & Education Services,Behavioural Support,Statement Support Team,K04034,Employees                     ,Direct Employee Expenses      ,AA17,Agency Staff & Casual Paymts            ,10000,05/07/2014,REV,PERMANENT FUTURES             
773,Childrens & Education Services,Oth U5s Provn Not Prim or Spec,Provider Support,K05078,Supplies & Services           ,Comms and Computing           ,DG07,Computer Software                       ,6805,01/08/2014,REV,REDACTED
774,Childrens & Education Services,Oth U5s Provn Not Prim or Spec,GSSG Workforce Development,K05111,Supplies & Services           ,Services                      ,DF03,Consultants                             ,2000,01/08/2014,REV,REDACTED
775,Childrens & Education Services,Nursery schools,GSSG Central Administration,K05400,Supplies & Services           ,Services                      ,DF03,Consultants                             ,1275,21/07/2014,REV,REDACTED
776,Childrens & Education Services,GENERATED ACCOUNT,Mitcham MAT,K05411,Premises Related Expenditure  ,Rents                         ,BC01,Miscellaneous Rents                     ,3950,14/08/2014,REV,ROOMS & STUDIOS MANAGEMENT    
777,Childrens & Education Services,GENERATED ACCOUNT,Mitcham MAT (Premises),K05412,Premises Related Expenditure  ,RepairsAlterations&MtceOfBldgs,BA06,Repairs & Maintenance General           ,540,11/08/2014,REV,GRAFTINGARDENERS              
778,Childrens & Education Services,GENERATED ACCOUNT,Mitcham MAT (Premises),K05412,Premises Related Expenditure  ,Cleaning and Domestic Supplies,BH03,Cleaning Services                       ,1208.78,05/08/2014,REV,BIRKIN CLEANING SERVICES LTD  
779,Childrens & Education Services,Nursery schools,Lavender CC Non Childcare,K05415,Premises Related Expenditure  ,Cleaning and Domestic Supplies,BH03,Cleaning Services                       ,1212.14,05/08/2014,REV,BIRKIN CLEANING SERVICES LTD  
780,Childrens & Education Services,Nursery schools,Lavender CC Non Childcare,K05415,Supplies & Services           ,Equip Furniture/Materials     ,DA04,Materials                               ,1130,01/08/2014,REV,MITCHAM BELLE COACHES         
781,Childrens & Education Services,Nursery schools,Lavender CC Non Childcare,K05415,Supplies & Services           ,Equip Furniture/Materials     ,DA09,Equip-Purchases                         ,599.95,15/08/2014,REV,TTS LTD                       
782,Childrens & Education Services,Nursery schools,E.Years-Intergenerational Cntr,K05416,Premises Related Expenditure  ,RepairsAlterations&MtceOfBldgs,BA01,DDM - General Building                  ,709.92,10/08/2014,REV,SALTASH ENTERPRISES LTD       
783,Childrens & Education Services,Nursery schools,E.Years-Intergenerational Cntr,K05416,Premises Related Expenditure  ,RepairsAlterations&MtceOfBldgs,BA06,Repairs & Maintenance General           ,1417.5,04/08/2014,REV,PITCHCARE.COM                 
784,Childrens & Education Services,Nursery schools,E.Years-Intergenerational Cntr,K05416,Premises Related Expenditure  ,Cleaning and Domestic Supplies,BH03,Cleaning Services                       ,811.96,01/08/2014,REV,BIRKIN CLEANING SERVICES LTD  
785,Childrens & Education Services,Nursery schools,EY-Support Separating Parents,K05417,Employees                     ,Direct Employee Expenses      ,AA74,Public Duties (AP)                      ,3213.28,25/07/2014,REV,REDACTED
786,Childrens & Education Services,Nursery schools,EY-Support Separating Parents,K05417,Supplies & Services           ,Expenses                      ,DH02,Conferences                             ,600,01/08/2014,REV,ACTUAL FIRST AID LTD          
787,Childrens & Education Services,Oth U5s Provn Not Prim or Spec,EY - Adventure Playground,K05422,Premises Related Expenditure  ,Energy Costs                  ,BB02,Electricity                             ,1051.85,08/08/2014,REV,SCOTTISHPOWER                 
788,Childrens & Education Services,Vocational - Adult Education,MAE-Bldgs Repairs & Maintenanc,K06048,Premises Related Expenditure  ,RepairsAlterations&MtceOfBldgs,BA01,DDM - General Building                  ,910,16/07/2014,REV,INDEPTH HYGIENE SERVICES LTD  
789,Childrens & Education Services,Vocational - Adult Education,AE-Adult Education Main,K06049,Supplies & Services           ,Equip Furniture/Materials     ,DA09,Equip-Purchases                         ,566.64,11/08/2014,REV,EBUYER UK LTD                 
790,Childrens & Education Services,Vocational - Adult Education,AE-Adult Education Main,K06049,Supplies & Services           ,Equip Furniture/Materials     ,DA09,Equip-Purchases                         ,583.3,11/08/2014,REV,EBUYER UK LTD                 
791,Childrens & Education Services,Vocational - Adult Education,AE-Adult Education Main,K06049,Supplies & Services           ,Services                      ,DF03,Consultants                             ,2549.2,28/07/2014,REV,TCMD LTD                      
792,Childrens & Education Services,Vocational - Adult Education,AE-Adult Education Main,K06049,Supplies & Services           ,Services                      ,DF27,Examination Fees                        ,550,04/07/2014,REV,ITEC                          
793,Childrens & Education Services,Vocational - Adult Education,AE-Adult Education Main,K06049,Supplies & Services           ,Services                      ,DF27,Examination Fees                        ,550,13/08/2014,REV,OPEN COLLEGE NETWORK LONDON   
794,Childrens & Education Services,Vocational - Adult Education,AE-Adult Education Main,K06049,Supplies & Services           ,Services                      ,DF27,Examination Fees                        ,1310,25/07/2014,REV,UCLES                         
795,Childrens & Education Services,Vocational - Adult Education,AE-Adult Education Main,K06049,Supplies & Services           ,Comms and Computing           ,DG02,Software Licences                       ,1601.84,08/08/2014,REV,COPYRIGHT LICENSING AGENCY LTD
796,Childrens & Education Services,Vocational - Adult Education,AE-Adult Education Main,K06049,Supplies & Services           ,Comms and Computing           ,DG04,Postage - General                       ,787,12/08/2014,REV,ROYAL MAIL GROUP LTD          
797,Childrens & Education Services,Youth Centres (Residential),Youth Service,K06053,Premises Related Expenditure  ,Cleaning and Domestic Supplies,BH03,Cleaning Services                       ,506.69,01/08/2014,REV,BIRKIN CLEANING SERVICES LTD  
798,Childrens & Education Services,Youth Centres (Residential),Youth Service,K06053,Transport Related Expenditure ,Recharge frm Transport Holding,CB02,Transport SLA/Rech - Dir Std            ,975,30/07/2014,REV,EDWARD THOMAS & SON           
799,Childrens & Education Services,Youth Centres (Residential),Youth Service,K06053,Supplies & Services           ,Expenses                      ,DH03,Hospitality                             ,800,01/08/2014,REV,DIVERSE CUISINE TRAINING      
800,Childrens & Education Services,Youth Centres (Residential),Youth Service,K06053,Supplies & Services           ,Expenses                      ,DH12,Young Peoples Expenses                  ,650,14/08/2014,REV,REDACTED
801,Childrens & Education Services,Youth Centres (Residential),Duke of Edinburgh Awrds,K06055,Supplies & Services           ,Expenses                      ,DH12,Young Peoples Expenses                  ,575,21/07/2014,REV,THE AWARD SCHEME LTD          
802,Childrens & Education Services,Youth Centres (Residential),PAYP Moving Forward in Life,K06092,Supplies & Services           ,Expenses                      ,DH50,Special Projects                        ,2243.73,23/07/2014,REV,PROSPECTS SERVICES LTD        
803,Childrens & Education Services,Youth Centres (Residential),PAYP Moving Forward in Life,K06092,Supplies & Services           ,Expenses                      ,DH50,Special Projects                        ,2243.73,23/07/2014,REV,PROSPECTS SERVICES LTD        
804,Childrens & Education Services,Youth Centres (Residential),PAYP Moving Forward in Life,K06092,Supplies & Services           ,Expenses                      ,DH50,Special Projects                        ,2243.73,23/07/2014,REV,PROSPECTS SERVICES LTD        
805,Childrens & Education Services,Youth Centres (Residential),Youth Opps Fund (GF C G),K06093,Supplies & Services           ,Grants and Subscriptions      ,DJ01,Grants                                  ,520,21/08/2014,REV,SYMMETRICAL FUTURES           
806,Childrens & Education Services,Pupil Support,Young Person Substance Misuse,K06114,Supplies & Services           ,Services                      ,DF03,Consultants                             ,1820,06/08/2014,REV,WARD MANAGEMENT CONSULTING LTD
807,Childrens & Education Services,Pupil Referral Units,Safer Schls Police Officers             ,K06116,Third Party Payments          ,Private Contractors           ,EH02,Miscellaneous Hired Services            ,21000,20/08/2014,REV,MET POLICE AUTHORITY          
808,Childrens & Education Services,Asset Management,S106 Bid,K08077,Premises Related Expenditure  ,RepairsAlterations&MtceOfBldgs,BA06,Repairs & Maintenance General           ,49793.68,01/08/2014,REV,MANSELL CONSTRUCTION SERVICES 
809,Childrens & Education Services,Asset Management,S106 Bid,K08077,Premises Related Expenditure  ,RepairsAlterations&MtceOfBldgs,BA29,Build Maint Mgt Fees                    ,900,11/08/2014,REV,THE GLASS & GLAZING FEDERATION
810,Childrens & Education Services,Asset Management,S106 Bid,K08077,Premises Related Expenditure  ,RepairsAlterations&MtceOfBldgs,BA79,Security of Premises                    ,1450,01/08/2014,REV,SIGHT & SOUND                 
811,Childrens & Education Services,Asset Management,S106 Bid,K08077,Premises Related Expenditure  ,Rents                         ,BC01,Miscellaneous Rents                     ,3714.23,06/08/2014,REV,BOSHIRE LTD                   
812,Childrens & Education Services,Asset Management,S106 Bid,K08077,Premises Related Expenditure  ,Rents                         ,BC03,Room/venue rental hire                  ,680.34,01/08/2014,REV,PORTAKABIN LIMITED            
813,Childrens & Education Services,Asset Management,S106 Bid,K08077,Supplies & Services           ,Services                      ,DF09,Miscellaneous Fees                      ,6950,05/08/2014,REV,NPS PROPERTY CONSULTANTS LTD  
814,Childrens & Education Services,Asset Management,Centre Commissioned Servs,K08078,Supplies & Services           ,Grants and Subscriptions      ,DJ01,Grants                                  ,4500,31/07/2014,REV,CARERS SUPPORT MERTON         
815,Childrens & Education Services,Asset Management,Centre Commissioned Servs,K08078,Supplies & Services           ,Grants and Subscriptions      ,DJ01,Grants                                  ,2687.5,31/07/2014,REV,CARERS SUPPORT MERTON         
816,Childrens & Education Services,Asset Management,Centre Commissioned Servs,K08078,Supplies & Services           ,Grants and Subscriptions      ,DJ01,Grants                                  ,2642.25,31/07/2014,REV,CARERS SUPPORT MERTON         
817,Childrens & Education Services,Asset Management,Centre Commissioned Servs,K08078,Supplies & Services           ,Grants and Subscriptions      ,DJ01,Grants                                  ,11015,30/07/2014,REV,MERTON MENCAP                 
818,Childrens & Education Services,Asset Management,Centre Commissioned Servs,K08078,Supplies & Services           ,Grants and Subscriptions      ,DJ01,Grants                                  ,24816.2,30/07/2014,REV,MERTON MENCAP                 
819,Childrens & Education Services,Asset Management,Centre Commissioned Servs,K08078,Supplies & Services           ,Grants and Subscriptions      ,DJ01,Grants                                  ,13375,30/07/2014,REV,BROADWAY HOMELESS & SUPPORT   
820,Childrens & Education Services,Asset Management,Centre Commissioned Servs,K08078,Supplies & Services           ,Grants and Subscriptions      ,DJ01,Grants                                  ,8762.5,15/07/2014,REV,BARNARDOS                     
821,Childrens & Education Services,Asset Management,Centre Commissioned Servs,K08078,Supplies & Services           ,Grants and Subscriptions      ,DJ01,Grants                                  ,2500,31/07/2014,REV,CARERS SUPPORT MERTON         
822,Childrens & Education Services,Asset Management,Centre Commissioned Servs,K08078,Supplies & Services           ,Grants and Subscriptions      ,DJ01,Grants                                  ,15000,30/07/2014,REV,MERTON MENCAP                 
823,Childrens & Education Services,Asset Management,Centre Commissioned Servs,K08078,Supplies & Services           ,Grants and Subscriptions      ,DJ01,Grants                                  ,18750,31/07/2014,REV,CARERS SUPPORT MERTON         
824,Childrens & Education Services,Asset Management,Centre Commissioned Servs,K08078,Supplies & Services           ,Grants and Subscriptions      ,DJ01,Grants                                  ,8125,21/07/2014,REV,YMCA LONDON SOUTH WEST        
825,Childrens & Education Services,Asset Management,Centre Commissioned Servs,K08078,Supplies & Services           ,Grants and Subscriptions      ,DJ01,Grants                                  ,9000,30/07/2014,REV,MERTON MENCAP                 
826,Childrens & Education Services,Asset Management,Centre Commissioned Servs,K08078,Supplies & Services           ,Grants and Subscriptions      ,DJ01,Grants                                  ,16940.82,30/07/2014,REV,MERTON MENCAP                 
827,Childrens & Education Services,Asset Management,Centre Commissioned Servs,K08078,Supplies & Services           ,Grants and Subscriptions      ,DJ01,Grants                                  ,8125,14/07/2014,REV,YMCA LONDON SOUTH WEST        
828,Childrens & Education Services,Asset Management,Centre Commissioned Servs,K08078,Supplies & Services           ,Grants and Subscriptions      ,DJ01,Grants                                  ,6250,21/08/2014,REV,SOUTH LONDON TAMIL WELFARE GRP
829,Childrens & Education Services,Asset Management,Centre Commissioned Servs,K08078,Supplies & Services           ,Grants and Subscriptions      ,DJ01,Grants                                  ,4000,30/07/2014,REV,MERTON MENCAP                 
830,Childrens & Education Services,Asset Management,Centre Commissioned Servs,K08078,Supplies & Services           ,Grants and Subscriptions      ,DJ01,Grants                                  ,8750,30/07/2014,REV,MERTON MENCAP                 
831,Childrens & Education Services,Asset Management,Stouthall,K09082,Premises Related Expenditure  ,RepairsAlterations&MtceOfBldgs,BA01,DDM - General Building                  ,23483.07,05/08/2014,REV,HENSTAFF CONSTRUCTION LTD     
832,Childrens & Education Services,Asset Management,Stouthall,K09082,Premises Related Expenditure  ,Ground Maintenance Costs      ,BL03,Maintenance of Grounds                  ,600,31/07/2014,REV,A Y LANDSCAPES LTD            
833,Childrens & Education Services,Asset Management,Stouthall,K09082,Premises Related Expenditure  ,Ground Maintenance Costs      ,BL03,Maintenance of Grounds                  ,1000,31/07/2014,REV,A Y LANDSCAPES LTD            
834,Childrens & Education Services,Statutory & Regulatory Duties,Profess Develop Cntre,K09084,Premises Related Expenditure  ,Energy Costs                  ,BB02,Electricity                             ,561.38,01/08/2014,REV,SCOTTISHPOWER                 
835,Childrens & Education Services,Pupil Referral Units,Hospital Tuition,K90008,Third Party Payments          ,Other Local Authorities       ,EB54,Hospital Tuition                        ,8415,12/06/2014,REV,OAKVIEW SCHOOL                
836,Childrens & Education Services,Facilitating School Improvemnt,Virtual Schools - PEA's,K90016,Supplies & Services           ,Grants and Subscriptions      ,DJ01,Grants                                  ,600,14/07/2014,REV,LONDON BOROUGH OF HOUNSLOW    
837,Childrens & Education Services,Pupil Referral Units,ADD.SUPPORT FOR SCHOOLS,K90021,Employees                     ,Indirect Employee Expenses    ,AB02,Recruitment Adverts                     ,1214,19/08/2014,REV,PENNA COMMUNICATIONS (NO 2 A/C
838,Childrens & Education Services,Support for SEN Pupils,Non-Delegated Statements,K90024,Employees                     ,Direct Employee Expenses      ,AA17,Agency Staff & Casual Paymts            ,5200,08/07/2014,REV,REDACTED
839,Childrens & Education Services,Support for SEN Pupils,Non-Delegated Statements,K90024,Employees                     ,Direct Employee Expenses      ,AA17,Agency Staff & Casual Paymts            ,10400,08/07/2014,REV,REDACTED
840,Childrens & Education Services,Support for SEN Pupils,Non-Delegated Statements,K90024,Employees                     ,Direct Employee Expenses      ,AA17,Agency Staff & Casual Paymts            ,670.6,31/07/2014,REV,REDACTED
841,Childrens & Education Services,Support for SEN Pupils,Non-Delegated Statements,K90024,Employees                     ,Direct Employee Expenses      ,AA17,Agency Staff & Casual Paymts            ,750,11/07/2014,REV,REDACTED
842,Childrens & Education Services,Support for SEN Pupils,Non-Delegated Statements,K90024,Employees                     ,Direct Employee Expenses      ,AA17,Agency Staff & Casual Paymts            ,1400,25/07/2014,REV,REDACTED
843,Childrens & Education Services,Support for SEN Pupils,Non-Delegated Statements,K90024,Employees                     ,Direct Employee Expenses      ,AA17,Agency Staff & Casual Paymts            ,1800,21/07/2014,REV,REDACTED
844,Childrens & Education Services,Support for SEN Pupils,Non-Delegated Statements,K90024,Supplies & Services           ,Services                      ,DF09,Miscellaneous Fees                      ,620,28/07/2014,REV,RIVER COUNSELLING AGENCY      
845,Childrens & Education Services,Support for SEN Pupils,Non-Delegated Statements,K90024,Supplies & Services           ,Services                      ,DF09,Miscellaneous Fees                      ,840,10/08/2014,REV,REDACTED
846,Childrens & Education Services,Support for SEN Pupils,Non-Delegated Statements,K90024,Supplies & Services           ,Services                      ,DF09,Miscellaneous Fees                      ,520,28/07/2014,REV,RIVER COUNSELLING AGENCY      
847,Childrens & Education Services,Support for SEN Pupils,Non-Delegated Statements,K90024,Supplies & Services           ,Services                      ,DF11,Counsel's Fees                          ,600,29/07/2014,REV,REDACTED
848,Childrens & Education Services,Support for SEN Pupils,Non-Delegated Statements,K90024,Third Party Payments          ,Other Local Authorities       ,EB48,OLA PAYMENTS-STATEMENTS                 ,4126.2,20/08/2014,REV,OVERTON GRANGE SCHOOL         
849,Childrens & Education Services,Support for SEN Pupils,Non-Delegated Statements,K90024,Third Party Payments          ,Other Local Authorities       ,EB50,OLA-Payments - Day Schools              ,10748.33,17/07/2014,REV,CAMBRIDGESHIRE COUNTY COUNCIL 
850,Childrens & Education Services,Support for SEN Pupils,Non-Delegated Statements,K90024,Third Party Payments          ,Other Local Authorities       ,EB51,OLA Payments - Special Units            ,5757.44,26/08/2014,REV,OVERTON GRANGE SCHOOL         
851,Childrens & Education Services,Support for SEN Pupils,Non-Delegated Statements,K90024,Third Party Payments          ,Other Establishments          ,EG01,Alternative SEN Provision               ,2209.25,17/07/2014,REV,REDACTED
852,Childrens & Education Services,Support for SEN Pupils,Non-Delegated Statements,K90024,Third Party Payments          ,Other Establishments          ,EG01,Alternative SEN Provision               ,2590,31/07/2014,REV,THE COMPLETE WORKS LTD        
853,Childrens & Education Services,Support for SEN Pupils,Non-Delegated Statements,K90024,Third Party Payments          ,Other Establishments          ,EG01,Alternative SEN Provision               ,1467,01/08/2014,REV,REDACTED
854,Childrens & Education Services,Support for SEN Pupils,Non-Delegated Statements,K90024,Third Party Payments          ,Other Establishments          ,EG01,Alternative SEN Provision               ,704,01/08/2014,REV,REDACTED
855,Childrens & Education Services,Support for SEN Pupils,Non-Delegated Statements,K90024,Third Party Payments          ,Other Establishments          ,EG50,Ind Day Schs Payments                   ,32379.33,18/07/2014,REV,KISIMUL SCHOOL                
856,Childrens & Education Services,Support for SEN Pupils,Non-Delegated Statements,K90024,Third Party Payments          ,Other Establishments          ,EG50,Ind Day Schs Payments                   ,34930,04/08/2014,REV,BEYOND AUTISM                 
857,Childrens & Education Services,Support for SEN Pupils,Non-Delegated Statements,K90024,Third Party Payments          ,Other Establishments          ,EG50,Ind Day Schs Payments                   ,6849,16/07/2014,REV,THE LINK SECONDARY SCHOOL     
858,Childrens & Education Services,Support for SEN Pupils,Non-Delegated Statements,K90024,Third Party Payments          ,Other Establishments          ,EG50,Ind Day Schs Payments                   ,6849,16/07/2014,REV,THE LINK SECONDARY SCHOOL     
859,Childrens & Education Services,Support for SEN Pupils,Non-Delegated Statements,K90024,Third Party Payments          ,Other Establishments          ,EG50,Ind Day Schs Payments                   ,12444,01/08/2014,REV,CRESSEY OASIS EDUCATION       
860,Childrens & Education Services,Support for SEN Pupils,Non-Delegated Statements,K90024,Third Party Payments          ,Other Establishments          ,EG50,Ind Day Schs Payments                   ,11120,01/07/2014,REV,BLOSSOM LOWER SCHOOL LTD      
861,Childrens & Education Services,Support for SEN Pupils,Non-Delegated Statements,K90024,Third Party Payments          ,Other Establishments          ,EG50,Ind Day Schs Payments                   ,15968,22/07/2014,REV,ST JOSEPHS SCHOOL             
862,Childrens & Education Services,Support for SEN Pupils,Non-Delegated Statements,K90024,Third Party Payments          ,Other Establishments          ,EG50,Ind Day Schs Payments                   ,11120,01/07/2014,REV,BLOSSOM LOWER SCHOOL LTD      
863,Childrens & Education Services,Support for SEN Pupils,Non-Delegated Statements,K90024,Third Party Payments          ,Other Establishments          ,EG50,Ind Day Schs Payments                   ,12323,01/07/2014,REV,BLOSSOM LOWER SCHOOL LTD      
864,Childrens & Education Services,Support for SEN Pupils,Non-Delegated Statements,K90024,Third Party Payments          ,Other Establishments          ,EG50,Ind Day Schs Payments                   ,10892,01/07/2014,REV,BLOSSOM LOWER SCHOOL LTD      
865,Childrens & Education Services,Support for SEN Pupils,Non-Delegated Statements,K90024,Third Party Payments          ,Other Establishments          ,EG50,Ind Day Schs Payments                   ,2847.5,21/07/2014,REV,REDACTED
866,Childrens & Education Services,Support for SEN Pupils,Non-Delegated Statements,K90024,Third Party Payments          ,Other Establishments          ,EG50,Ind Day Schs Payments                   ,15000,10/07/2014,REV,OCTAVIA HOUSE SCHOOL          
867,Childrens & Education Services,Support for SEN Pupils,Non-Delegated Statements,K90024,Third Party Payments          ,Other Establishments          ,EG50,Ind Day Schs Payments                   ,21666.67,15/07/2014,REV,ROEHAMPTON LODGE PRIORY       
868,Childrens & Education Services,Support for SEN Pupils,Non-Delegated Statements,K90024,Third Party Payments          ,Other Establishments          ,EG50,Ind Day Schs Payments                   ,10357,01/07/2014,REV,BLOSSOM LOWER SCHOOL LTD      
869,Childrens & Education Services,Support for SEN Pupils,Non-Delegated Statements,K90024,Third Party Payments          ,Other Establishments          ,EG50,Ind Day Schs Payments                   ,32333.33,18/07/2014,REV,KISIMUL SCHOOL                
870,Childrens & Education Services,Support for SEN Pupils,Non-Delegated Statements,K90024,Third Party Payments          ,Other Establishments          ,EG50,Ind Day Schs Payments                   ,18699.66,01/08/2014,REV,CRESSEY OASIS EDUCATION       
871,Childrens & Education Services,Support for SEN Pupils,Non-Delegated Statements,K90024,Third Party Payments          ,Other Establishments          ,EG50,Ind Day Schs Payments                   ,9023.67,01/07/2014,REV,BLOSSOM LOWER SCHOOL LTD      
872,Childrens & Education Services,Support for SEN Pupils,Non-Delegated Statements,K90024,Third Party Payments          ,Other Establishments          ,EG50,Ind Day Schs Payments                   ,13704,22/07/2014,REV,ST JOSEPHS SCHOOL             
873,Childrens & Education Services,Support for SEN Pupils,Non-Delegated Statements,K90024,Third Party Payments          ,Other Establishments          ,EG50,Ind Day Schs Payments                   ,15250,22/07/2014,REV,ST JOSEPHS SCHOOL             
874,Childrens & Education Services,Support for SEN Pupils,Non-Delegated Statements,K90024,Third Party Payments          ,Other Establishments          ,EG50,Ind Day Schs Payments                   ,10892,01/07/2014,REV,BLOSSOM LOWER SCHOOL LTD      
875,Childrens & Education Services,Support for SEN Pupils,Non-Delegated Statements,K90024,Third Party Payments          ,Other Establishments          ,EG50,Ind Day Schs Payments                   ,30116.66,04/08/2014,REV,BEYOND AUTISM                 
876,Childrens & Education Services,Support for SEN Pupils,Non-Delegated Statements,K90024,Third Party Payments          ,Other Establishments          ,EG50,Ind Day Schs Payments                   ,11120,01/07/2014,REV,BLOSSOM LOWER SCHOOL LTD      
877,Childrens & Education Services,Support for SEN Pupils,Non-Delegated Statements,K90024,Third Party Payments          ,Other Establishments          ,EG50,Ind Day Schs Payments                   ,5602,11/07/2014,REV,MORE HOUSE SCHOOL             
878,Childrens & Education Services,Support for SEN Pupils,Non-Delegated Statements,K90024,Third Party Payments          ,Other Establishments          ,EG50,Ind Day Schs Payments                   ,8783,31/08/2014,REV,THE MOAT SCHOOL               
879,Childrens & Education Services,Support for SEN Pupils,Non-Delegated Statements,K90024,Third Party Payments          ,Other Establishments          ,EG50,Ind Day Schs Payments                   ,11120,01/07/2014,REV,BLOSSOM LOWER SCHOOL LTD      
880,Childrens & Education Services,Support for SEN Pupils,Non-Delegated Statements,K90024,Third Party Payments          ,Other Establishments          ,EG50,Ind Day Schs Payments                   ,5398,16/07/2014,REV,BLOSSOM HOUSE SCHOOL          
881,Childrens & Education Services,Support for SEN Pupils,Non-Delegated Statements,K90024,Third Party Payments          ,Other Establishments          ,EG50,Ind Day Schs Payments                   ,9278.93,03/07/2014,REV,CANBURY SCHOOL LIMITED        
882,Childrens & Education Services,Support for SEN Pupils,Non-Delegated Statements,K90024,Third Party Payments          ,Other Establishments          ,EG50,Ind Day Schs Payments                   ,7186,16/07/2014,REV,THE LINK SECONDARY SCHOOL     
883,Childrens & Education Services,Support for SEN Pupils,Non-Delegated Statements,K90024,Third Party Payments          ,Other Establishments          ,EG50,Ind Day Schs Payments                   ,16941.05,04/08/2014,REV,BEYOND AUTISM                 
884,Childrens & Education Services,Support for SEN Pupils,Non-Delegated Statements,K90024,Third Party Payments          ,Other Establishments          ,EG50,Ind Day Schs Payments                   ,10357,01/07/2014,REV,BLOSSOM LOWER SCHOOL LTD      
885,Childrens & Education Services,Support for SEN Pupils,Non-Delegated Statements,K90024,Third Party Payments          ,Other Establishments          ,EG50,Ind Day Schs Payments                   ,10892,01/07/2014,REV,BLOSSOM LOWER SCHOOL LTD      
886,Childrens & Education Services,Support for SEN Pupils,Non-Delegated Statements,K90024,Third Party Payments          ,Other Establishments          ,EG50,Ind Day Schs Payments                   ,42829.84,04/08/2014,REV,BEYOND AUTISM                 
887,Childrens & Education Services,Support for SEN Pupils,Non-Delegated Statements,K90024,Third Party Payments          ,Other Establishments          ,EG50,Ind Day Schs Payments                   ,16320,01/08/2014,REV,CRESSEY OASIS EDUCATION       
888,Childrens & Education Services,Support for SEN Pupils,Non-Delegated Statements,K90024,Third Party Payments          ,Other Establishments          ,EG50,Ind Day Schs Payments                   ,63886,22/07/2014,REV,PAPILLON HOUSE SCHOOL         
889,Childrens & Education Services,Support for SEN Pupils,Non-Delegated Statements,K90024,Third Party Payments          ,Other Establishments          ,EG50,Ind Day Schs Payments                   ,15250,22/07/2014,REV,ST JOSEPHS SCHOOL             
890,Childrens & Education Services,Support for SEN Pupils,Non-Delegated Statements,K90024,Third Party Payments          ,Other Establishments          ,EG50,Ind Day Schs Payments                   ,11120,01/07/2014,REV,BLOSSOM LOWER SCHOOL LTD      
891,Childrens & Education Services,Support for SEN Pupils,Non-Delegated Statements,K90024,Third Party Payments          ,Other Establishments          ,EG50,Ind Day Schs Payments                   ,12597,01/08/2014,REV,CRESSEY OASIS EDUCATION       
892,Childrens & Education Services,Support for SEN Pupils,Non-Delegated Statements,K90024,Third Party Payments          ,Other Establishments          ,EG50,Ind Day Schs Payments                   ,12323,01/07/2014,REV,BLOSSOM LOWER SCHOOL LTD      
893,Childrens & Education Services,Support for SEN Pupils,Non-Delegated Statements,K90024,Third Party Payments          ,Other Establishments          ,EG50,Ind Day Schs Payments                   ,16320,01/08/2014,REV,CRESSEY OASIS EDUCATION       
894,Childrens & Education Services,Support for SEN Pupils,Non-Delegated Statements,K90024,Third Party Payments          ,Other Establishments          ,EG50,Ind Day Schs Payments                   ,12323,01/07/2014,REV,BLOSSOM LOWER SCHOOL LTD      
895,Childrens & Education Services,Support for SEN Pupils,Non-Delegated Statements,K90024,Third Party Payments          ,Other Establishments          ,EG50,Ind Day Schs Payments                   ,29712.67,18/07/2014,REV,KISIMUL SCHOOL                
896,Childrens & Education Services,Support for SEN Pupils,Non-Delegated Statements,K90024,Third Party Payments          ,Other Establishments          ,EG50,Ind Day Schs Payments                   ,10357,01/07/2014,REV,BLOSSOM LOWER SCHOOL LTD      
897,Childrens & Education Services,Support for SEN Pupils,Non-Delegated Statements,K90024,Third Party Payments          ,Other Establishments          ,EG50,Ind Day Schs Payments                   ,85181.33,31/07/2014,REV,ST DOMINIC'S SCHOOL           
898,Childrens & Education Services,Support for SEN Pupils,Non-Delegated Statements,K90024,Third Party Payments          ,Other Establishments          ,EG50,Ind Day Schs Payments                   ,-19998,31/07/2014,REV,ST DOMINIC'S SCHOOL           
899,Childrens & Education Services,Support for SEN Pupils,Non-Delegated Statements,K90024,Third Party Payments          ,Other Establishments          ,EG50,Ind Day Schs Payments                   ,12597,01/08/2014,REV,CRESSEY OASIS EDUCATION       
900,Childrens & Education Services,Support for SEN Pupils,Non-Delegated Statements,K90024,Third Party Payments          ,Other Establishments          ,EG50,Ind Day Schs Payments                   ,12323,01/07/2014,REV,BLOSSOM LOWER SCHOOL LTD      
901,Childrens & Education Services,Support for SEN Pupils,Non-Delegated Statements,K90024,Third Party Payments          ,Other Establishments          ,EG50,Ind Day Schs Payments                   ,10011,01/07/2014,REV,BLOSSOM LOWER SCHOOL LTD      
902,Childrens & Education Services,Support for SEN Pupils,Non-Delegated Statements,K90024,Third Party Payments          ,Other Establishments          ,EG50,Ind Day Schs Payments                   ,6849,16/07/2014,REV,THE LINK SECONDARY SCHOOL     
903,Childrens & Education Services,Support for SEN Pupils,Non-Delegated Statements,K90024,Third Party Payments          ,Other Establishments          ,EG50,Ind Day Schs Payments                   ,3603.96,31/07/2014,REV,ST DOMINIC'S SCHOOL           
904,Childrens & Education Services,Support for SEN Pupils,Non-Delegated Statements,K90024,Third Party Payments          ,Other Establishments          ,EG50,Ind Day Schs Payments                   ,5870,04/07/2014,REV,ST TERESA'S SCHOOL            
905,Childrens & Education Services,Support for SEN Pupils,Non-Delegated Statements,K90024,Third Party Payments          ,Other Establishments          ,EG50,Ind Day Schs Payments                   ,11120,01/07/2014,REV,BLOSSOM LOWER SCHOOL LTD      
906,Childrens & Education Services,Support for SEN Pupils,Non-Delegated Statements,K90024,Third Party Payments          ,Other Establishments          ,EG50,Ind Day Schs Payments                   ,10357,01/07/2014,REV,BLOSSOM LOWER SCHOOL LTD      
907,Childrens & Education Services,Support for SEN Pupils,Non-Delegated Statements,K90024,Third Party Payments          ,Other Establishments          ,EG50,Ind Day Schs Payments                   ,33532,22/07/2014,REV,ST JOSEPHS SCHOOL             
908,Childrens & Education Services,Support for SEN Pupils,Non-Delegated Statements,K90024,Third Party Payments          ,Other Establishments          ,EG50,Ind Day Schs Payments                   ,5602,11/07/2014,REV,MORE HOUSE SCHOOL             
909,Childrens & Education Services,Support for SEN Pupils,Non-Delegated Statements,K90024,Third Party Payments          ,Other Establishments          ,EG50,Ind Day Schs Payments                   ,7521,22/07/2014,REV,ST JOSEPHS SCHOOL             
910,Childrens & Education Services,Support for SEN Pupils,Non-Delegated Statements,K90024,Third Party Payments          ,Other Establishments          ,EG50,Ind Day Schs Payments                   ,10892,01/07/2014,REV,BLOSSOM LOWER SCHOOL LTD      
911,Childrens & Education Services,Support for SEN Pupils,Non-Delegated Statements,K90024,Third Party Payments          ,Other Establishments          ,EG50,Ind Day Schs Payments                   ,5445,16/07/2014,REV,THE LINK SECONDARY SCHOOL     
912,Childrens & Education Services,Support for SEN Pupils,Non-Delegated Statements,K90024,Third Party Payments          ,Other Establishments          ,EG50,Ind Day Schs Payments                   ,10892,01/07/2014,REV,BLOSSOM LOWER SCHOOL LTD      
913,Childrens & Education Services,Support for SEN Pupils,Non-Delegated Statements,K90024,Third Party Payments          ,Other Establishments          ,EG50,Ind Day Schs Payments                   ,7186,16/07/2014,REV,THE LINK SECONDARY SCHOOL     
914,Childrens & Education Services,Admissions & Planning Sch Prov,Retained Schools Budgets,K90030,Supplies & Services           ,Prntng Stnry Gen Off Exp      ,DE22,Marketing                               ,13425,31/07/2014,REV,GREBOT DONNELLY  ASSOCIAT. LTD
915,Childrens & Education Services,Facilitating School Improvemnt,SSQ CORE OFFER (DSG),K90040,Supplies & Services           ,Services                      ,DF03,Consultants                             ,3750,23/07/2014,REV,REDACTED
916,Childrens & Education Services,Nursery schools,EARLY YEARS NURSERY GRANTS,K90042,Supplies & Services           ,Grants and Subscriptions      ,DJ57,Nursery Grant Payment-4yr olds          ,3991.2,28/08/2014,REV,ARK AT SHERWOOD LTD           
917,Childrens & Education Services,Nursery schools,EARLY YEARS NURSERY GRANTS,K90042,Supplies & Services           ,Grants and Subscriptions      ,DJ57,Nursery Grant Payment-4yr olds          ,5174.4,28/08/2014,REV,PLAYDAYS DAY NURSERY          
918,Childrens & Education Services,Nursery schools,EARLY YEARS NURSERY GRANTS,K90042,Supplies & Services           ,Grants and Subscriptions      ,DJ57,Nursery Grant Payment-4yr olds          ,2587.2,28/08/2014,REV,DEE'S DAY NURSERY             
919,Childrens & Education Services,Nursery schools,EARLY YEARS NURSERY GRANTS,K90042,Supplies & Services           ,Grants and Subscriptions      ,DJ57,Nursery Grant Payment-4yr olds          ,3880.8,28/08/2014,REV,CHERUBS CHILDCARE LTD         
920,Childrens & Education Services,Nursery schools,EARLY YEARS NURSERY GRANTS,K90042,Supplies & Services           ,Grants and Subscriptions      ,DJ57,Nursery Grant Payment-4yr olds          ,3234,28/08/2014,REV,DICKY BIRDS PRE SCHOOL NURSERY
921,Childrens & Education Services,Nursery schools,EARLY YEARS NURSERY GRANTS,K90042,Supplies & Services           ,Grants and Subscriptions      ,DJ57,Nursery Grant Payment-4yr olds          ,5255.4,28/08/2014,REV,THE GARDENS CHILDCARE LTD     
922,Childrens & Education Services,Nursery schools,EARLY YEARS NURSERY GRANTS,K90042,Supplies & Services           ,Grants and Subscriptions      ,DJ57,Nursery Grant Payment-4yr olds          ,3234,28/08/2014,REV,BUTTERFLIES CHILDCARE LIMITED 
923,Childrens & Education Services,Nursery schools,EARLY YEARS NURSERY GRANTS,K90042,Supplies & Services           ,Grants and Subscriptions      ,DJ57,Nursery Grant Payment-4yr olds          ,8094.24,28/08/2014,REV,DICKY BIRDS PRE SCHOOL NURSERY
924,Childrens & Education Services,Nursery schools,EARLY YEARS NURSERY GRANTS,K90042,Supplies & Services           ,Grants and Subscriptions      ,DJ57,Nursery Grant Payment-4yr olds          ,6468,28/08/2014,REV,MMI PRE SCHOOL                
925,Childrens & Education Services,Nursery schools,EARLY YEARS NURSERY GRANTS,K90042,Supplies & Services           ,Grants and Subscriptions      ,DJ57,Nursery Grant Payment-4yr olds          ,646.8,28/08/2014,REV,LOVE LANE DAY NURSERY         
926,Childrens & Education Services,Nursery schools,EARLY YEARS NURSERY GRANTS,K90042,Supplies & Services           ,Grants and Subscriptions      ,DJ57,Nursery Grant Payment-4yr olds          ,9055.2,28/08/2014,REV,WIMBLEDON DAY NURSERY         
927,Childrens & Education Services,Nursery schools,EARLY YEARS NURSERY GRANTS,K90042,Supplies & Services           ,Grants and Subscriptions      ,DJ57,Nursery Grant Payment-4yr olds          ,5174.4,28/08/2014,REV,LITTLE GATES                  
928,Childrens & Education Services,Nursery schools,EARLY YEARS NURSERY GRANTS,K90042,Supplies & Services           ,Grants and Subscriptions      ,DJ57,Nursery Grant Payment-4yr olds          ,11426.8,29/08/2014,REV,DICKY BIRDS DAY NURSERIES     
929,Childrens & Education Services,Nursery schools,EARLY YEARS NURSERY GRANTS,K90042,Supplies & Services           ,Grants and Subscriptions      ,DJ57,Nursery Grant Payment-4yr olds          ,5174.4,28/08/2014,REV,BUMBLE BEES'S DAY NURSERY-COCC
930,Childrens & Education Services,Nursery schools,EARLY YEARS NURSERY GRANTS,K90042,Supplies & Services           ,Grants and Subscriptions      ,DJ57,Nursery Grant Payment-4yr olds          ,8192.8,28/08/2014,REV,WIMBLEDON DAY NURSERY 2       
931,Childrens & Education Services,Nursery schools,EARLY YEARS NURSERY GRANTS,K90042,Supplies & Services           ,Grants and Subscriptions      ,DJ57,Nursery Grant Payment-4yr olds          ,2728.9,28/08/2014,REV,BLOSSOM HOUSE SCHOOL          
932,Childrens & Education Services,Nursery schools,EARLY YEARS NURSERY GRANTS,K90042,Supplies & Services           ,Grants and Subscriptions      ,DJ57,Nursery Grant Payment-4yr olds          ,6468,28/08/2014,REV,OAKTREE PRE-SCHOOL NURSERY    
933,Childrens & Education Services,Nursery schools,EARLY YEARS NURSERY GRANTS,K90042,Supplies & Services           ,Grants and Subscriptions      ,DJ57,Nursery Grant Payment-4yr olds          ,27673.63,29/08/2014,REV,DATE VALLEY SCHOOL            
934,Childrens & Education Services,Nursery schools,EARLY YEARS NURSERY GRANTS,K90042,Supplies & Services           ,Grants and Subscriptions      ,DJ57,Nursery Grant Payment-4yr olds          ,13065.36,29/08/2014,REV,TEDDIES NURSERIES LTD         
935,Childrens & Education Services,Nursery schools,EARLY YEARS NURSERY GRANTS,K90042,Supplies & Services           ,Grants and Subscriptions      ,DJ57,Nursery Grant Payment-4yr olds          ,1293.6,28/08/2014,REV,HAPPY FACES@CRANMER           
936,Childrens & Education Services,Nursery schools,EARLY YEARS NURSERY GRANTS,K90042,Supplies & Services           ,Grants and Subscriptions      ,DJ57,Nursery Grant Payment-4yr olds          ,1049.76,28/08/2014,REV,COMPTON NURSERY               
937,Childrens & Education Services,Nursery schools,EARLY YEARS NURSERY GRANTS,K90042,Supplies & Services           ,Grants and Subscriptions      ,DJ57,Nursery Grant Payment-4yr olds          ,7761.6,28/08/2014,REV,HASLEMERE HOUSE DAY NURSERY   
938,Childrens & Education Services,Nursery schools,EARLY YEARS NURSERY GRANTS,K90042,Supplies & Services           ,Grants and Subscriptions      ,DJ57,Nursery Grant Payment-4yr olds          ,25502.4,29/08/2014,REV,CASTLE KINDERGARTEN           
939,Childrens & Education Services,Nursery schools,EARLY YEARS NURSERY GRANTS,K90042,Supplies & Services           ,Grants and Subscriptions      ,DJ57,Nursery Grant Payment-4yr olds          ,2721.6,28/08/2014,REV,JOLLYTIME PLAYGROUP           
940,Childrens & Education Services,Nursery schools,EARLY YEARS NURSERY GRANTS,K90042,Supplies & Services           ,Grants and Subscriptions      ,DJ57,Nursery Grant Payment-4yr olds          ,4527.6,28/08/2014,REV,BRIGHT CHOICE DAY NURSERY     
